{"text_format":"3","workbook":"xlsx","n_sheets":5,"sheets":["POČETAK","PLANIRANI TROŠKOVI","STVARNI TROŠKOVI","ODSTUPANJA OD TROŠKOVA","ANALIZA TROŠKOVA"],"not_rendered":{"charts":2,"images":3,"defined_names":1},"read":"whole","date_system":"1900"}

{"sheet":"POČETAK","index":0,"n_rows":8,"n_cols":2,"rows_kept":8}
[null,"OSNOVNI PODACI O OVOM PREDLOŠKU"]
[null,"Koristite ovu radnu svesku „Budžet poslovnih troškova“ da biste pratili planirane i stvarne troškove i odstupanja."]
[null,"Popunite ime preduzeća i logotip."]
[null,"Unesite detalje u tabele na radnim listovima „Planirani troškovi“ i „Stvarni troškovi“."]
[null,"Tabele se automatski ažuriraju na radnom listu „Odstupanja od troškova“, a grafikoni na radnom listu „Analiza troškova“"]
[null,"Napomena: "]
[null,"Dodatna uputstva navedena su u koloni A na svakom radnom listu. Taj tekst je namerno skriven. Da biste uklonili tekst, izaberite kolonu A, a zatim izaberite stavku „IZBRIŠI“. Da biste otkrili tekst, izaberite kolonu A, a zatim promenite boju fonta."]
[null,"Da biste saznali više o tabelama, pritisnite taster SHIFT, a zatim unutar tabele taster F10, izaberite opciju „TABELA“, a zatim stavku „ALTERNATIVNI TEKST“"]

{"sheet":"PLANIRANI TROŠKOVI","index":1,"n_rows":37,"n_cols":16,"rows_kept":37,"merged":[[1,10,1,12],[2,10,2,12],[3,17,12,19]]}
[{"$nulls":15}," "]
[null,"Ime preduzeća",{"$nulls":8},"Detaljne procene troškova"]
[{"$nulls":10},"Osenčene ćelije su izračunavanja."]
[null,"PLANIRANI TROŠKOVI","JAN","FEB","MAR","APR","MAJ","JUN","JUL","AVG","SEP","OKT","NOV","DEC","GODINA"]
[null,"Troškovi zaposlenih","Jan","Feb","Mar","Apr","Maj","Jun","Jul","Avg","Sep","Okt","Nov","Dec","GODINA"]
[null,"Plate",{"v":85000,"d":"85,000.00 RSD"},{"v":85000,"d":"85,000.00 RSD"},{"v":85000,"d":"85,000.00 RSD"},{"v":87500,"d":"87,500.00 RSD"},{"v":87500,"d":"87,500.00 RSD"},{"v":87500,"d":"87,500.00 RSD"},{"v":87500,"d":"87,500.00 RSD"},{"v":92400,"d":"92,400.00 RSD"},{"v":92400,"d":"92,400.00 RSD"},{"v":92400,"d":"92,400.00 RSD"},{"v":92400,"d":"92,400.00 RSD"},{"v":92400,"d":"92,400.00 RSD"},{"$f":"SUM(C6:N6)","v":{"v":1067000,"d":"1,067,000.00 RSD"}}]
[null,"Pogodnosti",{"$f":"C6*0.27","v":{"v":22950,"d":"22,950.00 RSD"}},{"v":22950,"d":"22,950.00 RSD"},{"v":22950,"d":"22,950.00 RSD"},{"v":23625,"d":"23,625.00 RSD"},{"v":23625,"d":"23,625.00 RSD"},{"v":23625,"d":"23,625.00 RSD"},{"v":23625,"d":"23,625.00 RSD"},{"v":24948,"d":"24,948.00 RSD"},{"v":24948,"d":"24,948.00 RSD"},{"v":24948,"d":"24,948.00 RSD"},{"v":24948,"d":"24,948.00 RSD"},{"v":24948,"d":"24,948.00 RSD"},{"$f":"SUM(C7:N7)","v":{"v":288090,"d":"288,090.00 RSD"}}]
[null,"Međuvrednost",{"$f":"SUBTOTAL(109,PlaniraniTroškoviZaposlenih[Jan])","v":{"v":107950,"d":"107,950.00 RSD"}},{"$f":"SUBTOTAL(109,PlaniraniTroškoviZaposlenih[Feb])","v":{"v":107950,"d":"107,950.00 RSD"}},{"$f":"SUBTOTAL(109,PlaniraniTroškoviZaposlenih[Mar])","v":{"v":107950,"d":"107,950.00 RSD"}},{"$f":"SUBTOTAL(109,PlaniraniTroškoviZaposlenih[Apr])","v":{"v":111125,"d":"111,125.00 RSD"}},{"$f":"SUBTOTAL(109,PlaniraniTroškoviZaposlenih[Maj])","v":{"v":111125,"d":"111,125.00 RSD"}},{"$f":"SUBTOTAL(109,PlaniraniTroškoviZaposlenih[Jun])","v":{"v":111125,"d":"111,125.00 RSD"}},{"$f":"SUBTOTAL(109,PlaniraniTroškoviZaposlenih[Jul])","v":{"v":111125,"d":"111,125.00 RSD"}},{"$f":"SUBTOTAL(109,PlaniraniTroškoviZaposlenih[Avg])","v":{"v":117348,"d":"117,348.00 RSD"}},{"$f":"SUBTOTAL(109,PlaniraniTroškoviZaposlenih[Sep])","v":{"v":117348,"d":"117,348.00 RSD"}},{"$f":"SUBTOTAL(109,PlaniraniTroškoviZaposlenih[Okt])","v":{"v":117348,"d":"117,348.00 RSD"}},{"$f":"SUBTOTAL(109,PlaniraniTroškoviZaposlenih[Nov])","v":{"v":117348,"d":"117,348.00 RSD"}},{"$f":"SUBTOTAL(109,PlaniraniTroškoviZaposlenih[Dec])","v":{"v":117348,"d":"117,348.00 RSD"}},{"$f":"SUBTOTAL(109,PlaniraniTroškoviZaposlenih[GODINA])","v":{"v":1355090,"d":"1,355,090.00 RSD"}}]
[]
[null,"Kancelarijski troškovi","Jan","Feb","Mar","Apr","Maj","Jun","Jul","Avg","Sep","Okt","Nov","Dec","GODINA"]
[null,"Zakup kancelarije",{"v":9800,"d":"9,800.00 RSD"},{"v":9800,"d":"9,800.00 RSD"},{"v":9800,"d":"9,800.00 RSD"},{"v":9800,"d":"9,800.00 RSD"},{"v":9800,"d":"9,800.00 RSD"},{"v":9800,"d":"9,800.00 RSD"},{"v":9800,"d":"9,800.00 RSD"},{"v":9800,"d":"9,800.00 RSD"},{"v":9800,"d":"9,800.00 RSD"},{"v":9800,"d":"9,800.00 RSD"},{"v":9800,"d":"9,800.00 RSD"},{"v":9800,"d":"9,800.00 RSD"},{"$f":"SUM(C11:N11)","v":{"v":117600,"d":"117,600.00 RSD"}}]
[null,"Gas",null,{"v":400,"d":"400.00 RSD"},{"v":400,"d":"400.00 RSD"},{"v":100,"d":"100.00 RSD"},{"v":100,"d":"100.00 RSD"},{"v":100,"d":"100.00 RSD"},{"v":100,"d":"100.00 RSD"},{"v":100,"d":"100.00 RSD"},{"v":100,"d":"100.00 RSD"},{"v":100,"d":"100.00 RSD"},{"v":400,"d":"400.00 RSD"},{"v":400,"d":"400.00 RSD"},{"v":2300,"d":"2,300.00 RSD"}]
[null,"Struja",{"v":300,"d":"300.00 RSD"},{"v":300,"d":"300.00 RSD"},{"v":300,"d":"300.00 RSD"},{"v":300,"d":"300.00 RSD"},{"v":300,"d":"300.00 RSD"},{"v":300,"d":"300.00 RSD"},{"v":300,"d":"300.00 RSD"},{"v":300,"d":"300.00 RSD"},{"v":300,"d":"300.00 RSD"},{"v":300,"d":"300.00 RSD"},{"v":300,"d":"300.00 RSD"},{"v":300,"d":"300.00 RSD"},{"v":3600,"d":"3,600.00 RSD"}]
[null,"Voda",{"v":40,"d":"40.00 RSD"},{"v":40,"d":"40.00 RSD"},{"v":40,"d":"40.00 RSD"},{"v":40,"d":"40.00 RSD"},{"v":40,"d":"40.00 RSD"},{"v":40,"d":"40.00 RSD"},{"v":40,"d":"40.00 RSD"},{"v":40,"d":"40.00 RSD"},{"v":40,"d":"40.00 RSD"},{"v":40,"d":"40.00 RSD"},{"v":40,"d":"40.00 RSD"},{"v":40,"d":"40.00 RSD"},{"v":480,"d":"480.00 RSD"}]
[null,"Telefon",{"v":250,"d":"250.00 RSD"},{"v":250,"d":"250.00 RSD"},{"v":250,"d":"250.00 RSD"},{"v":250,"d":"250.00 RSD"},{"v":250,"d":"250.00 RSD"},{"v":250,"d":"250.00 RSD"},{"v":250,"d":"250.00 RSD"},{"v":250,"d":"250.00 RSD"},{"v":250,"d":"250.00 RSD"},{"v":250,"d":"250.00 RSD"},{"v":250,"d":"250.00 RSD"},{"v":250,"d":"250.00 RSD"},{"v":3000,"d":"3,000.00 RSD"}]
[null,"Pristup internetu",{"v":180,"d":"180.00 RSD"},{"v":180,"d":"180.00 RSD"},{"v":180,"d":"180.00 RSD"},{"v":180,"d":"180.00 RSD"},{"v":180,"d":"180.00 RSD"},{"v":180,"d":"180.00 RSD"},{"v":180,"d":"180.00 RSD"},{"v":180,"d":"180.00 RSD"},{"v":180,"d":"180.00 RSD"},{"v":180,"d":"180.00 RSD"},{"v":180,"d":"180.00 RSD"},{"v":180,"d":"180.00 RSD"},{"v":2160,"d":"2,160.00 RSD"}]
[null,"Kancelarijski materijal",{"v":200,"d":"200.00 RSD"},{"v":200,"d":"200.00 RSD"},{"v":200,"d":"200.00 RSD"},{"v":200,"d":"200.00 RSD"},{"v":200,"d":"200.00 RSD"},{"v":200,"d":"200.00 RSD"},{"v":200,"d":"200.00 RSD"},{"v":200,"d":"200.00 RSD"},{"v":200,"d":"200.00 RSD"},{"v":200,"d":"200.00 RSD"},{"v":200,"d":"200.00 RSD"},{"v":200,"d":"200.00 RSD"},{"v":2400,"d":"2,400.00 RSD"}]
[null,"Obezbeđenje",{"v":600,"d":"600.00 RSD"},{"v":600,"d":"600.00 RSD"},{"v":600,"d":"600.00 RSD"},{"v":600,"d":"600.00 RSD"},{"v":600,"d":"600.00 RSD"},{"v":600,"d":"600.00 RSD"},{"v":600,"d":"600.00 RSD"},{"v":600,"d":"600.00 RSD"},{"v":600,"d":"600.00 RSD"},{"v":600,"d":"600.00 RSD"},{"v":600,"d":"600.00 RSD"},{"v":600,"d":"600.00 RSD"},{"v":7200,"d":"7,200.00 RSD"}]
[null,"Međuvrednost",{"$f":"SUBTOTAL(109,PlaniraniKancelarijskiTroškovi[Jan])","v":{"v":11370,"d":"11,370.00 RSD"}},{"$f":"SUBTOTAL(109,PlaniraniKancelarijskiTroškovi[Feb])","v":{"v":11770,"d":"11,770.00 RSD"}},{"$f":"SUBTOTAL(109,PlaniraniKancelarijskiTroškovi[Mar])","v":{"v":11770,"d":"11,770.00 RSD"}},{"$f":"SUBTOTAL(109,PlaniraniKancelarijskiTroškovi[Apr])","v":{"v":11470,"d":"11,470.00 RSD"}},{"$f":"SUBTOTAL(109,PlaniraniKancelarijskiTroškovi[Maj])","v":{"v":11470,"d":"11,470.00 RSD"}},{"$f":"SUBTOTAL(109,PlaniraniKancelarijskiTroškovi[Jun])","v":{"v":11470,"d":"11,470.00 RSD"}},{"$f":"SUBTOTAL(109,PlaniraniKancelarijskiTroškovi[Jul])","v":{"v":11470,"d":"11,470.00 RSD"}},{"$f":"SUBTOTAL(109,PlaniraniKancelarijskiTroškovi[Avg])","v":{"v":11470,"d":"11,470.00 RSD"}},{"$f":"SUBTOTAL(109,PlaniraniKancelarijskiTroškovi[Sep])","v":{"v":11470,"d":"11,470.00 RSD"}},{"$f":"SUBTOTAL(109,PlaniraniKancelarijskiTroškovi[Okt])","v":{"v":11470,"d":"11,470.00 RSD"}},{"$f":"SUBTOTAL(109,PlaniraniKancelarijskiTroškovi[Nov])","v":{"v":11770,"d":"11,770.00 RSD"}},{"$f":"SUBTOTAL(109,PlaniraniKancelarijskiTroškovi[Dec])","v":{"v":11770,"d":"11,770.00 RSD"}},{"$f":"SUBTOTAL(109,PlaniraniKancelarijskiTroškovi[GODINA])","v":{"v":138740,"d":"138,740.00 RSD"}}]
[]
[null,"Troškovi marketinga","Jan","Feb","Mar","Apr","Maj","Jun","Jul","Avg","Sep","Okt","Nov","Dec","GODINA"]
[null,"Hostovanje veb sajta",{"v":500,"d":"500.00 RSD"},{"v":500,"d":"500.00 RSD"},{"v":500,"d":"500.00 RSD"},{"v":500,"d":"500.00 RSD"},{"v":500,"d":"500.00 RSD"},{"v":500,"d":"500.00 RSD"},{"v":500,"d":"500.00 RSD"},{"v":500,"d":"500.00 RSD"},{"v":500,"d":"500.00 RSD"},{"v":500,"d":"500.00 RSD"},{"v":500,"d":"500.00 RSD"},{"v":500,"d":"500.00 RSD"},{"$f":"SUM(C22:N22)","v":{"v":6000,"d":"6,000.00 RSD"}}]
[null,"Ažuriranja veb sajta",{"v":200,"d":"200.00 RSD"},{"v":200,"d":"200.00 RSD"},{"v":200,"d":"200.00 RSD"},{"v":200,"d":"200.00 RSD"},{"v":200,"d":"200.00 RSD"},{"v":1000,"d":"1,000.00 RSD"},{"v":200,"d":"200.00 RSD"},{"v":200,"d":"200.00 RSD"},{"v":200,"d":"200.00 RSD"},{"v":200,"d":"200.00 RSD"},{"v":200,"d":"200.00 RSD"},{"v":1000,"d":"1,000.00 RSD"},{"v":4000,"d":"4,000.00 RSD"}]
[null,"Priprema pratećih materijala",{"v":5000,"d":"5,000.00 RSD"},{"v":0,"d":"0.00 RSD"},{"v":0,"d":"0.00 RSD"},{"v":5000,"d":"5,000.00 RSD"},{"v":0,"d":"0.00 RSD"},{"v":0,"d":"0.00 RSD"},{"v":5000,"d":"5,000.00 RSD"},{"v":0,"d":"0.00 RSD"},{"v":0,"d":"0.00 RSD"},{"v":5000,"d":"5,000.00 RSD"},{"v":0,"d":"0.00 RSD"},{"v":0,"d":"0.00 RSD"},{"v":20000,"d":"20,000.00 RSD"}]
[null,"Štampa pratećih materijala",{"v":200,"d":"200.00 RSD"},{"v":200,"d":"200.00 RSD"},{"v":200,"d":"200.00 RSD"},{"v":200,"d":"200.00 RSD"},{"v":200,"d":"200.00 RSD"},{"v":200,"d":"200.00 RSD"},{"v":200,"d":"200.00 RSD"},{"v":200,"d":"200.00 RSD"},{"v":200,"d":"200.00 RSD"},{"v":200,"d":"200.00 RSD"},{"v":200,"d":"200.00 RSD"},{"v":200,"d":"200.00 RSD"},{"v":2400,"d":"2,400.00 RSD"}]
[null,"Marketinški događaji",{"v":2000,"d":"2,000.00 RSD"},{"v":2000,"d":"2,000.00 RSD"},{"v":2000,"d":"2,000.00 RSD"},{"v":5000,"d":"5,000.00 RSD"},{"v":2000,"d":"2,000.00 RSD"},{"v":2000,"d":"2,000.00 RSD"},{"v":2000,"d":"2,000.00 RSD"},{"v":5000,"d":"5,000.00 RSD"},{"v":2000,"d":"2,000.00 RSD"},{"v":2000,"d":"2,000.00 RSD"},{"v":2000,"d":"2,000.00 RSD"},{"v":5000,"d":"5,000.00 RSD"},{"v":33000,"d":"33,000.00 RSD"}]
[null,"Razni troškovi",{"v":200,"d":"200.00 RSD"},{"v":200,"d":"200.00 RSD"},{"v":200,"d":"200.00 RSD"},{"v":200,"d":"200.00 RSD"},{"v":200,"d":"200.00 RSD"},{"v":200,"d":"200.00 RSD"},{"v":200,"d":"200.00 RSD"},{"v":200,"d":"200.00 RSD"},{"v":200,"d":"200.00 RSD"},{"v":200,"d":"200.00 RSD"},{"v":200,"d":"200.00 RSD"},{"v":200,"d":"200.00 RSD"},{"v":2400,"d":"2,400.00 RSD"}]
[null,"Međuvrednost",{"$f":"SUBTOTAL(109,PlaniraniTroškoviMarketinga[Jan])","v":{"v":8100,"d":"8,100.00 RSD"}},{"$f":"SUBTOTAL(109,PlaniraniTroškoviMarketinga[Feb])","v":{"v":3100,"d":"3,100.00 RSD"}},{"$f":"SUBTOTAL(109,PlaniraniTroškoviMarketinga[Mar])","v":{"v":3100,"d":"3,100.00 RSD"}},{"$f":"SUBTOTAL(109,PlaniraniTroškoviMarketinga[Apr])","v":{"v":11100,"d":"11,100.00 RSD"}},{"$f":"SUBTOTAL(109,PlaniraniTroškoviMarketinga[Maj])","v":{"v":3100,"d":"3,100.00 RSD"}},{"$f":"SUBTOTAL(109,PlaniraniTroškoviMarketinga[Jun])","v":{"v":3900,"d":"3,900.00 RSD"}},{"$f":"SUBTOTAL(109,PlaniraniTroškoviMarketinga[Jul])","v":{"v":8100,"d":"8,100.00 RSD"}},{"$f":"SUBTOTAL(109,PlaniraniTroškoviMarketinga[Avg])","v":{"v":6100,"d":"6,100.00 RSD"}},{"$f":"SUBTOTAL(109,PlaniraniTroškoviMarketinga[Sep])","v":{"v":3100,"d":"3,100.00 RSD"}},{"$f":"SUBTOTAL(109,PlaniraniTroškoviMarketinga[Okt])","v":{"v":8100,"d":"8,100.00 RSD"}},{"$f":"SUBTOTAL(109,PlaniraniTroškoviMarketinga[Nov])","v":{"v":3100,"d":"3,100.00 RSD"}},{"$f":"SUBTOTAL(109,PlaniraniTroškoviMarketinga[Dec])","v":{"v":6900,"d":"6,900.00 RSD"}},{"$f":"SUBTOTAL(109,PlaniraniTroškoviMarketinga[GODINA])","v":{"v":67800,"d":"67,800.00 RSD"}}]
[]
[null,"Obuka/putovanje","Jan","Feb","Mar","Apr","Maj","Jun","Jul","Avg","Sep","Okt","Nov","Dec","GODINA"]
[null,"Predavanja obuke",{"v":2000,"d":"2,000.00 RSD"},{"v":2000,"d":"2,000.00 RSD"},{"v":2000,"d":"2,000.00 RSD"},{"v":2000,"d":"2,000.00 RSD"},{"v":2000,"d":"2,000.00 RSD"},{"v":2000,"d":"2,000.00 RSD"},{"v":2000,"d":"2,000.00 RSD"},{"v":2000,"d":"2,000.00 RSD"},{"v":2000,"d":"2,000.00 RSD"},{"v":2000,"d":"2,000.00 RSD"},{"v":2000,"d":"2,000.00 RSD"},{"v":2000,"d":"2,000.00 RSD"},{"$f":"SUM(C31:N31)","v":{"v":24000,"d":"24,000.00 RSD"}}]
[null,"Putni troškovi u vezi sa obukom",{"v":2000,"d":"2,000.00 RSD"},{"v":2000,"d":"2,000.00 RSD"},{"v":2000,"d":"2,000.00 RSD"},{"v":2000,"d":"2,000.00 RSD"},{"v":2000,"d":"2,000.00 RSD"},{"v":2000,"d":"2,000.00 RSD"},{"v":2000,"d":"2,000.00 RSD"},{"v":2000,"d":"2,000.00 RSD"},{"v":2000,"d":"2,000.00 RSD"},{"v":2000,"d":"2,000.00 RSD"},{"v":2000,"d":"2,000.00 RSD"},{"v":2000,"d":"2,000.00 RSD"},{"$f":"SUM(C32:N32)","v":{"v":24000,"d":"24,000.00 RSD"}}]
[null,"Međuvrednost",{"$f":"SUBTOTAL(109,PlaniraniTroškoviObukeIPutniTroškovi[Jan])","v":{"v":4000,"d":"4,000.00 RSD"}},{"$f":"SUBTOTAL(109,PlaniraniTroškoviObukeIPutniTroškovi[Feb])","v":{"v":4000,"d":"4,000.00 RSD"}},{"$f":"SUBTOTAL(109,PlaniraniTroškoviObukeIPutniTroškovi[Mar])","v":{"v":4000,"d":"4,000.00 RSD"}},{"$f":"SUBTOTAL(109,PlaniraniTroškoviObukeIPutniTroškovi[Apr])","v":{"v":4000,"d":"4,000.00 RSD"}},{"$f":"SUBTOTAL(109,PlaniraniTroškoviObukeIPutniTroškovi[Maj])","v":{"v":4000,"d":"4,000.00 RSD"}},{"$f":"SUBTOTAL(109,PlaniraniTroškoviObukeIPutniTroškovi[Jun])","v":{"v":4000,"d":"4,000.00 RSD"}},{"$f":"SUBTOTAL(109,PlaniraniTroškoviObukeIPutniTroškovi[Jul])","v":{"v":4000,"d":"4,000.00 RSD"}},{"$f":"SUBTOTAL(109,PlaniraniTroškoviObukeIPutniTroškovi[Avg])","v":{"v":4000,"d":"4,000.00 RSD"}},{"$f":"SUBTOTAL(109,PlaniraniTroškoviObukeIPutniTroškovi[Sep])","v":{"v":4000,"d":"4,000.00 RSD"}},{"$f":"SUBTOTAL(109,PlaniraniTroškoviObukeIPutniTroškovi[Okt])","v":{"v":4000,"d":"4,000.00 RSD"}},{"$f":"SUBTOTAL(109,PlaniraniTroškoviObukeIPutniTroškovi[Nov])","v":{"v":4000,"d":"4,000.00 RSD"}},{"$f":"SUBTOTAL(109,PlaniraniTroškoviObukeIPutniTroškovi[Dec])","v":{"v":4000,"d":"4,000.00 RSD"}},{"$f":"SUBTOTAL(109,PlaniraniTroškoviObukeIPutniTroškovi[GODINA])","v":{"v":48000,"d":"48,000.00 RSD"}}]
[]
[null,"UKUPNE VREDNOSTI","Jan","Feb","Mar","Apr","Maj","Jun","Jul","Avg","Sep","Okt","Nov","Dec","Godina"]
[null,"Mesečni planirani troškovi",{"$f":"PlaniraniTroškoviObukeIPutniTroškovi[[#Totals],[Jan]]+PlaniraniTroškoviMarketinga[[#Totals],[Jan]]+PlaniraniKancelarijskiTroškovi[[#Totals],[Jan]]+PlaniraniTroškoviZaposlenih[[#Totals],[Jan]]","v":{"v":131420,"d":"131,420.00 RSD"}},{"$f":"PlaniraniTroškoviObukeIPutniTroškovi[[#Totals],[Feb]]+PlaniraniTroškoviMarketinga[[#Totals],[Feb]]+PlaniraniKancelarijskiTroškovi[[#Totals],[Feb]]+PlaniraniTroškoviZaposlenih[[#Totals],[Feb]]","v":{"v":126820,"d":"126,820.00 RSD"}},{"$f":"PlaniraniTroškoviObukeIPutniTroškovi[[#Totals],[Mar]]+PlaniraniTroškoviMarketinga[[#Totals],[Mar]]+PlaniraniKancelarijskiTroškovi[[#Totals],[Mar]]+PlaniraniTroškoviZaposlenih[[#Totals],[Mar]]","v":{"v":126820,"d":"126,820.00 RSD"}},{"$f":"PlaniraniTroškoviObukeIPutniTroškovi[[#Totals],[Apr]]+PlaniraniTroškoviMarketinga[[#Totals],[Apr]]+PlaniraniKancelarijskiTroškovi[[#Totals],[Apr]]+PlaniraniTroškoviZaposlenih[[#Totals],[Apr]]","v":{"v":137695,"d":"137,695.00 RSD"}},{"$f":"PlaniraniTroškoviObukeIPutniTroškovi[[#Totals],[Maj]]+PlaniraniTroškoviMarketinga[[#Totals],[Maj]]+PlaniraniKancelarijskiTroškovi[[#Totals],[Maj]]+PlaniraniTroškoviZaposlenih[[#Totals],[Maj]]","v":{"v":129695,"d":"129,695.00 RSD"}},{"$f":"PlaniraniTroškoviObukeIPutniTroškovi[[#Totals],[Jun]]+PlaniraniTroškoviMarketinga[[#Totals],[Jun]]+PlaniraniKancelarijskiTroškovi[[#Totals],[Jun]]+PlaniraniTroškoviZaposlenih[[#Totals],[Jun]]","v":{"v":130495,"d":"130,495.00 RSD"}},{"$f":"PlaniraniTroškoviObukeIPutniTroškovi[[#Totals],[Jul]]+PlaniraniTroškoviMarketinga[[#Totals],[Jul]]+PlaniraniKancelarijskiTroškovi[[#Totals],[Jul]]+PlaniraniTroškoviZaposlenih[[#Totals],[Jul]]","v":{"v":134695,"d":"134,695.00 RSD"}},{"$f":"PlaniraniTroškoviObukeIPutniTroškovi[[#Totals],[Avg]]+PlaniraniTroškoviMarketinga[[#Totals],[Avg]]+PlaniraniKancelarijskiTroškovi[[#Totals],[Avg]]+PlaniraniTroškoviZaposlenih[[#Totals],[Avg]]","v":{"v":138918,"d":"138,918.00 RSD"}},{"$f":"PlaniraniTroškoviObukeIPutniTroškovi[[#Totals],[Sep]]+PlaniraniTroškoviMarketinga[[#Totals],[Sep]]+PlaniraniKancelarijskiTroškovi[[#Totals],[Sep]]+PlaniraniTroškoviZaposlenih[[#Totals],[Sep]]","v":{"v":135918,"d":"135,918.00 RSD"}},{"$f":"PlaniraniTroškoviObukeIPutniTroškovi[[#Totals],[Okt]]+PlaniraniTroškoviMarketinga[[#Totals],[Okt]]+PlaniraniKancelarijskiTroškovi[[#Totals],[Okt]]+PlaniraniTroškoviZaposlenih[[#Totals],[Okt]]","v":{"v":140918,"d":"140,918.00 RSD"}},{"$f":"PlaniraniTroškoviObukeIPutniTroškovi[[#Totals],[Nov]]+PlaniraniTroškoviMarketinga[[#Totals],[Nov]]+PlaniraniKancelarijskiTroškovi[[#Totals],[Nov]]+PlaniraniTroškoviZaposlenih[[#Totals],[Nov]]","v":{"v":136218,"d":"136,218.00 RSD"}},{"$f":"PlaniraniTroškoviObukeIPutniTroškovi[[#Totals],[Dec]]+PlaniraniTroškoviMarketinga[[#Totals],[Dec]]+PlaniraniKancelarijskiTroškovi[[#Totals],[Dec]]+PlaniraniTroškoviZaposlenih[[#Totals],[Dec]]","v":{"v":140018,"d":"140,018.00 RSD"}},{"$f":"PlaniraniTroškoviObukeIPutniTroškovi[[#Totals],[GODINA]]+PlaniraniTroškoviMarketinga[[#Totals],[GODINA]]+PlaniraniKancelarijskiTroškovi[[#Totals],[GODINA]]+PlaniraniTroškoviZaposlenih[[#Totals],[GODINA]]","v":{"v":1609630,"d":"1,609,630.00 RSD"}}]
[null,"UKUPNI planirani troškovi",{"$f":"SUM($C$36:C36)","v":{"v":131420,"d":"131,420.00 RSD"}},{"$f":"SUM($C$36:D36)","v":{"v":258240,"d":"258,240.00 RSD"}},{"$f":"SUM($C$36:E36)","v":{"v":385060,"d":"385,060.00 RSD"}},{"$f":"SUM($C$36:F36)","v":{"v":522755,"d":"522,755.00 RSD"}},{"$f":"SUM($C$36:G36)","v":{"v":652450,"d":"652,450.00 RSD"}},{"$f":"SUM($C$36:H36)","v":{"v":782945,"d":"782,945.00 RSD"}},{"$f":"SUM($C$36:I36)","v":{"v":917640,"d":"917,640.00 RSD"}},{"$f":"SUM($C$36:J36)","v":{"v":1056558,"d":"1,056,558.00 RSD"}},{"$f":"SUM($C$36:K36)","v":{"v":1192476,"d":"1,192,476.00 RSD"}},{"$f":"SUM($C$36:L36)","v":{"v":1333394,"d":"1,333,394.00 RSD"}},{"$f":"SUM($C$36:M36)","v":{"v":1469612,"d":"1,469,612.00 RSD"}},{"$f":"SUM($C$36:N36)","v":{"v":1609630,"d":"1,609,630.00 RSD"}}]

{"sheet":"STVARNI TROŠKOVI","index":2,"n_rows":37,"n_cols":16,"rows_kept":37,"merged":[[1,10,1,12],[2,10,2,12]]}
[{"$nulls":15}," "]
[null,{"$f":"'PLANIRANI TROŠKOVI'!B2:D3","v":"Ime preduzeća"},{"$nulls":8},{"$f":"naslov_radnog_lista","v":"Detaljne procene troškova"}]
[{"$nulls":10},"Osenčene ćelije su izračunavanja."]
[null,"STVARNI TROŠKOVI","JAN","FEB","MAR","APR","MAJ","JUN","JUL","AVG","SEP","OKT","NOV","DEC","GODINA"]
[null,"Troškovi zaposlenih","Jan","Feb","Mar","Apr","Maj","Jun","Jul","Avg","Sep","Okt","Nov","Dec","GODINA"]
[null,"Plate",{"v":85000,"d":"85,000.00 RSD"},{"v":85000,"d":"85,000.00 RSD"},{"v":85000,"d":"85,000.00 RSD"},{"v":88000,"d":"88,000.00 RSD"},{"v":88000,"d":"88,000.00 RSD"},{"v":88000,"d":"88,000.00 RSD"},{"$nulls":6},{"$f":"SUM(C6:N6)","v":{"v":519000,"d":"519,000.00 RSD"}}]
[null,"Pogodnosti",{"$f":"C6*0.27","v":{"v":22950,"d":"22,950.00 RSD"}},{"v":22950,"d":"22,950.00 RSD"},{"v":22950,"d":"22,950.00 RSD"},{"v":23760,"d":"23,760.00 RSD"},{"v":23760,"d":"23,760.00 RSD"},{"v":23760,"d":"23,760.00 RSD"},{"v":0,"d":"0.00 RSD"},{"v":0,"d":"0.00 RSD"},{"v":0,"d":"0.00 RSD"},{"v":0,"d":"0.00 RSD"},{"v":0,"d":"0.00 RSD"},{"v":0,"d":"0.00 RSD"},{"$f":"SUM(C7:N7)","v":{"v":140130,"d":"140,130.00 RSD"}}]
[null,"Međuvrednost",{"$f":"SUBTOTAL(109,StvarniTroškoviZaposlenih[Jan])","v":{"v":107950,"d":"107,950.00 RSD"}},{"$f":"SUBTOTAL(109,StvarniTroškoviZaposlenih[Feb])","v":{"v":107950,"d":"107,950.00 RSD"}},{"$f":"SUBTOTAL(109,StvarniTroškoviZaposlenih[Mar])","v":{"v":107950,"d":"107,950.00 RSD"}},{"$f":"SUBTOTAL(109,StvarniTroškoviZaposlenih[Apr])","v":{"v":111760,"d":"111,760.00 RSD"}},{"$f":"SUBTOTAL(109,StvarniTroškoviZaposlenih[Maj])","v":{"v":111760,"d":"111,760.00 RSD"}},{"$f":"SUBTOTAL(109,StvarniTroškoviZaposlenih[Jun])","v":{"v":111760,"d":"111,760.00 RSD"}},{"$f":"SUBTOTAL(109,StvarniTroškoviZaposlenih[Jul])","v":{"v":0,"d":"0.00 RSD"}},{"$f":"SUBTOTAL(109,StvarniTroškoviZaposlenih[Avg])","v":{"v":0,"d":"0.00 RSD"}},{"$f":"SUBTOTAL(109,StvarniTroškoviZaposlenih[Sep])","v":{"v":0,"d":"0.00 RSD"}},{"$f":"SUBTOTAL(109,StvarniTroškoviZaposlenih[Okt])","v":{"v":0,"d":"0.00 RSD"}},{"$f":"SUBTOTAL(109,StvarniTroškoviZaposlenih[Nov])","v":{"v":0,"d":"0.00 RSD"}},{"$f":"SUBTOTAL(109,StvarniTroškoviZaposlenih[Dec])","v":{"v":0,"d":"0.00 RSD"}},{"$f":"SUBTOTAL(109,StvarniTroškoviZaposlenih[GODINA])","v":{"v":659130,"d":"659,130.00 RSD"}}]
[]
[null,"Kancelarijski troškovi","Jan","Feb","Mar","Apr","Maj","Jun","Jul","Avg","Sep","Okt","Nov","Dec","GODINA"]
[null,"Zakup kancelarije",{"v":9800,"d":"9,800.00 RSD"},{"v":9800,"d":"9,800.00 RSD"},{"v":9800,"d":"9,800.00 RSD"},{"v":9800,"d":"9,800.00 RSD"},{"v":9800,"d":"9,800.00 RSD"},{"v":9800,"d":"9,800.00 RSD"},{"$nulls":6},{"$f":"SUM(C11:N11)","v":{"v":58800,"d":"58,800.00 RSD"}}]
[null,"Gas",{"v":4,"d":"4.00 RSD"},{"v":430,"d":"430.00 RSD"},{"v":385,"d":"385.00 RSD"},{"v":230,"d":"230.00 RSD"},{"v":87,"d":"87.00 RSD"},{"v":88,"d":"88.00 RSD"},{"$nulls":6},{"v":1224,"d":"1,224.00 RSD"}]
[null,"Struja",{"v":288,"d":"288.00 RSD"},{"v":278,"d":"278.00 RSD"},{"v":268,"d":"268.00 RSD"},{"v":299,"d":"299.00 RSD"},{"v":306,"d":"306.00 RSD"},{"v":290,"d":"290.00 RSD"},{"$nulls":6},{"v":1729,"d":"1,729.00 RSD"}]
[null,"Voda",{"v":35,"d":"35.00 RSD"},{"v":33,"d":"33.00 RSD"},{"v":34,"d":"34.00 RSD"},{"v":36,"d":"36.00 RSD"},{"v":34,"d":"34.00 RSD"},{"v":36,"d":"36.00 RSD"},{"$nulls":6},{"v":208,"d":"208.00 RSD"}]
[null,"Telefon",{"v":224,"d":"224.00 RSD"},{"v":235,"d":"235.00 RSD"},{"v":265,"d":"265.00 RSD"},{"v":245,"d":"245.00 RSD"},{"v":245,"d":"245.00 RSD"},{"v":220,"d":"220.00 RSD"},{"$nulls":6},{"v":1434,"d":"1,434.00 RSD"}]
[null,"Pristup internetu",{"v":180,"d":"180.00 RSD"},{"v":180,"d":"180.00 RSD"},{"v":180,"d":"180.00 RSD"},{"v":180,"d":"180.00 RSD"},{"v":180,"d":"180.00 RSD"},{"v":180,"d":"180.00 RSD"},{"$nulls":6},{"v":1080,"d":"1,080.00 RSD"}]
[null,"Kancelarijski materijal",{"v":256,"d":"256.00 RSD"},{"v":142,"d":"142.00 RSD"},{"v":160,"d":"160.00 RSD"},{"v":221,"d":"221.00 RSD"},{"v":256,"d":"256.00 RSD"},{"v":240,"d":"240.00 RSD"},{"$nulls":6},{"v":1275,"d":"1,275.00 RSD"}]
[null,"Obezbeđenje",{"v":600,"d":"600.00 RSD"},{"v":600,"d":"600.00 RSD"},{"v":600,"d":"600.00 RSD"},{"v":600,"d":"600.00 RSD"},{"v":600,"d":"600.00 RSD"},{"v":600,"d":"600.00 RSD"},{"$nulls":6},{"v":3600,"d":"3,600.00 RSD"}]
[null,"Međuvrednost",{"$f":"SUBTOTAL(109,StvarniKancelarijskiTroškovi[Jan])","v":{"v":11387,"d":"11,387.00 RSD"}},{"$f":"SUBTOTAL(109,StvarniKancelarijskiTroškovi[Feb])","v":{"v":11698,"d":"11,698.00 RSD"}},{"$f":"SUBTOTAL(109,StvarniKancelarijskiTroškovi[Mar])","v":{"v":11692,"d":"11,692.00 RSD"}},{"$f":"SUBTOTAL(109,StvarniKancelarijskiTroškovi[Apr])","v":{"v":11611,"d":"11,611.00 RSD"}},{"$f":"SUBTOTAL(109,StvarniKancelarijskiTroškovi[Maj])","v":{"v":11508,"d":"11,508.00 RSD"}},{"$f":"SUBTOTAL(109,StvarniKancelarijskiTroškovi[Jun])","v":{"v":11454,"d":"11,454.00 RSD"}},{"$f":"SUBTOTAL(109,StvarniKancelarijskiTroškovi[Jul])","v":{"v":0,"d":"0.00 RSD"}},{"$f":"SUBTOTAL(109,StvarniKancelarijskiTroškovi[Avg])","v":{"v":0,"d":"0.00 RSD"}},{"$f":"SUBTOTAL(109,StvarniKancelarijskiTroškovi[Sep])","v":{"v":0,"d":"0.00 RSD"}},{"$f":"SUBTOTAL(109,StvarniKancelarijskiTroškovi[Okt])","v":{"v":0,"d":"0.00 RSD"}},{"$f":"SUBTOTAL(109,StvarniKancelarijskiTroškovi[Nov])","v":{"v":0,"d":"0.00 RSD"}},{"$f":"SUBTOTAL(109,StvarniKancelarijskiTroškovi[Dec])","v":{"v":0,"d":"0.00 RSD"}},{"$f":"SUBTOTAL(109,StvarniKancelarijskiTroškovi[GODINA])","v":{"v":69350,"d":"69,350.00 RSD"}}]
[]
[null,"Troškovi marketinga","Jan","Feb","Mar","Apr","Maj","Jun","Jul","Avg","Sep","Okt","Nov","Dec","GODINA"]
[null,"Hostovanje veb sajta",{"v":500,"d":"500.00 RSD"},{"v":500,"d":"500.00 RSD"},{"v":500,"d":"500.00 RSD"},{"v":500,"d":"500.00 RSD"},{"v":500,"d":"500.00 RSD"},{"v":500,"d":"500.00 RSD"},{"$nulls":6},{"$f":"SUM(C22:N22)","v":{"v":3000,"d":"3,000.00 RSD"}}]
[null,"Ažuriranja veb sajta",{"v":200,"d":"200.00 RSD"},{"v":200,"d":"200.00 RSD"},{"v":200,"d":"200.00 RSD"},{"v":200,"d":"200.00 RSD"},{"v":200,"d":"200.00 RSD"},{"v":1500,"d":"1,500.00 RSD"},{"$nulls":6},{"v":2500,"d":"2,500.00 RSD"}]
[null,"Priprema pratećih materijala",{"v":4800,"d":"4,800.00 RSD"},{"v":0,"d":"0.00 RSD"},{"v":0,"d":"0.00 RSD"},{"v":5500,"d":"5,500.00 RSD"},{"v":0,"d":"0.00 RSD"},{"v":0,"d":"0.00 RSD"},{"$nulls":6},{"v":10300,"d":"10,300.00 RSD"}]
[null,"Štampa pratećih materijala",{"v":100,"d":"100.00 RSD"},{"v":500,"d":"500.00 RSD"},{"v":100,"d":"100.00 RSD"},{"v":100,"d":"100.00 RSD"},{"v":600,"d":"600.00 RSD"},{"v":180,"d":"180.00 RSD"},{"$nulls":6},{"v":1580,"d":"1,580.00 RSD"}]
[null,"Marketinški događaji",{"v":1800,"d":"1,800.00 RSD"},{"v":2200,"d":"2,200.00 RSD"},{"v":2200,"d":"2,200.00 RSD"},{"v":4700,"d":"4,700.00 RSD"},{"v":1500,"d":"1,500.00 RSD"},{"v":2300,"d":"2,300.00 RSD"},{"$nulls":6},{"v":14700,"d":"14,700.00 RSD"}]
[null,"Razni troškovi",{"v":145,"d":"145.00 RSD"},{"v":156,"d":"156.00 RSD"},{"v":123,"d":"123.00 RSD"},{"v":223,"d":"223.00 RSD"},{"v":187,"d":"187.00 RSD"},{"v":245,"d":"245.00 RSD"},{"$nulls":6},{"v":1079,"d":"1,079.00 RSD"}]
[null,"Međuvrednost",{"$f":"SUBTOTAL(109,StvarniTroškoviMarketinga[Jan])","v":{"v":7545,"d":"7,545.00 RSD"}},{"$f":"SUBTOTAL(109,StvarniTroškoviMarketinga[Feb])","v":{"v":3556,"d":"3,556.00 RSD"}},{"$f":"SUBTOTAL(109,StvarniTroškoviMarketinga[Mar])","v":{"v":3123,"d":"3,123.00 RSD"}},{"$f":"SUBTOTAL(109,StvarniTroškoviMarketinga[Apr])","v":{"v":11223,"d":"11,223.00 RSD"}},{"$f":"SUBTOTAL(109,StvarniTroškoviMarketinga[Maj])","v":{"v":2987,"d":"2,987.00 RSD"}},{"$f":"SUBTOTAL(109,StvarniTroškoviMarketinga[Jun])","v":{"v":4725,"d":"4,725.00 RSD"}},{"$f":"SUBTOTAL(109,StvarniTroškoviMarketinga[Jul])","v":{"v":0,"d":"0.00 RSD"}},{"$f":"SUBTOTAL(109,StvarniTroškoviMarketinga[Avg])","v":{"v":0,"d":"0.00 RSD"}},{"$f":"SUBTOTAL(109,StvarniTroškoviMarketinga[Sep])","v":{"v":0,"d":"0.00 RSD"}},{"$f":"SUBTOTAL(109,StvarniTroškoviMarketinga[Okt])","v":{"v":0,"d":"0.00 RSD"}},{"$f":"SUBTOTAL(109,StvarniTroškoviMarketinga[Nov])","v":{"v":0,"d":"0.00 RSD"}},{"$f":"SUBTOTAL(109,StvarniTroškoviMarketinga[Dec])","v":{"v":0,"d":"0.00 RSD"}},{"$f":"SUBTOTAL(109,StvarniTroškoviMarketinga[GODINA])","v":{"v":33159,"d":"33,159.00 RSD"}}]
[]
[null,"Obuka/putovanje","Jan","Feb","Mar","Apr","Maj","Jun","Jul","Avg","Sep","Okt","Nov","Dec","GODINA"]
[null,"Predavanja obuke",{"v":1600,"d":"1,600.00 RSD"},{"v":2400,"d":"2,400.00 RSD"},{"v":1400,"d":"1,400.00 RSD"},{"v":1600,"d":"1,600.00 RSD"},{"v":1200,"d":"1,200.00 RSD"},{"v":2800,"d":"2,800.00 RSD"},{"$nulls":6},{"$f":"SUM(C31:N31)","v":{"v":11000,"d":"11,000.00 RSD"}}]
[null,"Putni troškovi u vezi sa obukom",{"v":1200,"d":"1,200.00 RSD"},{"v":2200,"d":"2,200.00 RSD"},{"v":1400,"d":"1,400.00 RSD"},{"v":1200,"d":"1,200.00 RSD"},{"v":800,"d":"800.00 RSD"},{"v":3500,"d":"3,500.00 RSD"},{"$nulls":6},{"$f":"SUM(C32:N32)","v":{"v":10300,"d":"10,300.00 RSD"}}]
[null,"Međuvrednost",{"$f":"SUBTOTAL(109,StvarniTroškoviObukeIPutniTroškovi[Jan])","v":{"v":2800,"d":"2,800.00 RSD"}},{"$f":"SUBTOTAL(109,StvarniTroškoviObukeIPutniTroškovi[Feb])","v":{"v":4600,"d":"4,600.00 RSD"}},{"$f":"SUBTOTAL(109,StvarniTroškoviObukeIPutniTroškovi[Mar])","v":{"v":2800,"d":"2,800.00 RSD"}},{"$f":"SUBTOTAL(109,StvarniTroškoviObukeIPutniTroškovi[Apr])","v":{"v":2800,"d":"2,800.00 RSD"}},{"$f":"SUBTOTAL(109,StvarniTroškoviObukeIPutniTroškovi[Maj])","v":{"v":2000,"d":"2,000.00 RSD"}},{"$f":"SUBTOTAL(109,StvarniTroškoviObukeIPutniTroškovi[Jun])","v":{"v":6300,"d":"6,300.00 RSD"}},{"$f":"SUBTOTAL(109,StvarniTroškoviObukeIPutniTroškovi[Jul])","v":{"v":0,"d":"0.00 RSD"}},{"$f":"SUBTOTAL(109,StvarniTroškoviObukeIPutniTroškovi[Avg])","v":{"v":0,"d":"0.00 RSD"}},{"$f":"SUBTOTAL(109,StvarniTroškoviObukeIPutniTroškovi[Sep])","v":{"v":0,"d":"0.00 RSD"}},{"$f":"SUBTOTAL(109,StvarniTroškoviObukeIPutniTroškovi[Okt])","v":{"v":0,"d":"0.00 RSD"}},{"$f":"SUBTOTAL(109,StvarniTroškoviObukeIPutniTroškovi[Nov])","v":{"v":0,"d":"0.00 RSD"}},{"$f":"SUBTOTAL(109,StvarniTroškoviObukeIPutniTroškovi[Dec])","v":{"v":0,"d":"0.00 RSD"}},{"$f":"SUBTOTAL(109,StvarniTroškoviObukeIPutniTroškovi[GODINA])","v":{"v":21300,"d":"21,300.00 RSD"}}]
[]
[null,"UKUPNI planirani troškovi","Jan","Feb","Mar","Apr","Maj","Jun","Jul","Avg","Sep","Okt","Nov","Dec","Godina"]
[null,"Mesečni stvarni troškovi",{"$f":"StvarniTroškoviObukeIPutniTroškovi[[#Totals],[Jan]]+StvarniTroškoviMarketinga[[#Totals],[Jan]]+StvarniKancelarijskiTroškovi[[#Totals],[Jan]]+StvarniTroškoviZaposlenih[[#Totals],[Jan]]","v":{"v":129682,"d":"129,682.00 RSD"}},{"$f":"StvarniTroškoviObukeIPutniTroškovi[[#Totals],[Feb]]+StvarniTroškoviMarketinga[[#Totals],[Feb]]+StvarniKancelarijskiTroškovi[[#Totals],[Feb]]+StvarniTroškoviZaposlenih[[#Totals],[Feb]]","v":{"v":127804,"d":"127,804.00 RSD"}},{"$f":"StvarniTroškoviObukeIPutniTroškovi[[#Totals],[Mar]]+StvarniTroškoviMarketinga[[#Totals],[Mar]]+StvarniKancelarijskiTroškovi[[#Totals],[Mar]]+StvarniTroškoviZaposlenih[[#Totals],[Mar]]","v":{"v":125565,"d":"125,565.00 RSD"}},{"$f":"StvarniTroškoviObukeIPutniTroškovi[[#Totals],[Apr]]+StvarniTroškoviMarketinga[[#Totals],[Apr]]+StvarniKancelarijskiTroškovi[[#Totals],[Apr]]+StvarniTroškoviZaposlenih[[#Totals],[Apr]]","v":{"v":137394,"d":"137,394.00 RSD"}},{"$f":"StvarniTroškoviObukeIPutniTroškovi[[#Totals],[Maj]]+StvarniTroškoviMarketinga[[#Totals],[Maj]]+StvarniKancelarijskiTroškovi[[#Totals],[Maj]]+StvarniTroškoviZaposlenih[[#Totals],[Maj]]","v":{"v":128255,"d":"128,255.00 RSD"}},{"$f":"StvarniTroškoviObukeIPutniTroškovi[[#Totals],[Jun]]+StvarniTroškoviMarketinga[[#Totals],[Jun]]+StvarniKancelarijskiTroškovi[[#Totals],[Jun]]+StvarniTroškoviZaposlenih[[#Totals],[Jun]]","v":{"v":134239,"d":"134,239.00 RSD"}},{"$f":"StvarniTroškoviObukeIPutniTroškovi[[#Totals],[Jul]]+StvarniTroškoviMarketinga[[#Totals],[Jul]]+StvarniKancelarijskiTroškovi[[#Totals],[Jul]]+StvarniTroškoviZaposlenih[[#Totals],[Jul]]","v":{"v":0,"d":"0.00 RSD"}},{"$f":"StvarniTroškoviObukeIPutniTroškovi[[#Totals],[Avg]]+StvarniTroškoviMarketinga[[#Totals],[Avg]]+StvarniKancelarijskiTroškovi[[#Totals],[Avg]]+StvarniTroškoviZaposlenih[[#Totals],[Avg]]","v":{"v":0,"d":"0.00 RSD"}},{"$f":"StvarniTroškoviObukeIPutniTroškovi[[#Totals],[Sep]]+StvarniTroškoviMarketinga[[#Totals],[Sep]]+StvarniKancelarijskiTroškovi[[#Totals],[Sep]]+StvarniTroškoviZaposlenih[[#Totals],[Sep]]","v":{"v":0,"d":"0.00 RSD"}},{"$f":"StvarniTroškoviObukeIPutniTroškovi[[#Totals],[Okt]]+StvarniTroškoviMarketinga[[#Totals],[Okt]]+StvarniKancelarijskiTroškovi[[#Totals],[Okt]]+StvarniTroškoviZaposlenih[[#Totals],[Okt]]","v":{"v":0,"d":"0.00 RSD"}},{"$f":"StvarniTroškoviObukeIPutniTroškovi[[#Totals],[Nov]]+StvarniTroškoviMarketinga[[#Totals],[Nov]]+StvarniKancelarijskiTroškovi[[#Totals],[Nov]]+StvarniTroškoviZaposlenih[[#Totals],[Nov]]","v":{"v":0,"d":"0.00 RSD"}},{"$f":"StvarniTroškoviObukeIPutniTroškovi[[#Totals],[Dec]]+StvarniTroškoviMarketinga[[#Totals],[Dec]]+StvarniKancelarijskiTroškovi[[#Totals],[Dec]]+StvarniTroškoviZaposlenih[[#Totals],[Dec]]","v":{"v":0,"d":"0.00 RSD"}},{"$f":"StvarniTroškoviObukeIPutniTroškovi[[#Totals],[GODINA]]+StvarniTroškoviMarketinga[[#Totals],[GODINA]]+StvarniKancelarijskiTroškovi[[#Totals],[GODINA]]+StvarniTroškoviZaposlenih[[#Totals],[GODINA]]","v":{"v":782939,"d":"782,939.00 RSD"}}]
[null,"UKUPNI stvarni troškovi",{"$f":"SUM($C$36:C36)","v":{"v":129682,"d":"129,682.00 RSD"}},{"$f":"SUM($C$36:D36)","v":{"v":257486,"d":"257,486.00 RSD"}},{"$f":"SUM($C$36:E36)","v":{"v":383051,"d":"383,051.00 RSD"}},{"$f":"SUM($C$36:F36)","v":{"v":520445,"d":"520,445.00 RSD"}},{"$f":"SUM($C$36:G36)","v":{"v":648700,"d":"648,700.00 RSD"}},{"$f":"SUM($C$36:H36)","v":{"v":782939,"d":"782,939.00 RSD"}},{"$f":"SUM($C$36:I36)","v":{"v":782939,"d":"782,939.00 RSD"}},{"$f":"SUM($C$36:J36)","v":{"v":782939,"d":"782,939.00 RSD"}},{"$f":"SUM($C$36:K36)","v":{"v":782939,"d":"782,939.00 RSD"}},{"$f":"SUM($C$36:L36)","v":{"v":782939,"d":"782,939.00 RSD"}},{"$f":"SUM($C$36:M36)","v":{"v":782939,"d":"782,939.00 RSD"}},{"$f":"SUM($C$36:N36)","v":{"v":782939,"d":"782,939.00 RSD"}}]

{"sheet":"ODSTUPANJA OD TROŠKOVA","index":3,"n_rows":37,"n_cols":16,"rows_kept":37,"merged":[[1,10,1,12],[2,10,2,12]]}
[{"$nulls":15}," "]
[null,{"$f":"'PLANIRANI TROŠKOVI'!B2:D3","v":"Ime preduzeća"},{"$nulls":8},{"$f":"naslov_radnog_lista","v":"Detaljne procene troškova"}]
[{"$nulls":10},"Osenčene ćelije su izračunavanja."]
[null,"ODSTUPANJA OD TROŠKOVA","JAN","FEB","MAR","APR","MAJ","JUN","JUL","AVG","SEP","OKT","NOV","DEC","GODINA"]
[null,"Troškovi zaposlenih","Jan","Feb","Mar","Apr","Maj","Jun","Jul","Avg","Sep","Okt","Nov","Dec","GODINA"]
[null,"Plate",{"$f":"INDEX(PlaniraniTroškoviZaposlenih[],MATCH(INDEX(OdstupanjaOdTroškovaZaposlenih[],ROW()-ROW(OdstupanjaOdTroškovaZaposlenih[[#Headers],[Jan]]),1),INDEX(PlaniraniTroškoviZaposlenih[],,1),0),MATCH(OdstupanjaOdTroškovaZaposlenih[[#Headers],[Jan]],PlaniraniTroškoviZaposlenih[#Headers],0))-INDEX(StvarniTroškoviZaposlenih[],MATCH(INDEX(OdstupanjaOdTroškovaZaposlenih[],ROW()-ROW(OdstupanjaOdTroškovaZaposlenih[[#Headers],[Jan]]),1),INDEX(PlaniraniTroškoviZaposlenih[],,1),0),MATCH(OdstupanjaOdTroškovaZaposlenih[[#Headers],[Jan]],StvarniTroškoviZaposlenih[#Headers],0))","v":{"v":0,"d":"0.00 RSD"}},{"$f":"INDEX(PlaniraniTroškoviZaposlenih[],MATCH(INDEX(OdstupanjaOdTroškovaZaposlenih[],ROW()-ROW(OdstupanjaOdTroškovaZaposlenih[[#Headers],[Feb]]),1),INDEX(PlaniraniTroškoviZaposlenih[],,1),0),MATCH(OdstupanjaOdTroškovaZaposlenih[[#Headers],[Feb]],PlaniraniTroškoviZaposlenih[#Headers],0))-INDEX(StvarniTroškoviZaposlenih[],MATCH(INDEX(OdstupanjaOdTroškovaZaposlenih[],ROW()-ROW(OdstupanjaOdTroškovaZaposlenih[[#Headers],[Feb]]),1),INDEX(PlaniraniTroškoviZaposlenih[],,1),0),MATCH(OdstupanjaOdTroškovaZaposlenih[[#Headers],[Feb]],StvarniTroškoviZaposlenih[#Headers],0))","v":{"v":0,"d":"0.00 RSD"}},{"$f":"INDEX(PlaniraniTroškoviZaposlenih[],MATCH(INDEX(OdstupanjaOdTroškovaZaposlenih[],ROW()-ROW(OdstupanjaOdTroškovaZaposlenih[[#Headers],[Mar]]),1),INDEX(PlaniraniTroškoviZaposlenih[],,1),0),MATCH(OdstupanjaOdTroškovaZaposlenih[[#Headers],[Mar]],PlaniraniTroškoviZaposlenih[#Headers],0))-INDEX(StvarniTroškoviZaposlenih[],MATCH(INDEX(OdstupanjaOdTroškovaZaposlenih[],ROW()-ROW(OdstupanjaOdTroškovaZaposlenih[[#Headers],[Mar]]),1),INDEX(PlaniraniTroškoviZaposlenih[],,1),0),MATCH(OdstupanjaOdTroškovaZaposlenih[[#Headers],[Mar]],StvarniTroškoviZaposlenih[#Headers],0))","v":{"v":0,"d":"0.00 RSD"}},{"$f":"INDEX(PlaniraniTroškoviZaposlenih[],MATCH(INDEX(OdstupanjaOdTroškovaZaposlenih[],ROW()-ROW(OdstupanjaOdTroškovaZaposlenih[[#Headers],[Apr]]),1),INDEX(PlaniraniTroškoviZaposlenih[],,1),0),MATCH(OdstupanjaOdTroškovaZaposlenih[[#Headers],[Apr]],PlaniraniTroškoviZaposlenih[#Headers],0))-INDEX(StvarniTroškoviZaposlenih[],MATCH(INDEX(OdstupanjaOdTroškovaZaposlenih[],ROW()-ROW(OdstupanjaOdTroškovaZaposlenih[[#Headers],[Apr]]),1),INDEX(PlaniraniTroškoviZaposlenih[],,1),0),MATCH(OdstupanjaOdTroškovaZaposlenih[[#Headers],[Apr]],StvarniTroškoviZaposlenih[#Headers],0))","v":{"v":-500,"d":"-500.00 RSD"}},{"$f":"INDEX(PlaniraniTroškoviZaposlenih[],MATCH(INDEX(OdstupanjaOdTroškovaZaposlenih[],ROW()-ROW(OdstupanjaOdTroškovaZaposlenih[[#Headers],[Maj]]),1),INDEX(PlaniraniTroškoviZaposlenih[],,1),0),MATCH(OdstupanjaOdTroškovaZaposlenih[[#Headers],[Maj]],PlaniraniTroškoviZaposlenih[#Headers],0))-INDEX(StvarniTroškoviZaposlenih[],MATCH(INDEX(OdstupanjaOdTroškovaZaposlenih[],ROW()-ROW(OdstupanjaOdTroškovaZaposlenih[[#Headers],[Maj]]),1),INDEX(PlaniraniTroškoviZaposlenih[],,1),0),MATCH(OdstupanjaOdTroškovaZaposlenih[[#Headers],[Maj]],StvarniTroškoviZaposlenih[#Headers],0))","v":{"v":-500,"d":"-500.00 RSD"}},{"$f":"INDEX(PlaniraniTroškoviZaposlenih[],MATCH(INDEX(OdstupanjaOdTroškovaZaposlenih[],ROW()-ROW(OdstupanjaOdTroškovaZaposlenih[[#Headers],[Jun]]),1),INDEX(PlaniraniTroškoviZaposlenih[],,1),0),MATCH(OdstupanjaOdTroškovaZaposlenih[[#Headers],[Jun]],PlaniraniTroškoviZaposlenih[#Headers],0))-INDEX(StvarniTroškoviZaposlenih[],MATCH(INDEX(OdstupanjaOdTroškovaZaposlenih[],ROW()-ROW(OdstupanjaOdTroškovaZaposlenih[[#Headers],[Jun]]),1),INDEX(PlaniraniTroškoviZaposlenih[],,1),0),MATCH(OdstupanjaOdTroškovaZaposlenih[[#Headers],[Jun]],StvarniTroškoviZaposlenih[#Headers],0))","v":{"v":-500,"d":"-500.00 RSD"}},{"$f":"INDEX(PlaniraniTroškoviZaposlenih[],MATCH(INDEX(OdstupanjaOdTroškovaZaposlenih[],ROW()-ROW(OdstupanjaOdTroškovaZaposlenih[[#Headers],[Jul]]),1),INDEX(PlaniraniTroškoviZaposlenih[],,1),0),MATCH(OdstupanjaOdTroškovaZaposlenih[[#Headers],[Jul]],PlaniraniTroškoviZaposlenih[#Headers],0))-INDEX(StvarniTroškoviZaposlenih[],MATCH(INDEX(OdstupanjaOdTroškovaZaposlenih[],ROW()-ROW(OdstupanjaOdTroškovaZaposlenih[[#Headers],[Jul]]),1),INDEX(PlaniraniTroškoviZaposlenih[],,1),0),MATCH(OdstupanjaOdTroškovaZaposlenih[[#Headers],[Jul]],StvarniTroškoviZaposlenih[#Headers],0))","v":{"v":87500,"d":"87,500.00 RSD"}},{"$f":"INDEX(PlaniraniTroškoviZaposlenih[],MATCH(INDEX(OdstupanjaOdTroškovaZaposlenih[],ROW()-ROW(OdstupanjaOdTroškovaZaposlenih[[#Headers],[Avg]]),1),INDEX(PlaniraniTroškoviZaposlenih[],,1),0),MATCH(OdstupanjaOdTroškovaZaposlenih[[#Headers],[Avg]],PlaniraniTroškoviZaposlenih[#Headers],0))-INDEX(StvarniTroškoviZaposlenih[],MATCH(INDEX(OdstupanjaOdTroškovaZaposlenih[],ROW()-ROW(OdstupanjaOdTroškovaZaposlenih[[#Headers],[Avg]]),1),INDEX(PlaniraniTroškoviZaposlenih[],,1),0),MATCH(OdstupanjaOdTroškovaZaposlenih[[#Headers],[Avg]],StvarniTroškoviZaposlenih[#Headers],0))","v":{"v":92400,"d":"92,400.00 RSD"}},{"$f":"INDEX(PlaniraniTroškoviZaposlenih[],MATCH(INDEX(OdstupanjaOdTroškovaZaposlenih[],ROW()-ROW(OdstupanjaOdTroškovaZaposlenih[[#Headers],[Sep]]),1),INDEX(PlaniraniTroškoviZaposlenih[],,1),0),MATCH(OdstupanjaOdTroškovaZaposlenih[[#Headers],[Sep]],PlaniraniTroškoviZaposlenih[#Headers],0))-INDEX(StvarniTroškoviZaposlenih[],MATCH(INDEX(OdstupanjaOdTroškovaZaposlenih[],ROW()-ROW(OdstupanjaOdTroškovaZaposlenih[[#Headers],[Sep]]),1),INDEX(PlaniraniTroškoviZaposlenih[],,1),0),MATCH(OdstupanjaOdTroškovaZaposlenih[[#Headers],[Sep]],StvarniTroškoviZaposlenih[#Headers],0))","v":{"v":92400,"d":"92,400.00 RSD"}},{"$f":"INDEX(PlaniraniTroškoviZaposlenih[],MATCH(INDEX(OdstupanjaOdTroškovaZaposlenih[],ROW()-ROW(OdstupanjaOdTroškovaZaposlenih[[#Headers],[Okt]]),1),INDEX(PlaniraniTroškoviZaposlenih[],,1),0),MATCH(OdstupanjaOdTroškovaZaposlenih[[#Headers],[Okt]],PlaniraniTroškoviZaposlenih[#Headers],0))-INDEX(StvarniTroškoviZaposlenih[],MATCH(INDEX(OdstupanjaOdTroškovaZaposlenih[],ROW()-ROW(OdstupanjaOdTroškovaZaposlenih[[#Headers],[Okt]]),1),INDEX(PlaniraniTroškoviZaposlenih[],,1),0),MATCH(OdstupanjaOdTroškovaZaposlenih[[#Headers],[Okt]],StvarniTroškoviZaposlenih[#Headers],0))","v":{"v":92400,"d":"92,400.00 RSD"}},{"$f":"INDEX(PlaniraniTroškoviZaposlenih[],MATCH(INDEX(OdstupanjaOdTroškovaZaposlenih[],ROW()-ROW(OdstupanjaOdTroškovaZaposlenih[[#Headers],[Nov]]),1),INDEX(PlaniraniTroškoviZaposlenih[],,1),0),MATCH(OdstupanjaOdTroškovaZaposlenih[[#Headers],[Nov]],PlaniraniTroškoviZaposlenih[#Headers],0))-INDEX(StvarniTroškoviZaposlenih[],MATCH(INDEX(OdstupanjaOdTroškovaZaposlenih[],ROW()-ROW(OdstupanjaOdTroškovaZaposlenih[[#Headers],[Nov]]),1),INDEX(PlaniraniTroškoviZaposlenih[],,1),0),MATCH(OdstupanjaOdTroškovaZaposlenih[[#Headers],[Nov]],StvarniTroškoviZaposlenih[#Headers],0))","v":{"v":92400,"d":"92,400.00 RSD"}},{"$f":"INDEX(PlaniraniTroškoviZaposlenih[],MATCH(INDEX(OdstupanjaOdTroškovaZaposlenih[],ROW()-ROW(OdstupanjaOdTroškovaZaposlenih[[#Headers],[Dec]]),1),INDEX(PlaniraniTroškoviZaposlenih[],,1),0),MATCH(OdstupanjaOdTroškovaZaposlenih[[#Headers],[Dec]],PlaniraniTroškoviZaposlenih[#Headers],0))-INDEX(StvarniTroškoviZaposlenih[],MATCH(INDEX(OdstupanjaOdTroškovaZaposlenih[],ROW()-ROW(OdstupanjaOdTroškovaZaposlenih[[#Headers],[Dec]]),1),INDEX(PlaniraniTroškoviZaposlenih[],,1),0),MATCH(OdstupanjaOdTroškovaZaposlenih[[#Headers],[Dec]],StvarniTroškoviZaposlenih[#Headers],0))","v":{"v":92400,"d":"92,400.00 RSD"}},{"$f":"SUM(OdstupanjaOdTroškovaZaposlenih[[#This Row],[Jan]:[Dec]])","v":{"v":548000,"d":"548,000.00 RSD"}}]
[null,"Pogodnosti",{"$f":"INDEX(PlaniraniTroškoviZaposlenih[],MATCH(INDEX(OdstupanjaOdTroškovaZaposlenih[],ROW()-ROW(OdstupanjaOdTroškovaZaposlenih[[#Headers],[Jan]]),1),INDEX(PlaniraniTroškoviZaposlenih[],,1),0),MATCH(OdstupanjaOdTroškovaZaposlenih[[#Headers],[Jan]],PlaniraniTroškoviZaposlenih[#Headers],0))-INDEX(StvarniTroškoviZaposlenih[],MATCH(INDEX(OdstupanjaOdTroškovaZaposlenih[],ROW()-ROW(OdstupanjaOdTroškovaZaposlenih[[#Headers],[Jan]]),1),INDEX(PlaniraniTroškoviZaposlenih[],,1),0),MATCH(OdstupanjaOdTroškovaZaposlenih[[#Headers],[Jan]],StvarniTroškoviZaposlenih[#Headers],0))","v":{"v":0,"d":"0.00 RSD"}},{"$f":"INDEX(PlaniraniTroškoviZaposlenih[],MATCH(INDEX(OdstupanjaOdTroškovaZaposlenih[],ROW()-ROW(OdstupanjaOdTroškovaZaposlenih[[#Headers],[Feb]]),1),INDEX(PlaniraniTroškoviZaposlenih[],,1),0),MATCH(OdstupanjaOdTroškovaZaposlenih[[#Headers],[Feb]],PlaniraniTroškoviZaposlenih[#Headers],0))-INDEX(StvarniTroškoviZaposlenih[],MATCH(INDEX(OdstupanjaOdTroškovaZaposlenih[],ROW()-ROW(OdstupanjaOdTroškovaZaposlenih[[#Headers],[Feb]]),1),INDEX(PlaniraniTroškoviZaposlenih[],,1),0),MATCH(OdstupanjaOdTroškovaZaposlenih[[#Headers],[Feb]],StvarniTroškoviZaposlenih[#Headers],0))","v":{"v":0,"d":"0.00 RSD"}},{"$f":"INDEX(PlaniraniTroškoviZaposlenih[],MATCH(INDEX(OdstupanjaOdTroškovaZaposlenih[],ROW()-ROW(OdstupanjaOdTroškovaZaposlenih[[#Headers],[Mar]]),1),INDEX(PlaniraniTroškoviZaposlenih[],,1),0),MATCH(OdstupanjaOdTroškovaZaposlenih[[#Headers],[Mar]],PlaniraniTroškoviZaposlenih[#Headers],0))-INDEX(StvarniTroškoviZaposlenih[],MATCH(INDEX(OdstupanjaOdTroškovaZaposlenih[],ROW()-ROW(OdstupanjaOdTroškovaZaposlenih[[#Headers],[Mar]]),1),INDEX(PlaniraniTroškoviZaposlenih[],,1),0),MATCH(OdstupanjaOdTroškovaZaposlenih[[#Headers],[Mar]],StvarniTroškoviZaposlenih[#Headers],0))","v":{"v":0,"d":"0.00 RSD"}},{"$f":"INDEX(PlaniraniTroškoviZaposlenih[],MATCH(INDEX(OdstupanjaOdTroškovaZaposlenih[],ROW()-ROW(OdstupanjaOdTroškovaZaposlenih[[#Headers],[Apr]]),1),INDEX(PlaniraniTroškoviZaposlenih[],,1),0),MATCH(OdstupanjaOdTroškovaZaposlenih[[#Headers],[Apr]],PlaniraniTroškoviZaposlenih[#Headers],0))-INDEX(StvarniTroškoviZaposlenih[],MATCH(INDEX(OdstupanjaOdTroškovaZaposlenih[],ROW()-ROW(OdstupanjaOdTroškovaZaposlenih[[#Headers],[Apr]]),1),INDEX(PlaniraniTroškoviZaposlenih[],,1),0),MATCH(OdstupanjaOdTroškovaZaposlenih[[#Headers],[Apr]],StvarniTroškoviZaposlenih[#Headers],0))","v":{"v":-135,"d":"-135.00 RSD"}},{"$f":"INDEX(PlaniraniTroškoviZaposlenih[],MATCH(INDEX(OdstupanjaOdTroškovaZaposlenih[],ROW()-ROW(OdstupanjaOdTroškovaZaposlenih[[#Headers],[Maj]]),1),INDEX(PlaniraniTroškoviZaposlenih[],,1),0),MATCH(OdstupanjaOdTroškovaZaposlenih[[#Headers],[Maj]],PlaniraniTroškoviZaposlenih[#Headers],0))-INDEX(StvarniTroškoviZaposlenih[],MATCH(INDEX(OdstupanjaOdTroškovaZaposlenih[],ROW()-ROW(OdstupanjaOdTroškovaZaposlenih[[#Headers],[Maj]]),1),INDEX(PlaniraniTroškoviZaposlenih[],,1),0),MATCH(OdstupanjaOdTroškovaZaposlenih[[#Headers],[Maj]],StvarniTroškoviZaposlenih[#Headers],0))","v":{"v":-135,"d":"-135.00 RSD"}},{"$f":"INDEX(PlaniraniTroškoviZaposlenih[],MATCH(INDEX(OdstupanjaOdTroškovaZaposlenih[],ROW()-ROW(OdstupanjaOdTroškovaZaposlenih[[#Headers],[Jun]]),1),INDEX(PlaniraniTroškoviZaposlenih[],,1),0),MATCH(OdstupanjaOdTroškovaZaposlenih[[#Headers],[Jun]],PlaniraniTroškoviZaposlenih[#Headers],0))-INDEX(StvarniTroškoviZaposlenih[],MATCH(INDEX(OdstupanjaOdTroškovaZaposlenih[],ROW()-ROW(OdstupanjaOdTroškovaZaposlenih[[#Headers],[Jun]]),1),INDEX(PlaniraniTroškoviZaposlenih[],,1),0),MATCH(OdstupanjaOdTroškovaZaposlenih[[#Headers],[Jun]],StvarniTroškoviZaposlenih[#Headers],0))","v":{"v":-135,"d":"-135.00 RSD"}},{"$f":"INDEX(PlaniraniTroškoviZaposlenih[],MATCH(INDEX(OdstupanjaOdTroškovaZaposlenih[],ROW()-ROW(OdstupanjaOdTroškovaZaposlenih[[#Headers],[Jul]]),1),INDEX(PlaniraniTroškoviZaposlenih[],,1),0),MATCH(OdstupanjaOdTroškovaZaposlenih[[#Headers],[Jul]],PlaniraniTroškoviZaposlenih[#Headers],0))-INDEX(StvarniTroškoviZaposlenih[],MATCH(INDEX(OdstupanjaOdTroškovaZaposlenih[],ROW()-ROW(OdstupanjaOdTroškovaZaposlenih[[#Headers],[Jul]]),1),INDEX(PlaniraniTroškoviZaposlenih[],,1),0),MATCH(OdstupanjaOdTroškovaZaposlenih[[#Headers],[Jul]],StvarniTroškoviZaposlenih[#Headers],0))","v":{"v":23625,"d":"23,625.00 RSD"}},{"$f":"INDEX(PlaniraniTroškoviZaposlenih[],MATCH(INDEX(OdstupanjaOdTroškovaZaposlenih[],ROW()-ROW(OdstupanjaOdTroškovaZaposlenih[[#Headers],[Avg]]),1),INDEX(PlaniraniTroškoviZaposlenih[],,1),0),MATCH(OdstupanjaOdTroškovaZaposlenih[[#Headers],[Avg]],PlaniraniTroškoviZaposlenih[#Headers],0))-INDEX(StvarniTroškoviZaposlenih[],MATCH(INDEX(OdstupanjaOdTroškovaZaposlenih[],ROW()-ROW(OdstupanjaOdTroškovaZaposlenih[[#Headers],[Avg]]),1),INDEX(PlaniraniTroškoviZaposlenih[],,1),0),MATCH(OdstupanjaOdTroškovaZaposlenih[[#Headers],[Avg]],StvarniTroškoviZaposlenih[#Headers],0))","v":{"v":24948,"d":"24,948.00 RSD"}},{"$f":"INDEX(PlaniraniTroškoviZaposlenih[],MATCH(INDEX(OdstupanjaOdTroškovaZaposlenih[],ROW()-ROW(OdstupanjaOdTroškovaZaposlenih[[#Headers],[Sep]]),1),INDEX(PlaniraniTroškoviZaposlenih[],,1),0),MATCH(OdstupanjaOdTroškovaZaposlenih[[#Headers],[Sep]],PlaniraniTroškoviZaposlenih[#Headers],0))-INDEX(StvarniTroškoviZaposlenih[],MATCH(INDEX(OdstupanjaOdTroškovaZaposlenih[],ROW()-ROW(OdstupanjaOdTroškovaZaposlenih[[#Headers],[Sep]]),1),INDEX(PlaniraniTroškoviZaposlenih[],,1),0),MATCH(OdstupanjaOdTroškovaZaposlenih[[#Headers],[Sep]],StvarniTroškoviZaposlenih[#Headers],0))","v":{"v":24948,"d":"24,948.00 RSD"}},{"$f":"INDEX(PlaniraniTroškoviZaposlenih[],MATCH(INDEX(OdstupanjaOdTroškovaZaposlenih[],ROW()-ROW(OdstupanjaOdTroškovaZaposlenih[[#Headers],[Okt]]),1),INDEX(PlaniraniTroškoviZaposlenih[],,1),0),MATCH(OdstupanjaOdTroškovaZaposlenih[[#Headers],[Okt]],PlaniraniTroškoviZaposlenih[#Headers],0))-INDEX(StvarniTroškoviZaposlenih[],MATCH(INDEX(OdstupanjaOdTroškovaZaposlenih[],ROW()-ROW(OdstupanjaOdTroškovaZaposlenih[[#Headers],[Okt]]),1),INDEX(PlaniraniTroškoviZaposlenih[],,1),0),MATCH(OdstupanjaOdTroškovaZaposlenih[[#Headers],[Okt]],StvarniTroškoviZaposlenih[#Headers],0))","v":{"v":24948,"d":"24,948.00 RSD"}},{"$f":"INDEX(PlaniraniTroškoviZaposlenih[],MATCH(INDEX(OdstupanjaOdTroškovaZaposlenih[],ROW()-ROW(OdstupanjaOdTroškovaZaposlenih[[#Headers],[Nov]]),1),INDEX(PlaniraniTroškoviZaposlenih[],,1),0),MATCH(OdstupanjaOdTroškovaZaposlenih[[#Headers],[Nov]],PlaniraniTroškoviZaposlenih[#Headers],0))-INDEX(StvarniTroškoviZaposlenih[],MATCH(INDEX(OdstupanjaOdTroškovaZaposlenih[],ROW()-ROW(OdstupanjaOdTroškovaZaposlenih[[#Headers],[Nov]]),1),INDEX(PlaniraniTroškoviZaposlenih[],,1),0),MATCH(OdstupanjaOdTroškovaZaposlenih[[#Headers],[Nov]],StvarniTroškoviZaposlenih[#Headers],0))","v":{"v":24948,"d":"24,948.00 RSD"}},{"$f":"INDEX(PlaniraniTroškoviZaposlenih[],MATCH(INDEX(OdstupanjaOdTroškovaZaposlenih[],ROW()-ROW(OdstupanjaOdTroškovaZaposlenih[[#Headers],[Dec]]),1),INDEX(PlaniraniTroškoviZaposlenih[],,1),0),MATCH(OdstupanjaOdTroškovaZaposlenih[[#Headers],[Dec]],PlaniraniTroškoviZaposlenih[#Headers],0))-INDEX(StvarniTroškoviZaposlenih[],MATCH(INDEX(OdstupanjaOdTroškovaZaposlenih[],ROW()-ROW(OdstupanjaOdTroškovaZaposlenih[[#Headers],[Dec]]),1),INDEX(PlaniraniTroškoviZaposlenih[],,1),0),MATCH(OdstupanjaOdTroškovaZaposlenih[[#Headers],[Dec]],StvarniTroškoviZaposlenih[#Headers],0))","v":{"v":24948,"d":"24,948.00 RSD"}},{"$f":"SUM(OdstupanjaOdTroškovaZaposlenih[[#This Row],[Jan]:[Dec]])","v":{"v":147960,"d":"147,960.00 RSD"}}]
[null,"Međuvrednost",{"$f":"SUBTOTAL(109,OdstupanjaOdTroškovaZaposlenih[Jan])","v":{"v":0,"d":"0.00 RSD"}},{"$f":"SUBTOTAL(109,OdstupanjaOdTroškovaZaposlenih[Feb])","v":{"v":0,"d":"0.00 RSD"}},{"$f":"SUBTOTAL(109,OdstupanjaOdTroškovaZaposlenih[Mar])","v":{"v":0,"d":"0.00 RSD"}},{"$f":"SUBTOTAL(109,OdstupanjaOdTroškovaZaposlenih[Apr])","v":{"v":-635,"d":"-635.00 RSD"}},{"$f":"SUBTOTAL(109,OdstupanjaOdTroškovaZaposlenih[Maj])","v":{"v":-635,"d":"-635.00 RSD"}},{"$f":"SUBTOTAL(109,OdstupanjaOdTroškovaZaposlenih[Jun])","v":{"v":-635,"d":"-635.00 RSD"}},{"$f":"SUBTOTAL(109,OdstupanjaOdTroškovaZaposlenih[Jul])","v":{"v":111125,"d":"111,125.00 RSD"}},{"$f":"SUBTOTAL(109,OdstupanjaOdTroškovaZaposlenih[Avg])","v":{"v":117348,"d":"117,348.00 RSD"}},{"$f":"SUBTOTAL(109,OdstupanjaOdTroškovaZaposlenih[Sep])","v":{"v":117348,"d":"117,348.00 RSD"}},{"$f":"SUBTOTAL(109,OdstupanjaOdTroškovaZaposlenih[Okt])","v":{"v":117348,"d":"117,348.00 RSD"}},{"$f":"SUBTOTAL(109,OdstupanjaOdTroškovaZaposlenih[Nov])","v":{"v":117348,"d":"117,348.00 RSD"}},{"$f":"SUBTOTAL(109,OdstupanjaOdTroškovaZaposlenih[Dec])","v":{"v":117348,"d":"117,348.00 RSD"}},{"$f":"SUBTOTAL(109,OdstupanjaOdTroškovaZaposlenih[GODINA])","v":{"v":695960,"d":"695,960.00 RSD"}}]
[]
[null,"Kancelarijski troškovi","Jan","Feb","Mar","Apr","Maj","Jun","Jul","Avg","Sep","Okt","Nov","Dec","GODINA"]
[null,"Zakup kancelarije",{"$f":"INDEX(PlaniraniKancelarijskiTroškovi[],MATCH(INDEX(OdstupanjaOdKancelarijskihTroškova[],ROW()-ROW(OdstupanjaOdKancelarijskihTroškova[[#Headers],[Jan]]),1),INDEX(PlaniraniKancelarijskiTroškovi[],,1),0),MATCH(OdstupanjaOdKancelarijskihTroškova[[#Headers],[Jan]],PlaniraniKancelarijskiTroškovi[#Headers],0))-INDEX(StvarniKancelarijskiTroškovi[],MATCH(INDEX(OdstupanjaOdKancelarijskihTroškova[],ROW()-ROW(OdstupanjaOdKancelarijskihTroškova[[#Headers],[Jan]]),1),INDEX(PlaniraniKancelarijskiTroškovi[],,1),0),MATCH(OdstupanjaOdKancelarijskihTroškova[[#Headers],[Jan]],StvarniKancelarijskiTroškovi[#Headers],0))","v":{"v":0,"d":"0.00 RSD"}},{"$f":"INDEX(PlaniraniKancelarijskiTroškovi[],MATCH(INDEX(OdstupanjaOdKancelarijskihTroškova[],ROW()-ROW(OdstupanjaOdKancelarijskihTroškova[[#Headers],[Feb]]),1),INDEX(PlaniraniKancelarijskiTroškovi[],,1),0),MATCH(OdstupanjaOdKancelarijskihTroškova[[#Headers],[Feb]],PlaniraniKancelarijskiTroškovi[#Headers],0))-INDEX(StvarniKancelarijskiTroškovi[],MATCH(INDEX(OdstupanjaOdKancelarijskihTroškova[],ROW()-ROW(OdstupanjaOdKancelarijskihTroškova[[#Headers],[Feb]]),1),INDEX(PlaniraniKancelarijskiTroškovi[],,1),0),MATCH(OdstupanjaOdKancelarijskihTroškova[[#Headers],[Feb]],StvarniKancelarijskiTroškovi[#Headers],0))","v":{"v":0,"d":"0.00 RSD"}},{"$f":"INDEX(PlaniraniKancelarijskiTroškovi[],MATCH(INDEX(OdstupanjaOdKancelarijskihTroškova[],ROW()-ROW(OdstupanjaOdKancelarijskihTroškova[[#Headers],[Mar]]),1),INDEX(PlaniraniKancelarijskiTroškovi[],,1),0),MATCH(OdstupanjaOdKancelarijskihTroškova[[#Headers],[Mar]],PlaniraniKancelarijskiTroškovi[#Headers],0))-INDEX(StvarniKancelarijskiTroškovi[],MATCH(INDEX(OdstupanjaOdKancelarijskihTroškova[],ROW()-ROW(OdstupanjaOdKancelarijskihTroškova[[#Headers],[Mar]]),1),INDEX(PlaniraniKancelarijskiTroškovi[],,1),0),MATCH(OdstupanjaOdKancelarijskihTroškova[[#Headers],[Mar]],StvarniKancelarijskiTroškovi[#Headers],0))","v":{"v":0,"d":"0.00 RSD"}},{"$f":"INDEX(PlaniraniKancelarijskiTroškovi[],MATCH(INDEX(OdstupanjaOdKancelarijskihTroškova[],ROW()-ROW(OdstupanjaOdKancelarijskihTroškova[[#Headers],[Apr]]),1),INDEX(PlaniraniKancelarijskiTroškovi[],,1),0),MATCH(OdstupanjaOdKancelarijskihTroškova[[#Headers],[Apr]],PlaniraniKancelarijskiTroškovi[#Headers],0))-INDEX(StvarniKancelarijskiTroškovi[],MATCH(INDEX(OdstupanjaOdKancelarijskihTroškova[],ROW()-ROW(OdstupanjaOdKancelarijskihTroškova[[#Headers],[Apr]]),1),INDEX(PlaniraniKancelarijskiTroškovi[],,1),0),MATCH(OdstupanjaOdKancelarijskihTroškova[[#Headers],[Apr]],StvarniKancelarijskiTroškovi[#Headers],0))","v":{"v":0,"d":"0.00 RSD"}},{"$f":"INDEX(PlaniraniKancelarijskiTroškovi[],MATCH(INDEX(OdstupanjaOdKancelarijskihTroškova[],ROW()-ROW(OdstupanjaOdKancelarijskihTroškova[[#Headers],[Maj]]),1),INDEX(PlaniraniKancelarijskiTroškovi[],,1),0),MATCH(OdstupanjaOdKancelarijskihTroškova[[#Headers],[Maj]],PlaniraniKancelarijskiTroškovi[#Headers],0))-INDEX(StvarniKancelarijskiTroškovi[],MATCH(INDEX(OdstupanjaOdKancelarijskihTroškova[],ROW()-ROW(OdstupanjaOdKancelarijskihTroškova[[#Headers],[Maj]]),1),INDEX(PlaniraniKancelarijskiTroškovi[],,1),0),MATCH(OdstupanjaOdKancelarijskihTroškova[[#Headers],[Maj]],StvarniKancelarijskiTroškovi[#Headers],0))","v":{"v":0,"d":"0.00 RSD"}},{"$f":"INDEX(PlaniraniKancelarijskiTroškovi[],MATCH(INDEX(OdstupanjaOdKancelarijskihTroškova[],ROW()-ROW(OdstupanjaOdKancelarijskihTroškova[[#Headers],[Jun]]),1),INDEX(PlaniraniKancelarijskiTroškovi[],,1),0),MATCH(OdstupanjaOdKancelarijskihTroškova[[#Headers],[Jun]],PlaniraniKancelarijskiTroškovi[#Headers],0))-INDEX(StvarniKancelarijskiTroškovi[],MATCH(INDEX(OdstupanjaOdKancelarijskihTroškova[],ROW()-ROW(OdstupanjaOdKancelarijskihTroškova[[#Headers],[Jun]]),1),INDEX(PlaniraniKancelarijskiTroškovi[],,1),0),MATCH(OdstupanjaOdKancelarijskihTroškova[[#Headers],[Jun]],StvarniKancelarijskiTroškovi[#Headers],0))","v":{"v":0,"d":"0.00 RSD"}},{"$f":"INDEX(PlaniraniKancelarijskiTroškovi[],MATCH(INDEX(OdstupanjaOdKancelarijskihTroškova[],ROW()-ROW(OdstupanjaOdKancelarijskihTroškova[[#Headers],[Jul]]),1),INDEX(PlaniraniKancelarijskiTroškovi[],,1),0),MATCH(OdstupanjaOdKancelarijskihTroškova[[#Headers],[Jul]],PlaniraniKancelarijskiTroškovi[#Headers],0))-INDEX(StvarniKancelarijskiTroškovi[],MATCH(INDEX(OdstupanjaOdKancelarijskihTroškova[],ROW()-ROW(OdstupanjaOdKancelarijskihTroškova[[#Headers],[Jul]]),1),INDEX(PlaniraniKancelarijskiTroškovi[],,1),0),MATCH(OdstupanjaOdKancelarijskihTroškova[[#Headers],[Jul]],StvarniKancelarijskiTroškovi[#Headers],0))","v":{"v":9800,"d":"9,800.00 RSD"}},{"$f":"INDEX(PlaniraniKancelarijskiTroškovi[],MATCH(INDEX(OdstupanjaOdKancelarijskihTroškova[],ROW()-ROW(OdstupanjaOdKancelarijskihTroškova[[#Headers],[Avg]]),1),INDEX(PlaniraniKancelarijskiTroškovi[],,1),0),MATCH(OdstupanjaOdKancelarijskihTroškova[[#Headers],[Avg]],PlaniraniKancelarijskiTroškovi[#Headers],0))-INDEX(StvarniKancelarijskiTroškovi[],MATCH(INDEX(OdstupanjaOdKancelarijskihTroškova[],ROW()-ROW(OdstupanjaOdKancelarijskihTroškova[[#Headers],[Avg]]),1),INDEX(PlaniraniKancelarijskiTroškovi[],,1),0),MATCH(OdstupanjaOdKancelarijskihTroškova[[#Headers],[Avg]],StvarniKancelarijskiTroškovi[#Headers],0))","v":{"v":9800,"d":"9,800.00 RSD"}},{"$f":"INDEX(PlaniraniKancelarijskiTroškovi[],MATCH(INDEX(OdstupanjaOdKancelarijskihTroškova[],ROW()-ROW(OdstupanjaOdKancelarijskihTroškova[[#Headers],[Sep]]),1),INDEX(PlaniraniKancelarijskiTroškovi[],,1),0),MATCH(OdstupanjaOdKancelarijskihTroškova[[#Headers],[Sep]],PlaniraniKancelarijskiTroškovi[#Headers],0))-INDEX(StvarniKancelarijskiTroškovi[],MATCH(INDEX(OdstupanjaOdKancelarijskihTroškova[],ROW()-ROW(OdstupanjaOdKancelarijskihTroškova[[#Headers],[Sep]]),1),INDEX(PlaniraniKancelarijskiTroškovi[],,1),0),MATCH(OdstupanjaOdKancelarijskihTroškova[[#Headers],[Sep]],StvarniKancelarijskiTroškovi[#Headers],0))","v":{"v":9800,"d":"9,800.00 RSD"}},{"$f":"INDEX(PlaniraniKancelarijskiTroškovi[],MATCH(INDEX(OdstupanjaOdKancelarijskihTroškova[],ROW()-ROW(OdstupanjaOdKancelarijskihTroškova[[#Headers],[Okt]]),1),INDEX(PlaniraniKancelarijskiTroškovi[],,1),0),MATCH(OdstupanjaOdKancelarijskihTroškova[[#Headers],[Okt]],PlaniraniKancelarijskiTroškovi[#Headers],0))-INDEX(StvarniKancelarijskiTroškovi[],MATCH(INDEX(OdstupanjaOdKancelarijskihTroškova[],ROW()-ROW(OdstupanjaOdKancelarijskihTroškova[[#Headers],[Okt]]),1),INDEX(PlaniraniKancelarijskiTroškovi[],,1),0),MATCH(OdstupanjaOdKancelarijskihTroškova[[#Headers],[Okt]],StvarniKancelarijskiTroškovi[#Headers],0))","v":{"v":9800,"d":"9,800.00 RSD"}},{"$f":"INDEX(PlaniraniKancelarijskiTroškovi[],MATCH(INDEX(OdstupanjaOdKancelarijskihTroškova[],ROW()-ROW(OdstupanjaOdKancelarijskihTroškova[[#Headers],[Nov]]),1),INDEX(PlaniraniKancelarijskiTroškovi[],,1),0),MATCH(OdstupanjaOdKancelarijskihTroškova[[#Headers],[Nov]],PlaniraniKancelarijskiTroškovi[#Headers],0))-INDEX(StvarniKancelarijskiTroškovi[],MATCH(INDEX(OdstupanjaOdKancelarijskihTroškova[],ROW()-ROW(OdstupanjaOdKancelarijskihTroškova[[#Headers],[Nov]]),1),INDEX(PlaniraniKancelarijskiTroškovi[],,1),0),MATCH(OdstupanjaOdKancelarijskihTroškova[[#Headers],[Nov]],StvarniKancelarijskiTroškovi[#Headers],0))","v":{"v":9800,"d":"9,800.00 RSD"}},{"$f":"INDEX(PlaniraniKancelarijskiTroškovi[],MATCH(INDEX(OdstupanjaOdKancelarijskihTroškova[],ROW()-ROW(OdstupanjaOdKancelarijskihTroškova[[#Headers],[Dec]]),1),INDEX(PlaniraniKancelarijskiTroškovi[],,1),0),MATCH(OdstupanjaOdKancelarijskihTroškova[[#Headers],[Dec]],PlaniraniKancelarijskiTroškovi[#Headers],0))-INDEX(StvarniKancelarijskiTroškovi[],MATCH(INDEX(OdstupanjaOdKancelarijskihTroškova[],ROW()-ROW(OdstupanjaOdKancelarijskihTroškova[[#Headers],[Dec]]),1),INDEX(PlaniraniKancelarijskiTroškovi[],,1),0),MATCH(OdstupanjaOdKancelarijskihTroškova[[#Headers],[Dec]],StvarniKancelarijskiTroškovi[#Headers],0))","v":{"v":9800,"d":"9,800.00 RSD"}},{"$f":"SUM(OdstupanjaOdKancelarijskihTroškova[[#This Row],[Jan]:[Dec]])","v":{"v":58800,"d":"58,800.00 RSD"}}]
[null,"Gas",{"$f":"INDEX(PlaniraniKancelarijskiTroškovi[],MATCH(INDEX(OdstupanjaOdKancelarijskihTroškova[],ROW()-ROW(OdstupanjaOdKancelarijskihTroškova[[#Headers],[Jan]]),1),INDEX(PlaniraniKancelarijskiTroškovi[],,1),0),MATCH(OdstupanjaOdKancelarijskihTroškova[[#Headers],[Jan]],PlaniraniKancelarijskiTroškovi[#Headers],0))-INDEX(StvarniKancelarijskiTroškovi[],MATCH(INDEX(OdstupanjaOdKancelarijskihTroškova[],ROW()-ROW(OdstupanjaOdKancelarijskihTroškova[[#Headers],[Jan]]),1),INDEX(PlaniraniKancelarijskiTroškovi[],,1),0),MATCH(OdstupanjaOdKancelarijskihTroškova[[#Headers],[Jan]],StvarniKancelarijskiTroškovi[#Headers],0))","v":{"v":-4,"d":"-4.00 RSD"}},{"$f":"INDEX(PlaniraniKancelarijskiTroškovi[],MATCH(INDEX(OdstupanjaOdKancelarijskihTroškova[],ROW()-ROW(OdstupanjaOdKancelarijskihTroškova[[#Headers],[Feb]]),1),INDEX(PlaniraniKancelarijskiTroškovi[],,1),0),MATCH(OdstupanjaOdKancelarijskihTroškova[[#Headers],[Feb]],PlaniraniKancelarijskiTroškovi[#Headers],0))-INDEX(StvarniKancelarijskiTroškovi[],MATCH(INDEX(OdstupanjaOdKancelarijskihTroškova[],ROW()-ROW(OdstupanjaOdKancelarijskihTroškova[[#Headers],[Feb]]),1),INDEX(PlaniraniKancelarijskiTroškovi[],,1),0),MATCH(OdstupanjaOdKancelarijskihTroškova[[#Headers],[Feb]],StvarniKancelarijskiTroškovi[#Headers],0))","v":{"v":-30,"d":"-30.00 RSD"}},{"$f":"INDEX(PlaniraniKancelarijskiTroškovi[],MATCH(INDEX(OdstupanjaOdKancelarijskihTroškova[],ROW()-ROW(OdstupanjaOdKancelarijskihTroškova[[#Headers],[Mar]]),1),INDEX(PlaniraniKancelarijskiTroškovi[],,1),0),MATCH(OdstupanjaOdKancelarijskihTroškova[[#Headers],[Mar]],PlaniraniKancelarijskiTroškovi[#Headers],0))-INDEX(StvarniKancelarijskiTroškovi[],MATCH(INDEX(OdstupanjaOdKancelarijskihTroškova[],ROW()-ROW(OdstupanjaOdKancelarijskihTroškova[[#Headers],[Mar]]),1),INDEX(PlaniraniKancelarijskiTroškovi[],,1),0),MATCH(OdstupanjaOdKancelarijskihTroškova[[#Headers],[Mar]],StvarniKancelarijskiTroškovi[#Headers],0))","v":{"v":15,"d":"15.00 RSD"}},{"$f":"INDEX(PlaniraniKancelarijskiTroškovi[],MATCH(INDEX(OdstupanjaOdKancelarijskihTroškova[],ROW()-ROW(OdstupanjaOdKancelarijskihTroškova[[#Headers],[Apr]]),1),INDEX(PlaniraniKancelarijskiTroškovi[],,1),0),MATCH(OdstupanjaOdKancelarijskihTroškova[[#Headers],[Apr]],PlaniraniKancelarijskiTroškovi[#Headers],0))-INDEX(StvarniKancelarijskiTroškovi[],MATCH(INDEX(OdstupanjaOdKancelarijskihTroškova[],ROW()-ROW(OdstupanjaOdKancelarijskihTroškova[[#Headers],[Apr]]),1),INDEX(PlaniraniKancelarijskiTroškovi[],,1),0),MATCH(OdstupanjaOdKancelarijskihTroškova[[#Headers],[Apr]],StvarniKancelarijskiTroškovi[#Headers],0))","v":{"v":-130,"d":"-130.00 RSD"}},{"$f":"INDEX(PlaniraniKancelarijskiTroškovi[],MATCH(INDEX(OdstupanjaOdKancelarijskihTroškova[],ROW()-ROW(OdstupanjaOdKancelarijskihTroškova[[#Headers],[Maj]]),1),INDEX(PlaniraniKancelarijskiTroškovi[],,1),0),MATCH(OdstupanjaOdKancelarijskihTroškova[[#Headers],[Maj]],PlaniraniKancelarijskiTroškovi[#Headers],0))-INDEX(StvarniKancelarijskiTroškovi[],MATCH(INDEX(OdstupanjaOdKancelarijskihTroškova[],ROW()-ROW(OdstupanjaOdKancelarijskihTroškova[[#Headers],[Maj]]),1),INDEX(PlaniraniKancelarijskiTroškovi[],,1),0),MATCH(OdstupanjaOdKancelarijskihTroškova[[#Headers],[Maj]],StvarniKancelarijskiTroškovi[#Headers],0))","v":{"v":13,"d":"13.00 RSD"}},{"$f":"INDEX(PlaniraniKancelarijskiTroškovi[],MATCH(INDEX(OdstupanjaOdKancelarijskihTroškova[],ROW()-ROW(OdstupanjaOdKancelarijskihTroškova[[#Headers],[Jun]]),1),INDEX(PlaniraniKancelarijskiTroškovi[],,1),0),MATCH(OdstupanjaOdKancelarijskihTroškova[[#Headers],[Jun]],PlaniraniKancelarijskiTroškovi[#Headers],0))-INDEX(StvarniKancelarijskiTroškovi[],MATCH(INDEX(OdstupanjaOdKancelarijskihTroškova[],ROW()-ROW(OdstupanjaOdKancelarijskihTroškova[[#Headers],[Jun]]),1),INDEX(PlaniraniKancelarijskiTroškovi[],,1),0),MATCH(OdstupanjaOdKancelarijskihTroškova[[#Headers],[Jun]],StvarniKancelarijskiTroškovi[#Headers],0))","v":{"v":12,"d":"12.00 RSD"}},{"$f":"INDEX(PlaniraniKancelarijskiTroškovi[],MATCH(INDEX(OdstupanjaOdKancelarijskihTroškova[],ROW()-ROW(OdstupanjaOdKancelarijskihTroškova[[#Headers],[Jul]]),1),INDEX(PlaniraniKancelarijskiTroškovi[],,1),0),MATCH(OdstupanjaOdKancelarijskihTroškova[[#Headers],[Jul]],PlaniraniKancelarijskiTroškovi[#Headers],0))-INDEX(StvarniKancelarijskiTroškovi[],MATCH(INDEX(OdstupanjaOdKancelarijskihTroškova[],ROW()-ROW(OdstupanjaOdKancelarijskihTroškova[[#Headers],[Jul]]),1),INDEX(PlaniraniKancelarijskiTroškovi[],,1),0),MATCH(OdstupanjaOdKancelarijskihTroškova[[#Headers],[Jul]],StvarniKancelarijskiTroškovi[#Headers],0))","v":{"v":100,"d":"100.00 RSD"}},{"$f":"INDEX(PlaniraniKancelarijskiTroškovi[],MATCH(INDEX(OdstupanjaOdKancelarijskihTroškova[],ROW()-ROW(OdstupanjaOdKancelarijskihTroškova[[#Headers],[Avg]]),1),INDEX(PlaniraniKancelarijskiTroškovi[],,1),0),MATCH(OdstupanjaOdKancelarijskihTroškova[[#Headers],[Avg]],PlaniraniKancelarijskiTroškovi[#Headers],0))-INDEX(StvarniKancelarijskiTroškovi[],MATCH(INDEX(OdstupanjaOdKancelarijskihTroškova[],ROW()-ROW(OdstupanjaOdKancelarijskihTroškova[[#Headers],[Avg]]),1),INDEX(PlaniraniKancelarijskiTroškovi[],,1),0),MATCH(OdstupanjaOdKancelarijskihTroškova[[#Headers],[Avg]],StvarniKancelarijskiTroškovi[#Headers],0))","v":{"v":100,"d":"100.00 RSD"}},{"$f":"INDEX(PlaniraniKancelarijskiTroškovi[],MATCH(INDEX(OdstupanjaOdKancelarijskihTroškova[],ROW()-ROW(OdstupanjaOdKancelarijskihTroškova[[#Headers],[Sep]]),1),INDEX(PlaniraniKancelarijskiTroškovi[],,1),0),MATCH(OdstupanjaOdKancelarijskihTroškova[[#Headers],[Sep]],PlaniraniKancelarijskiTroškovi[#Headers],0))-INDEX(StvarniKancelarijskiTroškovi[],MATCH(INDEX(OdstupanjaOdKancelarijskihTroškova[],ROW()-ROW(OdstupanjaOdKancelarijskihTroškova[[#Headers],[Sep]]),1),INDEX(PlaniraniKancelarijskiTroškovi[],,1),0),MATCH(OdstupanjaOdKancelarijskihTroškova[[#Headers],[Sep]],StvarniKancelarijskiTroškovi[#Headers],0))","v":{"v":100,"d":"100.00 RSD"}},{"$f":"INDEX(PlaniraniKancelarijskiTroškovi[],MATCH(INDEX(OdstupanjaOdKancelarijskihTroškova[],ROW()-ROW(OdstupanjaOdKancelarijskihTroškova[[#Headers],[Okt]]),1),INDEX(PlaniraniKancelarijskiTroškovi[],,1),0),MATCH(OdstupanjaOdKancelarijskihTroškova[[#Headers],[Okt]],PlaniraniKancelarijskiTroškovi[#Headers],0))-INDEX(StvarniKancelarijskiTroškovi[],MATCH(INDEX(OdstupanjaOdKancelarijskihTroškova[],ROW()-ROW(OdstupanjaOdKancelarijskihTroškova[[#Headers],[Okt]]),1),INDEX(PlaniraniKancelarijskiTroškovi[],,1),0),MATCH(OdstupanjaOdKancelarijskihTroškova[[#Headers],[Okt]],StvarniKancelarijskiTroškovi[#Headers],0))","v":{"v":100,"d":"100.00 RSD"}},{"$f":"INDEX(PlaniraniKancelarijskiTroškovi[],MATCH(INDEX(OdstupanjaOdKancelarijskihTroškova[],ROW()-ROW(OdstupanjaOdKancelarijskihTroškova[[#Headers],[Nov]]),1),INDEX(PlaniraniKancelarijskiTroškovi[],,1),0),MATCH(OdstupanjaOdKancelarijskihTroškova[[#Headers],[Nov]],PlaniraniKancelarijskiTroškovi[#Headers],0))-INDEX(StvarniKancelarijskiTroškovi[],MATCH(INDEX(OdstupanjaOdKancelarijskihTroškova[],ROW()-ROW(OdstupanjaOdKancelarijskihTroškova[[#Headers],[Nov]]),1),INDEX(PlaniraniKancelarijskiTroškovi[],,1),0),MATCH(OdstupanjaOdKancelarijskihTroškova[[#Headers],[Nov]],StvarniKancelarijskiTroškovi[#Headers],0))","v":{"v":400,"d":"400.00 RSD"}},{"$f":"INDEX(PlaniraniKancelarijskiTroškovi[],MATCH(INDEX(OdstupanjaOdKancelarijskihTroškova[],ROW()-ROW(OdstupanjaOdKancelarijskihTroškova[[#Headers],[Dec]]),1),INDEX(PlaniraniKancelarijskiTroškovi[],,1),0),MATCH(OdstupanjaOdKancelarijskihTroškova[[#Headers],[Dec]],PlaniraniKancelarijskiTroškovi[#Headers],0))-INDEX(StvarniKancelarijskiTroškovi[],MATCH(INDEX(OdstupanjaOdKancelarijskihTroškova[],ROW()-ROW(OdstupanjaOdKancelarijskihTroškova[[#Headers],[Dec]]),1),INDEX(PlaniraniKancelarijskiTroškovi[],,1),0),MATCH(OdstupanjaOdKancelarijskihTroškova[[#Headers],[Dec]],StvarniKancelarijskiTroškovi[#Headers],0))","v":{"v":400,"d":"400.00 RSD"}},{"$f":"SUM(OdstupanjaOdKancelarijskihTroškova[[#This Row],[Jan]:[Dec]])","v":{"v":1076,"d":"1,076.00 RSD"}}]
[null,"Struja",{"$f":"INDEX(PlaniraniKancelarijskiTroškovi[],MATCH(INDEX(OdstupanjaOdKancelarijskihTroškova[],ROW()-ROW(OdstupanjaOdKancelarijskihTroškova[[#Headers],[Jan]]),1),INDEX(PlaniraniKancelarijskiTroškovi[],,1),0),MATCH(OdstupanjaOdKancelarijskihTroškova[[#Headers],[Jan]],PlaniraniKancelarijskiTroškovi[#Headers],0))-INDEX(StvarniKancelarijskiTroškovi[],MATCH(INDEX(OdstupanjaOdKancelarijskihTroškova[],ROW()-ROW(OdstupanjaOdKancelarijskihTroškova[[#Headers],[Jan]]),1),INDEX(PlaniraniKancelarijskiTroškovi[],,1),0),MATCH(OdstupanjaOdKancelarijskihTroškova[[#Headers],[Jan]],StvarniKancelarijskiTroškovi[#Headers],0))","v":{"v":12,"d":"12.00 RSD"}},{"$f":"INDEX(PlaniraniKancelarijskiTroškovi[],MATCH(INDEX(OdstupanjaOdKancelarijskihTroškova[],ROW()-ROW(OdstupanjaOdKancelarijskihTroškova[[#Headers],[Feb]]),1),INDEX(PlaniraniKancelarijskiTroškovi[],,1),0),MATCH(OdstupanjaOdKancelarijskihTroškova[[#Headers],[Feb]],PlaniraniKancelarijskiTroškovi[#Headers],0))-INDEX(StvarniKancelarijskiTroškovi[],MATCH(INDEX(OdstupanjaOdKancelarijskihTroškova[],ROW()-ROW(OdstupanjaOdKancelarijskihTroškova[[#Headers],[Feb]]),1),INDEX(PlaniraniKancelarijskiTroškovi[],,1),0),MATCH(OdstupanjaOdKancelarijskihTroškova[[#Headers],[Feb]],StvarniKancelarijskiTroškovi[#Headers],0))","v":{"v":22,"d":"22.00 RSD"}},{"$f":"INDEX(PlaniraniKancelarijskiTroškovi[],MATCH(INDEX(OdstupanjaOdKancelarijskihTroškova[],ROW()-ROW(OdstupanjaOdKancelarijskihTroškova[[#Headers],[Mar]]),1),INDEX(PlaniraniKancelarijskiTroškovi[],,1),0),MATCH(OdstupanjaOdKancelarijskihTroškova[[#Headers],[Mar]],PlaniraniKancelarijskiTroškovi[#Headers],0))-INDEX(StvarniKancelarijskiTroškovi[],MATCH(INDEX(OdstupanjaOdKancelarijskihTroškova[],ROW()-ROW(OdstupanjaOdKancelarijskihTroškova[[#Headers],[Mar]]),1),INDEX(PlaniraniKancelarijskiTroškovi[],,1),0),MATCH(OdstupanjaOdKancelarijskihTroškova[[#Headers],[Mar]],StvarniKancelarijskiTroškovi[#Headers],0))","v":{"v":32,"d":"32.00 RSD"}},{"$f":"INDEX(PlaniraniKancelarijskiTroškovi[],MATCH(INDEX(OdstupanjaOdKancelarijskihTroškova[],ROW()-ROW(OdstupanjaOdKancelarijskihTroškova[[#Headers],[Apr]]),1),INDEX(PlaniraniKancelarijskiTroškovi[],,1),0),MATCH(OdstupanjaOdKancelarijskihTroškova[[#Headers],[Apr]],PlaniraniKancelarijskiTroškovi[#Headers],0))-INDEX(StvarniKancelarijskiTroškovi[],MATCH(INDEX(OdstupanjaOdKancelarijskihTroškova[],ROW()-ROW(OdstupanjaOdKancelarijskihTroškova[[#Headers],[Apr]]),1),INDEX(PlaniraniKancelarijskiTroškovi[],,1),0),MATCH(OdstupanjaOdKancelarijskihTroškova[[#Headers],[Apr]],StvarniKancelarijskiTroškovi[#Headers],0))","v":{"v":1,"d":"1.00 RSD"}},{"$f":"INDEX(PlaniraniKancelarijskiTroškovi[],MATCH(INDEX(OdstupanjaOdKancelarijskihTroškova[],ROW()-ROW(OdstupanjaOdKancelarijskihTroškova[[#Headers],[Maj]]),1),INDEX(PlaniraniKancelarijskiTroškovi[],,1),0),MATCH(OdstupanjaOdKancelarijskihTroškova[[#Headers],[Maj]],PlaniraniKancelarijskiTroškovi[#Headers],0))-INDEX(StvarniKancelarijskiTroškovi[],MATCH(INDEX(OdstupanjaOdKancelarijskihTroškova[],ROW()-ROW(OdstupanjaOdKancelarijskihTroškova[[#Headers],[Maj]]),1),INDEX(PlaniraniKancelarijskiTroškovi[],,1),0),MATCH(OdstupanjaOdKancelarijskihTroškova[[#Headers],[Maj]],StvarniKancelarijskiTroškovi[#Headers],0))","v":{"v":-6,"d":"-6.00 RSD"}},{"$f":"INDEX(PlaniraniKancelarijskiTroškovi[],MATCH(INDEX(OdstupanjaOdKancelarijskihTroškova[],ROW()-ROW(OdstupanjaOdKancelarijskihTroškova[[#Headers],[Jun]]),1),INDEX(PlaniraniKancelarijskiTroškovi[],,1),0),MATCH(OdstupanjaOdKancelarijskihTroškova[[#Headers],[Jun]],PlaniraniKancelarijskiTroškovi[#Headers],0))-INDEX(StvarniKancelarijskiTroškovi[],MATCH(INDEX(OdstupanjaOdKancelarijskihTroškova[],ROW()-ROW(OdstupanjaOdKancelarijskihTroškova[[#Headers],[Jun]]),1),INDEX(PlaniraniKancelarijskiTroškovi[],,1),0),MATCH(OdstupanjaOdKancelarijskihTroškova[[#Headers],[Jun]],StvarniKancelarijskiTroškovi[#Headers],0))","v":{"v":10,"d":"10.00 RSD"}},{"$f":"INDEX(PlaniraniKancelarijskiTroškovi[],MATCH(INDEX(OdstupanjaOdKancelarijskihTroškova[],ROW()-ROW(OdstupanjaOdKancelarijskihTroškova[[#Headers],[Jul]]),1),INDEX(PlaniraniKancelarijskiTroškovi[],,1),0),MATCH(OdstupanjaOdKancelarijskihTroškova[[#Headers],[Jul]],PlaniraniKancelarijskiTroškovi[#Headers],0))-INDEX(StvarniKancelarijskiTroškovi[],MATCH(INDEX(OdstupanjaOdKancelarijskihTroškova[],ROW()-ROW(OdstupanjaOdKancelarijskihTroškova[[#Headers],[Jul]]),1),INDEX(PlaniraniKancelarijskiTroškovi[],,1),0),MATCH(OdstupanjaOdKancelarijskihTroškova[[#Headers],[Jul]],StvarniKancelarijskiTroškovi[#Headers],0))","v":{"v":300,"d":"300.00 RSD"}},{"$f":"INDEX(PlaniraniKancelarijskiTroškovi[],MATCH(INDEX(OdstupanjaOdKancelarijskihTroškova[],ROW()-ROW(OdstupanjaOdKancelarijskihTroškova[[#Headers],[Avg]]),1),INDEX(PlaniraniKancelarijskiTroškovi[],,1),0),MATCH(OdstupanjaOdKancelarijskihTroškova[[#Headers],[Avg]],PlaniraniKancelarijskiTroškovi[#Headers],0))-INDEX(StvarniKancelarijskiTroškovi[],MATCH(INDEX(OdstupanjaOdKancelarijskihTroškova[],ROW()-ROW(OdstupanjaOdKancelarijskihTroškova[[#Headers],[Avg]]),1),INDEX(PlaniraniKancelarijskiTroškovi[],,1),0),MATCH(OdstupanjaOdKancelarijskihTroškova[[#Headers],[Avg]],StvarniKancelarijskiTroškovi[#Headers],0))","v":{"v":300,"d":"300.00 RSD"}},{"$f":"INDEX(PlaniraniKancelarijskiTroškovi[],MATCH(INDEX(OdstupanjaOdKancelarijskihTroškova[],ROW()-ROW(OdstupanjaOdKancelarijskihTroškova[[#Headers],[Sep]]),1),INDEX(PlaniraniKancelarijskiTroškovi[],,1),0),MATCH(OdstupanjaOdKancelarijskihTroškova[[#Headers],[Sep]],PlaniraniKancelarijskiTroškovi[#Headers],0))-INDEX(StvarniKancelarijskiTroškovi[],MATCH(INDEX(OdstupanjaOdKancelarijskihTroškova[],ROW()-ROW(OdstupanjaOdKancelarijskihTroškova[[#Headers],[Sep]]),1),INDEX(PlaniraniKancelarijskiTroškovi[],,1),0),MATCH(OdstupanjaOdKancelarijskihTroškova[[#Headers],[Sep]],StvarniKancelarijskiTroškovi[#Headers],0))","v":{"v":300,"d":"300.00 RSD"}},{"$f":"INDEX(PlaniraniKancelarijskiTroškovi[],MATCH(INDEX(OdstupanjaOdKancelarijskihTroškova[],ROW()-ROW(OdstupanjaOdKancelarijskihTroškova[[#Headers],[Okt]]),1),INDEX(PlaniraniKancelarijskiTroškovi[],,1),0),MATCH(OdstupanjaOdKancelarijskihTroškova[[#Headers],[Okt]],PlaniraniKancelarijskiTroškovi[#Headers],0))-INDEX(StvarniKancelarijskiTroškovi[],MATCH(INDEX(OdstupanjaOdKancelarijskihTroškova[],ROW()-ROW(OdstupanjaOdKancelarijskihTroškova[[#Headers],[Okt]]),1),INDEX(PlaniraniKancelarijskiTroškovi[],,1),0),MATCH(OdstupanjaOdKancelarijskihTroškova[[#Headers],[Okt]],StvarniKancelarijskiTroškovi[#Headers],0))","v":{"v":300,"d":"300.00 RSD"}},{"$f":"INDEX(PlaniraniKancelarijskiTroškovi[],MATCH(INDEX(OdstupanjaOdKancelarijskihTroškova[],ROW()-ROW(OdstupanjaOdKancelarijskihTroškova[[#Headers],[Nov]]),1),INDEX(PlaniraniKancelarijskiTroškovi[],,1),0),MATCH(OdstupanjaOdKancelarijskihTroškova[[#Headers],[Nov]],PlaniraniKancelarijskiTroškovi[#Headers],0))-INDEX(StvarniKancelarijskiTroškovi[],MATCH(INDEX(OdstupanjaOdKancelarijskihTroškova[],ROW()-ROW(OdstupanjaOdKancelarijskihTroškova[[#Headers],[Nov]]),1),INDEX(PlaniraniKancelarijskiTroškovi[],,1),0),MATCH(OdstupanjaOdKancelarijskihTroškova[[#Headers],[Nov]],StvarniKancelarijskiTroškovi[#Headers],0))","v":{"v":300,"d":"300.00 RSD"}},{"$f":"INDEX(PlaniraniKancelarijskiTroškovi[],MATCH(INDEX(OdstupanjaOdKancelarijskihTroškova[],ROW()-ROW(OdstupanjaOdKancelarijskihTroškova[[#Headers],[Dec]]),1),INDEX(PlaniraniKancelarijskiTroškovi[],,1),0),MATCH(OdstupanjaOdKancelarijskihTroškova[[#Headers],[Dec]],PlaniraniKancelarijskiTroškovi[#Headers],0))-INDEX(StvarniKancelarijskiTroškovi[],MATCH(INDEX(OdstupanjaOdKancelarijskihTroškova[],ROW()-ROW(OdstupanjaOdKancelarijskihTroškova[[#Headers],[Dec]]),1),INDEX(PlaniraniKancelarijskiTroškovi[],,1),0),MATCH(OdstupanjaOdKancelarijskihTroškova[[#Headers],[Dec]],StvarniKancelarijskiTroškovi[#Headers],0))","v":{"v":300,"d":"300.00 RSD"}},{"$f":"SUM(OdstupanjaOdKancelarijskihTroškova[[#This Row],[Jan]:[Dec]])","v":{"v":1871,"d":"1,871.00 RSD"}}]
[null,"Voda",{"$f":"INDEX(PlaniraniKancelarijskiTroškovi[],MATCH(INDEX(OdstupanjaOdKancelarijskihTroškova[],ROW()-ROW(OdstupanjaOdKancelarijskihTroškova[[#Headers],[Jan]]),1),INDEX(PlaniraniKancelarijskiTroškovi[],,1),0),MATCH(OdstupanjaOdKancelarijskihTroškova[[#Headers],[Jan]],PlaniraniKancelarijskiTroškovi[#Headers],0))-INDEX(StvarniKancelarijskiTroškovi[],MATCH(INDEX(OdstupanjaOdKancelarijskihTroškova[],ROW()-ROW(OdstupanjaOdKancelarijskihTroškova[[#Headers],[Jan]]),1),INDEX(PlaniraniKancelarijskiTroškovi[],,1),0),MATCH(OdstupanjaOdKancelarijskihTroškova[[#Headers],[Jan]],StvarniKancelarijskiTroškovi[#Headers],0))","v":{"v":5,"d":"5.00 RSD"}},{"$f":"INDEX(PlaniraniKancelarijskiTroškovi[],MATCH(INDEX(OdstupanjaOdKancelarijskihTroškova[],ROW()-ROW(OdstupanjaOdKancelarijskihTroškova[[#Headers],[Feb]]),1),INDEX(PlaniraniKancelarijskiTroškovi[],,1),0),MATCH(OdstupanjaOdKancelarijskihTroškova[[#Headers],[Feb]],PlaniraniKancelarijskiTroškovi[#Headers],0))-INDEX(StvarniKancelarijskiTroškovi[],MATCH(INDEX(OdstupanjaOdKancelarijskihTroškova[],ROW()-ROW(OdstupanjaOdKancelarijskihTroškova[[#Headers],[Feb]]),1),INDEX(PlaniraniKancelarijskiTroškovi[],,1),0),MATCH(OdstupanjaOdKancelarijskihTroškova[[#Headers],[Feb]],StvarniKancelarijskiTroškovi[#Headers],0))","v":{"v":7,"d":"7.00 RSD"}},{"$f":"INDEX(PlaniraniKancelarijskiTroškovi[],MATCH(INDEX(OdstupanjaOdKancelarijskihTroškova[],ROW()-ROW(OdstupanjaOdKancelarijskihTroškova[[#Headers],[Mar]]),1),INDEX(PlaniraniKancelarijskiTroškovi[],,1),0),MATCH(OdstupanjaOdKancelarijskihTroškova[[#Headers],[Mar]],PlaniraniKancelarijskiTroškovi[#Headers],0))-INDEX(StvarniKancelarijskiTroškovi[],MATCH(INDEX(OdstupanjaOdKancelarijskihTroškova[],ROW()-ROW(OdstupanjaOdKancelarijskihTroškova[[#Headers],[Mar]]),1),INDEX(PlaniraniKancelarijskiTroškovi[],,1),0),MATCH(OdstupanjaOdKancelarijskihTroškova[[#Headers],[Mar]],StvarniKancelarijskiTroškovi[#Headers],0))","v":{"v":6,"d":"6.00 RSD"}},{"$f":"INDEX(PlaniraniKancelarijskiTroškovi[],MATCH(INDEX(OdstupanjaOdKancelarijskihTroškova[],ROW()-ROW(OdstupanjaOdKancelarijskihTroškova[[#Headers],[Apr]]),1),INDEX(PlaniraniKancelarijskiTroškovi[],,1),0),MATCH(OdstupanjaOdKancelarijskihTroškova[[#Headers],[Apr]],PlaniraniKancelarijskiTroškovi[#Headers],0))-INDEX(StvarniKancelarijskiTroškovi[],MATCH(INDEX(OdstupanjaOdKancelarijskihTroškova[],ROW()-ROW(OdstupanjaOdKancelarijskihTroškova[[#Headers],[Apr]]),1),INDEX(PlaniraniKancelarijskiTroškovi[],,1),0),MATCH(OdstupanjaOdKancelarijskihTroškova[[#Headers],[Apr]],StvarniKancelarijskiTroškovi[#Headers],0))","v":{"v":4,"d":"4.00 RSD"}},{"$f":"INDEX(PlaniraniKancelarijskiTroškovi[],MATCH(INDEX(OdstupanjaOdKancelarijskihTroškova[],ROW()-ROW(OdstupanjaOdKancelarijskihTroškova[[#Headers],[Maj]]),1),INDEX(PlaniraniKancelarijskiTroškovi[],,1),0),MATCH(OdstupanjaOdKancelarijskihTroškova[[#Headers],[Maj]],PlaniraniKancelarijskiTroškovi[#Headers],0))-INDEX(StvarniKancelarijskiTroškovi[],MATCH(INDEX(OdstupanjaOdKancelarijskihTroškova[],ROW()-ROW(OdstupanjaOdKancelarijskihTroškova[[#Headers],[Maj]]),1),INDEX(PlaniraniKancelarijskiTroškovi[],,1),0),MATCH(OdstupanjaOdKancelarijskihTroškova[[#Headers],[Maj]],StvarniKancelarijskiTroškovi[#Headers],0))","v":{"v":6,"d":"6.00 RSD"}},{"$f":"INDEX(PlaniraniKancelarijskiTroškovi[],MATCH(INDEX(OdstupanjaOdKancelarijskihTroškova[],ROW()-ROW(OdstupanjaOdKancelarijskihTroškova[[#Headers],[Jun]]),1),INDEX(PlaniraniKancelarijskiTroškovi[],,1),0),MATCH(OdstupanjaOdKancelarijskihTroškova[[#Headers],[Jun]],PlaniraniKancelarijskiTroškovi[#Headers],0))-INDEX(StvarniKancelarijskiTroškovi[],MATCH(INDEX(OdstupanjaOdKancelarijskihTroškova[],ROW()-ROW(OdstupanjaOdKancelarijskihTroškova[[#Headers],[Jun]]),1),INDEX(PlaniraniKancelarijskiTroškovi[],,1),0),MATCH(OdstupanjaOdKancelarijskihTroškova[[#Headers],[Jun]],StvarniKancelarijskiTroškovi[#Headers],0))","v":{"v":4,"d":"4.00 RSD"}},{"$f":"INDEX(PlaniraniKancelarijskiTroškovi[],MATCH(INDEX(OdstupanjaOdKancelarijskihTroškova[],ROW()-ROW(OdstupanjaOdKancelarijskihTroškova[[#Headers],[Jul]]),1),INDEX(PlaniraniKancelarijskiTroškovi[],,1),0),MATCH(OdstupanjaOdKancelarijskihTroškova[[#Headers],[Jul]],PlaniraniKancelarijskiTroškovi[#Headers],0))-INDEX(StvarniKancelarijskiTroškovi[],MATCH(INDEX(OdstupanjaOdKancelarijskihTroškova[],ROW()-ROW(OdstupanjaOdKancelarijskihTroškova[[#Headers],[Jul]]),1),INDEX(PlaniraniKancelarijskiTroškovi[],,1),0),MATCH(OdstupanjaOdKancelarijskihTroškova[[#Headers],[Jul]],StvarniKancelarijskiTroškovi[#Headers],0))","v":{"v":40,"d":"40.00 RSD"}},{"$f":"INDEX(PlaniraniKancelarijskiTroškovi[],MATCH(INDEX(OdstupanjaOdKancelarijskihTroškova[],ROW()-ROW(OdstupanjaOdKancelarijskihTroškova[[#Headers],[Avg]]),1),INDEX(PlaniraniKancelarijskiTroškovi[],,1),0),MATCH(OdstupanjaOdKancelarijskihTroškova[[#Headers],[Avg]],PlaniraniKancelarijskiTroškovi[#Headers],0))-INDEX(StvarniKancelarijskiTroškovi[],MATCH(INDEX(OdstupanjaOdKancelarijskihTroškova[],ROW()-ROW(OdstupanjaOdKancelarijskihTroškova[[#Headers],[Avg]]),1),INDEX(PlaniraniKancelarijskiTroškovi[],,1),0),MATCH(OdstupanjaOdKancelarijskihTroškova[[#Headers],[Avg]],StvarniKancelarijskiTroškovi[#Headers],0))","v":{"v":40,"d":"40.00 RSD"}},{"$f":"INDEX(PlaniraniKancelarijskiTroškovi[],MATCH(INDEX(OdstupanjaOdKancelarijskihTroškova[],ROW()-ROW(OdstupanjaOdKancelarijskihTroškova[[#Headers],[Sep]]),1),INDEX(PlaniraniKancelarijskiTroškovi[],,1),0),MATCH(OdstupanjaOdKancelarijskihTroškova[[#Headers],[Sep]],PlaniraniKancelarijskiTroškovi[#Headers],0))-INDEX(StvarniKancelarijskiTroškovi[],MATCH(INDEX(OdstupanjaOdKancelarijskihTroškova[],ROW()-ROW(OdstupanjaOdKancelarijskihTroškova[[#Headers],[Sep]]),1),INDEX(PlaniraniKancelarijskiTroškovi[],,1),0),MATCH(OdstupanjaOdKancelarijskihTroškova[[#Headers],[Sep]],StvarniKancelarijskiTroškovi[#Headers],0))","v":{"v":40,"d":"40.00 RSD"}},{"$f":"INDEX(PlaniraniKancelarijskiTroškovi[],MATCH(INDEX(OdstupanjaOdKancelarijskihTroškova[],ROW()-ROW(OdstupanjaOdKancelarijskihTroškova[[#Headers],[Okt]]),1),INDEX(PlaniraniKancelarijskiTroškovi[],,1),0),MATCH(OdstupanjaOdKancelarijskihTroškova[[#Headers],[Okt]],PlaniraniKancelarijskiTroškovi[#Headers],0))-INDEX(StvarniKancelarijskiTroškovi[],MATCH(INDEX(OdstupanjaOdKancelarijskihTroškova[],ROW()-ROW(OdstupanjaOdKancelarijskihTroškova[[#Headers],[Okt]]),1),INDEX(PlaniraniKancelarijskiTroškovi[],,1),0),MATCH(OdstupanjaOdKancelarijskihTroškova[[#Headers],[Okt]],StvarniKancelarijskiTroškovi[#Headers],0))","v":{"v":40,"d":"40.00 RSD"}},{"$f":"INDEX(PlaniraniKancelarijskiTroškovi[],MATCH(INDEX(OdstupanjaOdKancelarijskihTroškova[],ROW()-ROW(OdstupanjaOdKancelarijskihTroškova[[#Headers],[Nov]]),1),INDEX(PlaniraniKancelarijskiTroškovi[],,1),0),MATCH(OdstupanjaOdKancelarijskihTroškova[[#Headers],[Nov]],PlaniraniKancelarijskiTroškovi[#Headers],0))-INDEX(StvarniKancelarijskiTroškovi[],MATCH(INDEX(OdstupanjaOdKancelarijskihTroškova[],ROW()-ROW(OdstupanjaOdKancelarijskihTroškova[[#Headers],[Nov]]),1),INDEX(PlaniraniKancelarijskiTroškovi[],,1),0),MATCH(OdstupanjaOdKancelarijskihTroškova[[#Headers],[Nov]],StvarniKancelarijskiTroškovi[#Headers],0))","v":{"v":40,"d":"40.00 RSD"}},{"$f":"INDEX(PlaniraniKancelarijskiTroškovi[],MATCH(INDEX(OdstupanjaOdKancelarijskihTroškova[],ROW()-ROW(OdstupanjaOdKancelarijskihTroškova[[#Headers],[Dec]]),1),INDEX(PlaniraniKancelarijskiTroškovi[],,1),0),MATCH(OdstupanjaOdKancelarijskihTroškova[[#Headers],[Dec]],PlaniraniKancelarijskiTroškovi[#Headers],0))-INDEX(StvarniKancelarijskiTroškovi[],MATCH(INDEX(OdstupanjaOdKancelarijskihTroškova[],ROW()-ROW(OdstupanjaOdKancelarijskihTroškova[[#Headers],[Dec]]),1),INDEX(PlaniraniKancelarijskiTroškovi[],,1),0),MATCH(OdstupanjaOdKancelarijskihTroškova[[#Headers],[Dec]],StvarniKancelarijskiTroškovi[#Headers],0))","v":{"v":40,"d":"40.00 RSD"}},{"$f":"SUM(OdstupanjaOdKancelarijskihTroškova[[#This Row],[Jan]:[Dec]])","v":{"v":272,"d":"272.00 RSD"}}]
[null,"Telefon",{"$f":"INDEX(PlaniraniKancelarijskiTroškovi[],MATCH(INDEX(OdstupanjaOdKancelarijskihTroškova[],ROW()-ROW(OdstupanjaOdKancelarijskihTroškova[[#Headers],[Jan]]),1),INDEX(PlaniraniKancelarijskiTroškovi[],,1),0),MATCH(OdstupanjaOdKancelarijskihTroškova[[#Headers],[Jan]],PlaniraniKancelarijskiTroškovi[#Headers],0))-INDEX(StvarniKancelarijskiTroškovi[],MATCH(INDEX(OdstupanjaOdKancelarijskihTroškova[],ROW()-ROW(OdstupanjaOdKancelarijskihTroškova[[#Headers],[Jan]]),1),INDEX(PlaniraniKancelarijskiTroškovi[],,1),0),MATCH(OdstupanjaOdKancelarijskihTroškova[[#Headers],[Jan]],StvarniKancelarijskiTroškovi[#Headers],0))","v":{"v":26,"d":"26.00 RSD"}},{"$f":"INDEX(PlaniraniKancelarijskiTroškovi[],MATCH(INDEX(OdstupanjaOdKancelarijskihTroškova[],ROW()-ROW(OdstupanjaOdKancelarijskihTroškova[[#Headers],[Feb]]),1),INDEX(PlaniraniKancelarijskiTroškovi[],,1),0),MATCH(OdstupanjaOdKancelarijskihTroškova[[#Headers],[Feb]],PlaniraniKancelarijskiTroškovi[#Headers],0))-INDEX(StvarniKancelarijskiTroškovi[],MATCH(INDEX(OdstupanjaOdKancelarijskihTroškova[],ROW()-ROW(OdstupanjaOdKancelarijskihTroškova[[#Headers],[Feb]]),1),INDEX(PlaniraniKancelarijskiTroškovi[],,1),0),MATCH(OdstupanjaOdKancelarijskihTroškova[[#Headers],[Feb]],StvarniKancelarijskiTroškovi[#Headers],0))","v":{"v":15,"d":"15.00 RSD"}},{"$f":"INDEX(PlaniraniKancelarijskiTroškovi[],MATCH(INDEX(OdstupanjaOdKancelarijskihTroškova[],ROW()-ROW(OdstupanjaOdKancelarijskihTroškova[[#Headers],[Mar]]),1),INDEX(PlaniraniKancelarijskiTroškovi[],,1),0),MATCH(OdstupanjaOdKancelarijskihTroškova[[#Headers],[Mar]],PlaniraniKancelarijskiTroškovi[#Headers],0))-INDEX(StvarniKancelarijskiTroškovi[],MATCH(INDEX(OdstupanjaOdKancelarijskihTroškova[],ROW()-ROW(OdstupanjaOdKancelarijskihTroškova[[#Headers],[Mar]]),1),INDEX(PlaniraniKancelarijskiTroškovi[],,1),0),MATCH(OdstupanjaOdKancelarijskihTroškova[[#Headers],[Mar]],StvarniKancelarijskiTroškovi[#Headers],0))","v":{"v":-15,"d":"-15.00 RSD"}},{"$f":"INDEX(PlaniraniKancelarijskiTroškovi[],MATCH(INDEX(OdstupanjaOdKancelarijskihTroškova[],ROW()-ROW(OdstupanjaOdKancelarijskihTroškova[[#Headers],[Apr]]),1),INDEX(PlaniraniKancelarijskiTroškovi[],,1),0),MATCH(OdstupanjaOdKancelarijskihTroškova[[#Headers],[Apr]],PlaniraniKancelarijskiTroškovi[#Headers],0))-INDEX(StvarniKancelarijskiTroškovi[],MATCH(INDEX(OdstupanjaOdKancelarijskihTroškova[],ROW()-ROW(OdstupanjaOdKancelarijskihTroškova[[#Headers],[Apr]]),1),INDEX(PlaniraniKancelarijskiTroškovi[],,1),0),MATCH(OdstupanjaOdKancelarijskihTroškova[[#Headers],[Apr]],StvarniKancelarijskiTroškovi[#Headers],0))","v":{"v":5,"d":"5.00 RSD"}},{"$f":"INDEX(PlaniraniKancelarijskiTroškovi[],MATCH(INDEX(OdstupanjaOdKancelarijskihTroškova[],ROW()-ROW(OdstupanjaOdKancelarijskihTroškova[[#Headers],[Maj]]),1),INDEX(PlaniraniKancelarijskiTroškovi[],,1),0),MATCH(OdstupanjaOdKancelarijskihTroškova[[#Headers],[Maj]],PlaniraniKancelarijskiTroškovi[#Headers],0))-INDEX(StvarniKancelarijskiTroškovi[],MATCH(INDEX(OdstupanjaOdKancelarijskihTroškova[],ROW()-ROW(OdstupanjaOdKancelarijskihTroškova[[#Headers],[Maj]]),1),INDEX(PlaniraniKancelarijskiTroškovi[],,1),0),MATCH(OdstupanjaOdKancelarijskihTroškova[[#Headers],[Maj]],StvarniKancelarijskiTroškovi[#Headers],0))","v":{"v":5,"d":"5.00 RSD"}},{"$f":"INDEX(PlaniraniKancelarijskiTroškovi[],MATCH(INDEX(OdstupanjaOdKancelarijskihTroškova[],ROW()-ROW(OdstupanjaOdKancelarijskihTroškova[[#Headers],[Jun]]),1),INDEX(PlaniraniKancelarijskiTroškovi[],,1),0),MATCH(OdstupanjaOdKancelarijskihTroškova[[#Headers],[Jun]],PlaniraniKancelarijskiTroškovi[#Headers],0))-INDEX(StvarniKancelarijskiTroškovi[],MATCH(INDEX(OdstupanjaOdKancelarijskihTroškova[],ROW()-ROW(OdstupanjaOdKancelarijskihTroškova[[#Headers],[Jun]]),1),INDEX(PlaniraniKancelarijskiTroškovi[],,1),0),MATCH(OdstupanjaOdKancelarijskihTroškova[[#Headers],[Jun]],StvarniKancelarijskiTroškovi[#Headers],0))","v":{"v":30,"d":"30.00 RSD"}},{"$f":"INDEX(PlaniraniKancelarijskiTroškovi[],MATCH(INDEX(OdstupanjaOdKancelarijskihTroškova[],ROW()-ROW(OdstupanjaOdKancelarijskihTroškova[[#Headers],[Jul]]),1),INDEX(PlaniraniKancelarijskiTroškovi[],,1),0),MATCH(OdstupanjaOdKancelarijskihTroškova[[#Headers],[Jul]],PlaniraniKancelarijskiTroškovi[#Headers],0))-INDEX(StvarniKancelarijskiTroškovi[],MATCH(INDEX(OdstupanjaOdKancelarijskihTroškova[],ROW()-ROW(OdstupanjaOdKancelarijskihTroškova[[#Headers],[Jul]]),1),INDEX(PlaniraniKancelarijskiTroškovi[],,1),0),MATCH(OdstupanjaOdKancelarijskihTroškova[[#Headers],[Jul]],StvarniKancelarijskiTroškovi[#Headers],0))","v":{"v":250,"d":"250.00 RSD"}},{"$f":"INDEX(PlaniraniKancelarijskiTroškovi[],MATCH(INDEX(OdstupanjaOdKancelarijskihTroškova[],ROW()-ROW(OdstupanjaOdKancelarijskihTroškova[[#Headers],[Avg]]),1),INDEX(PlaniraniKancelarijskiTroškovi[],,1),0),MATCH(OdstupanjaOdKancelarijskihTroškova[[#Headers],[Avg]],PlaniraniKancelarijskiTroškovi[#Headers],0))-INDEX(StvarniKancelarijskiTroškovi[],MATCH(INDEX(OdstupanjaOdKancelarijskihTroškova[],ROW()-ROW(OdstupanjaOdKancelarijskihTroškova[[#Headers],[Avg]]),1),INDEX(PlaniraniKancelarijskiTroškovi[],,1),0),MATCH(OdstupanjaOdKancelarijskihTroškova[[#Headers],[Avg]],StvarniKancelarijskiTroškovi[#Headers],0))","v":{"v":250,"d":"250.00 RSD"}},{"$f":"INDEX(PlaniraniKancelarijskiTroškovi[],MATCH(INDEX(OdstupanjaOdKancelarijskihTroškova[],ROW()-ROW(OdstupanjaOdKancelarijskihTroškova[[#Headers],[Sep]]),1),INDEX(PlaniraniKancelarijskiTroškovi[],,1),0),MATCH(OdstupanjaOdKancelarijskihTroškova[[#Headers],[Sep]],PlaniraniKancelarijskiTroškovi[#Headers],0))-INDEX(StvarniKancelarijskiTroškovi[],MATCH(INDEX(OdstupanjaOdKancelarijskihTroškova[],ROW()-ROW(OdstupanjaOdKancelarijskihTroškova[[#Headers],[Sep]]),1),INDEX(PlaniraniKancelarijskiTroškovi[],,1),0),MATCH(OdstupanjaOdKancelarijskihTroškova[[#Headers],[Sep]],StvarniKancelarijskiTroškovi[#Headers],0))","v":{"v":250,"d":"250.00 RSD"}},{"$f":"INDEX(PlaniraniKancelarijskiTroškovi[],MATCH(INDEX(OdstupanjaOdKancelarijskihTroškova[],ROW()-ROW(OdstupanjaOdKancelarijskihTroškova[[#Headers],[Okt]]),1),INDEX(PlaniraniKancelarijskiTroškovi[],,1),0),MATCH(OdstupanjaOdKancelarijskihTroškova[[#Headers],[Okt]],PlaniraniKancelarijskiTroškovi[#Headers],0))-INDEX(StvarniKancelarijskiTroškovi[],MATCH(INDEX(OdstupanjaOdKancelarijskihTroškova[],ROW()-ROW(OdstupanjaOdKancelarijskihTroškova[[#Headers],[Okt]]),1),INDEX(PlaniraniKancelarijskiTroškovi[],,1),0),MATCH(OdstupanjaOdKancelarijskihTroškova[[#Headers],[Okt]],StvarniKancelarijskiTroškovi[#Headers],0))","v":{"v":250,"d":"250.00 RSD"}},{"$f":"INDEX(PlaniraniKancelarijskiTroškovi[],MATCH(INDEX(OdstupanjaOdKancelarijskihTroškova[],ROW()-ROW(OdstupanjaOdKancelarijskihTroškova[[#Headers],[Nov]]),1),INDEX(PlaniraniKancelarijskiTroškovi[],,1),0),MATCH(OdstupanjaOdKancelarijskihTroškova[[#Headers],[Nov]],PlaniraniKancelarijskiTroškovi[#Headers],0))-INDEX(StvarniKancelarijskiTroškovi[],MATCH(INDEX(OdstupanjaOdKancelarijskihTroškova[],ROW()-ROW(OdstupanjaOdKancelarijskihTroškova[[#Headers],[Nov]]),1),INDEX(PlaniraniKancelarijskiTroškovi[],,1),0),MATCH(OdstupanjaOdKancelarijskihTroškova[[#Headers],[Nov]],StvarniKancelarijskiTroškovi[#Headers],0))","v":{"v":250,"d":"250.00 RSD"}},{"$f":"INDEX(PlaniraniKancelarijskiTroškovi[],MATCH(INDEX(OdstupanjaOdKancelarijskihTroškova[],ROW()-ROW(OdstupanjaOdKancelarijskihTroškova[[#Headers],[Dec]]),1),INDEX(PlaniraniKancelarijskiTroškovi[],,1),0),MATCH(OdstupanjaOdKancelarijskihTroškova[[#Headers],[Dec]],PlaniraniKancelarijskiTroškovi[#Headers],0))-INDEX(StvarniKancelarijskiTroškovi[],MATCH(INDEX(OdstupanjaOdKancelarijskihTroškova[],ROW()-ROW(OdstupanjaOdKancelarijskihTroškova[[#Headers],[Dec]]),1),INDEX(PlaniraniKancelarijskiTroškovi[],,1),0),MATCH(OdstupanjaOdKancelarijskihTroškova[[#Headers],[Dec]],StvarniKancelarijskiTroškovi[#Headers],0))","v":{"v":250,"d":"250.00 RSD"}},{"$f":"SUM(OdstupanjaOdKancelarijskihTroškova[[#This Row],[Jan]:[Dec]])","v":{"v":1566,"d":"1,566.00 RSD"}}]
[null,"Pristup internetu",{"$f":"INDEX(PlaniraniKancelarijskiTroškovi[],MATCH(INDEX(OdstupanjaOdKancelarijskihTroškova[],ROW()-ROW(OdstupanjaOdKancelarijskihTroškova[[#Headers],[Jan]]),1),INDEX(PlaniraniKancelarijskiTroškovi[],,1),0),MATCH(OdstupanjaOdKancelarijskihTroškova[[#Headers],[Jan]],PlaniraniKancelarijskiTroškovi[#Headers],0))-INDEX(StvarniKancelarijskiTroškovi[],MATCH(INDEX(OdstupanjaOdKancelarijskihTroškova[],ROW()-ROW(OdstupanjaOdKancelarijskihTroškova[[#Headers],[Jan]]),1),INDEX(PlaniraniKancelarijskiTroškovi[],,1),0),MATCH(OdstupanjaOdKancelarijskihTroškova[[#Headers],[Jan]],StvarniKancelarijskiTroškovi[#Headers],0))","v":{"v":0,"d":"0.00 RSD"}},{"$f":"INDEX(PlaniraniKancelarijskiTroškovi[],MATCH(INDEX(OdstupanjaOdKancelarijskihTroškova[],ROW()-ROW(OdstupanjaOdKancelarijskihTroškova[[#Headers],[Feb]]),1),INDEX(PlaniraniKancelarijskiTroškovi[],,1),0),MATCH(OdstupanjaOdKancelarijskihTroškova[[#Headers],[Feb]],PlaniraniKancelarijskiTroškovi[#Headers],0))-INDEX(StvarniKancelarijskiTroškovi[],MATCH(INDEX(OdstupanjaOdKancelarijskihTroškova[],ROW()-ROW(OdstupanjaOdKancelarijskihTroškova[[#Headers],[Feb]]),1),INDEX(PlaniraniKancelarijskiTroškovi[],,1),0),MATCH(OdstupanjaOdKancelarijskihTroškova[[#Headers],[Feb]],StvarniKancelarijskiTroškovi[#Headers],0))","v":{"v":0,"d":"0.00 RSD"}},{"$f":"INDEX(PlaniraniKancelarijskiTroškovi[],MATCH(INDEX(OdstupanjaOdKancelarijskihTroškova[],ROW()-ROW(OdstupanjaOdKancelarijskihTroškova[[#Headers],[Mar]]),1),INDEX(PlaniraniKancelarijskiTroškovi[],,1),0),MATCH(OdstupanjaOdKancelarijskihTroškova[[#Headers],[Mar]],PlaniraniKancelarijskiTroškovi[#Headers],0))-INDEX(StvarniKancelarijskiTroškovi[],MATCH(INDEX(OdstupanjaOdKancelarijskihTroškova[],ROW()-ROW(OdstupanjaOdKancelarijskihTroškova[[#Headers],[Mar]]),1),INDEX(PlaniraniKancelarijskiTroškovi[],,1),0),MATCH(OdstupanjaOdKancelarijskihTroškova[[#Headers],[Mar]],StvarniKancelarijskiTroškovi[#Headers],0))","v":{"v":0,"d":"0.00 RSD"}},{"$f":"INDEX(PlaniraniKancelarijskiTroškovi[],MATCH(INDEX(OdstupanjaOdKancelarijskihTroškova[],ROW()-ROW(OdstupanjaOdKancelarijskihTroškova[[#Headers],[Apr]]),1),INDEX(PlaniraniKancelarijskiTroškovi[],,1),0),MATCH(OdstupanjaOdKancelarijskihTroškova[[#Headers],[Apr]],PlaniraniKancelarijskiTroškovi[#Headers],0))-INDEX(StvarniKancelarijskiTroškovi[],MATCH(INDEX(OdstupanjaOdKancelarijskihTroškova[],ROW()-ROW(OdstupanjaOdKancelarijskihTroškova[[#Headers],[Apr]]),1),INDEX(PlaniraniKancelarijskiTroškovi[],,1),0),MATCH(OdstupanjaOdKancelarijskihTroškova[[#Headers],[Apr]],StvarniKancelarijskiTroškovi[#Headers],0))","v":{"v":0,"d":"0.00 RSD"}},{"$f":"INDEX(PlaniraniKancelarijskiTroškovi[],MATCH(INDEX(OdstupanjaOdKancelarijskihTroškova[],ROW()-ROW(OdstupanjaOdKancelarijskihTroškova[[#Headers],[Maj]]),1),INDEX(PlaniraniKancelarijskiTroškovi[],,1),0),MATCH(OdstupanjaOdKancelarijskihTroškova[[#Headers],[Maj]],PlaniraniKancelarijskiTroškovi[#Headers],0))-INDEX(StvarniKancelarijskiTroškovi[],MATCH(INDEX(OdstupanjaOdKancelarijskihTroškova[],ROW()-ROW(OdstupanjaOdKancelarijskihTroškova[[#Headers],[Maj]]),1),INDEX(PlaniraniKancelarijskiTroškovi[],,1),0),MATCH(OdstupanjaOdKancelarijskihTroškova[[#Headers],[Maj]],StvarniKancelarijskiTroškovi[#Headers],0))","v":{"v":0,"d":"0.00 RSD"}},{"$f":"INDEX(PlaniraniKancelarijskiTroškovi[],MATCH(INDEX(OdstupanjaOdKancelarijskihTroškova[],ROW()-ROW(OdstupanjaOdKancelarijskihTroškova[[#Headers],[Jun]]),1),INDEX(PlaniraniKancelarijskiTroškovi[],,1),0),MATCH(OdstupanjaOdKancelarijskihTroškova[[#Headers],[Jun]],PlaniraniKancelarijskiTroškovi[#Headers],0))-INDEX(StvarniKancelarijskiTroškovi[],MATCH(INDEX(OdstupanjaOdKancelarijskihTroškova[],ROW()-ROW(OdstupanjaOdKancelarijskihTroškova[[#Headers],[Jun]]),1),INDEX(PlaniraniKancelarijskiTroškovi[],,1),0),MATCH(OdstupanjaOdKancelarijskihTroškova[[#Headers],[Jun]],StvarniKancelarijskiTroškovi[#Headers],0))","v":{"v":0,"d":"0.00 RSD"}},{"$f":"INDEX(PlaniraniKancelarijskiTroškovi[],MATCH(INDEX(OdstupanjaOdKancelarijskihTroškova[],ROW()-ROW(OdstupanjaOdKancelarijskihTroškova[[#Headers],[Jul]]),1),INDEX(PlaniraniKancelarijskiTroškovi[],,1),0),MATCH(OdstupanjaOdKancelarijskihTroškova[[#Headers],[Jul]],PlaniraniKancelarijskiTroškovi[#Headers],0))-INDEX(StvarniKancelarijskiTroškovi[],MATCH(INDEX(OdstupanjaOdKancelarijskihTroškova[],ROW()-ROW(OdstupanjaOdKancelarijskihTroškova[[#Headers],[Jul]]),1),INDEX(PlaniraniKancelarijskiTroškovi[],,1),0),MATCH(OdstupanjaOdKancelarijskihTroškova[[#Headers],[Jul]],StvarniKancelarijskiTroškovi[#Headers],0))","v":{"v":180,"d":"180.00 RSD"}},{"$f":"INDEX(PlaniraniKancelarijskiTroškovi[],MATCH(INDEX(OdstupanjaOdKancelarijskihTroškova[],ROW()-ROW(OdstupanjaOdKancelarijskihTroškova[[#Headers],[Avg]]),1),INDEX(PlaniraniKancelarijskiTroškovi[],,1),0),MATCH(OdstupanjaOdKancelarijskihTroškova[[#Headers],[Avg]],PlaniraniKancelarijskiTroškovi[#Headers],0))-INDEX(StvarniKancelarijskiTroškovi[],MATCH(INDEX(OdstupanjaOdKancelarijskihTroškova[],ROW()-ROW(OdstupanjaOdKancelarijskihTroškova[[#Headers],[Avg]]),1),INDEX(PlaniraniKancelarijskiTroškovi[],,1),0),MATCH(OdstupanjaOdKancelarijskihTroškova[[#Headers],[Avg]],StvarniKancelarijskiTroškovi[#Headers],0))","v":{"v":180,"d":"180.00 RSD"}},{"$f":"INDEX(PlaniraniKancelarijskiTroškovi[],MATCH(INDEX(OdstupanjaOdKancelarijskihTroškova[],ROW()-ROW(OdstupanjaOdKancelarijskihTroškova[[#Headers],[Sep]]),1),INDEX(PlaniraniKancelarijskiTroškovi[],,1),0),MATCH(OdstupanjaOdKancelarijskihTroškova[[#Headers],[Sep]],PlaniraniKancelarijskiTroškovi[#Headers],0))-INDEX(StvarniKancelarijskiTroškovi[],MATCH(INDEX(OdstupanjaOdKancelarijskihTroškova[],ROW()-ROW(OdstupanjaOdKancelarijskihTroškova[[#Headers],[Sep]]),1),INDEX(PlaniraniKancelarijskiTroškovi[],,1),0),MATCH(OdstupanjaOdKancelarijskihTroškova[[#Headers],[Sep]],StvarniKancelarijskiTroškovi[#Headers],0))","v":{"v":180,"d":"180.00 RSD"}},{"$f":"INDEX(PlaniraniKancelarijskiTroškovi[],MATCH(INDEX(OdstupanjaOdKancelarijskihTroškova[],ROW()-ROW(OdstupanjaOdKancelarijskihTroškova[[#Headers],[Okt]]),1),INDEX(PlaniraniKancelarijskiTroškovi[],,1),0),MATCH(OdstupanjaOdKancelarijskihTroškova[[#Headers],[Okt]],PlaniraniKancelarijskiTroškovi[#Headers],0))-INDEX(StvarniKancelarijskiTroškovi[],MATCH(INDEX(OdstupanjaOdKancelarijskihTroškova[],ROW()-ROW(OdstupanjaOdKancelarijskihTroškova[[#Headers],[Okt]]),1),INDEX(PlaniraniKancelarijskiTroškovi[],,1),0),MATCH(OdstupanjaOdKancelarijskihTroškova[[#Headers],[Okt]],StvarniKancelarijskiTroškovi[#Headers],0))","v":{"v":180,"d":"180.00 RSD"}},{"$f":"INDEX(PlaniraniKancelarijskiTroškovi[],MATCH(INDEX(OdstupanjaOdKancelarijskihTroškova[],ROW()-ROW(OdstupanjaOdKancelarijskihTroškova[[#Headers],[Nov]]),1),INDEX(PlaniraniKancelarijskiTroškovi[],,1),0),MATCH(OdstupanjaOdKancelarijskihTroškova[[#Headers],[Nov]],PlaniraniKancelarijskiTroškovi[#Headers],0))-INDEX(StvarniKancelarijskiTroškovi[],MATCH(INDEX(OdstupanjaOdKancelarijskihTroškova[],ROW()-ROW(OdstupanjaOdKancelarijskihTroškova[[#Headers],[Nov]]),1),INDEX(PlaniraniKancelarijskiTroškovi[],,1),0),MATCH(OdstupanjaOdKancelarijskihTroškova[[#Headers],[Nov]],StvarniKancelarijskiTroškovi[#Headers],0))","v":{"v":180,"d":"180.00 RSD"}},{"$f":"INDEX(PlaniraniKancelarijskiTroškovi[],MATCH(INDEX(OdstupanjaOdKancelarijskihTroškova[],ROW()-ROW(OdstupanjaOdKancelarijskihTroškova[[#Headers],[Dec]]),1),INDEX(PlaniraniKancelarijskiTroškovi[],,1),0),MATCH(OdstupanjaOdKancelarijskihTroškova[[#Headers],[Dec]],PlaniraniKancelarijskiTroškovi[#Headers],0))-INDEX(StvarniKancelarijskiTroškovi[],MATCH(INDEX(OdstupanjaOdKancelarijskihTroškova[],ROW()-ROW(OdstupanjaOdKancelarijskihTroškova[[#Headers],[Dec]]),1),INDEX(PlaniraniKancelarijskiTroškovi[],,1),0),MATCH(OdstupanjaOdKancelarijskihTroškova[[#Headers],[Dec]],StvarniKancelarijskiTroškovi[#Headers],0))","v":{"v":180,"d":"180.00 RSD"}},{"$f":"SUM(OdstupanjaOdKancelarijskihTroškova[[#This Row],[Jan]:[Dec]])","v":{"v":1080,"d":"1,080.00 RSD"}}]
[null,"Kancelarijski materijal",{"$f":"INDEX(PlaniraniKancelarijskiTroškovi[],MATCH(INDEX(OdstupanjaOdKancelarijskihTroškova[],ROW()-ROW(OdstupanjaOdKancelarijskihTroškova[[#Headers],[Jan]]),1),INDEX(PlaniraniKancelarijskiTroškovi[],,1),0),MATCH(OdstupanjaOdKancelarijskihTroškova[[#Headers],[Jan]],PlaniraniKancelarijskiTroškovi[#Headers],0))-INDEX(StvarniKancelarijskiTroškovi[],MATCH(INDEX(OdstupanjaOdKancelarijskihTroškova[],ROW()-ROW(OdstupanjaOdKancelarijskihTroškova[[#Headers],[Jan]]),1),INDEX(PlaniraniKancelarijskiTroškovi[],,1),0),MATCH(OdstupanjaOdKancelarijskihTroškova[[#Headers],[Jan]],StvarniKancelarijskiTroškovi[#Headers],0))","v":{"v":-56,"d":"-56.00 RSD"}},{"$f":"INDEX(PlaniraniKancelarijskiTroškovi[],MATCH(INDEX(OdstupanjaOdKancelarijskihTroškova[],ROW()-ROW(OdstupanjaOdKancelarijskihTroškova[[#Headers],[Feb]]),1),INDEX(PlaniraniKancelarijskiTroškovi[],,1),0),MATCH(OdstupanjaOdKancelarijskihTroškova[[#Headers],[Feb]],PlaniraniKancelarijskiTroškovi[#Headers],0))-INDEX(StvarniKancelarijskiTroškovi[],MATCH(INDEX(OdstupanjaOdKancelarijskihTroškova[],ROW()-ROW(OdstupanjaOdKancelarijskihTroškova[[#Headers],[Feb]]),1),INDEX(PlaniraniKancelarijskiTroškovi[],,1),0),MATCH(OdstupanjaOdKancelarijskihTroškova[[#Headers],[Feb]],StvarniKancelarijskiTroškovi[#Headers],0))","v":{"v":58,"d":"58.00 RSD"}},{"$f":"INDEX(PlaniraniKancelarijskiTroškovi[],MATCH(INDEX(OdstupanjaOdKancelarijskihTroškova[],ROW()-ROW(OdstupanjaOdKancelarijskihTroškova[[#Headers],[Mar]]),1),INDEX(PlaniraniKancelarijskiTroškovi[],,1),0),MATCH(OdstupanjaOdKancelarijskihTroškova[[#Headers],[Mar]],PlaniraniKancelarijskiTroškovi[#Headers],0))-INDEX(StvarniKancelarijskiTroškovi[],MATCH(INDEX(OdstupanjaOdKancelarijskihTroškova[],ROW()-ROW(OdstupanjaOdKancelarijskihTroškova[[#Headers],[Mar]]),1),INDEX(PlaniraniKancelarijskiTroškovi[],,1),0),MATCH(OdstupanjaOdKancelarijskihTroškova[[#Headers],[Mar]],StvarniKancelarijskiTroškovi[#Headers],0))","v":{"v":40,"d":"40.00 RSD"}},{"$f":"INDEX(PlaniraniKancelarijskiTroškovi[],MATCH(INDEX(OdstupanjaOdKancelarijskihTroškova[],ROW()-ROW(OdstupanjaOdKancelarijskihTroškova[[#Headers],[Apr]]),1),INDEX(PlaniraniKancelarijskiTroškovi[],,1),0),MATCH(OdstupanjaOdKancelarijskihTroškova[[#Headers],[Apr]],PlaniraniKancelarijskiTroškovi[#Headers],0))-INDEX(StvarniKancelarijskiTroškovi[],MATCH(INDEX(OdstupanjaOdKancelarijskihTroškova[],ROW()-ROW(OdstupanjaOdKancelarijskihTroškova[[#Headers],[Apr]]),1),INDEX(PlaniraniKancelarijskiTroškovi[],,1),0),MATCH(OdstupanjaOdKancelarijskihTroškova[[#Headers],[Apr]],StvarniKancelarijskiTroškovi[#Headers],0))","v":{"v":-21,"d":"-21.00 RSD"}},{"$f":"INDEX(PlaniraniKancelarijskiTroškovi[],MATCH(INDEX(OdstupanjaOdKancelarijskihTroškova[],ROW()-ROW(OdstupanjaOdKancelarijskihTroškova[[#Headers],[Maj]]),1),INDEX(PlaniraniKancelarijskiTroškovi[],,1),0),MATCH(OdstupanjaOdKancelarijskihTroškova[[#Headers],[Maj]],PlaniraniKancelarijskiTroškovi[#Headers],0))-INDEX(StvarniKancelarijskiTroškovi[],MATCH(INDEX(OdstupanjaOdKancelarijskihTroškova[],ROW()-ROW(OdstupanjaOdKancelarijskihTroškova[[#Headers],[Maj]]),1),INDEX(PlaniraniKancelarijskiTroškovi[],,1),0),MATCH(OdstupanjaOdKancelarijskihTroškova[[#Headers],[Maj]],StvarniKancelarijskiTroškovi[#Headers],0))","v":{"v":-56,"d":"-56.00 RSD"}},{"$f":"INDEX(PlaniraniKancelarijskiTroškovi[],MATCH(INDEX(OdstupanjaOdKancelarijskihTroškova[],ROW()-ROW(OdstupanjaOdKancelarijskihTroškova[[#Headers],[Jun]]),1),INDEX(PlaniraniKancelarijskiTroškovi[],,1),0),MATCH(OdstupanjaOdKancelarijskihTroškova[[#Headers],[Jun]],PlaniraniKancelarijskiTroškovi[#Headers],0))-INDEX(StvarniKancelarijskiTroškovi[],MATCH(INDEX(OdstupanjaOdKancelarijskihTroškova[],ROW()-ROW(OdstupanjaOdKancelarijskihTroškova[[#Headers],[Jun]]),1),INDEX(PlaniraniKancelarijskiTroškovi[],,1),0),MATCH(OdstupanjaOdKancelarijskihTroškova[[#Headers],[Jun]],StvarniKancelarijskiTroškovi[#Headers],0))","v":{"v":-40,"d":"-40.00 RSD"}},{"$f":"INDEX(PlaniraniKancelarijskiTroškovi[],MATCH(INDEX(OdstupanjaOdKancelarijskihTroškova[],ROW()-ROW(OdstupanjaOdKancelarijskihTroškova[[#Headers],[Jul]]),1),INDEX(PlaniraniKancelarijskiTroškovi[],,1),0),MATCH(OdstupanjaOdKancelarijskihTroškova[[#Headers],[Jul]],PlaniraniKancelarijskiTroškovi[#Headers],0))-INDEX(StvarniKancelarijskiTroškovi[],MATCH(INDEX(OdstupanjaOdKancelarijskihTroškova[],ROW()-ROW(OdstupanjaOdKancelarijskihTroškova[[#Headers],[Jul]]),1),INDEX(PlaniraniKancelarijskiTroškovi[],,1),0),MATCH(OdstupanjaOdKancelarijskihTroškova[[#Headers],[Jul]],StvarniKancelarijskiTroškovi[#Headers],0))","v":{"v":200,"d":"200.00 RSD"}},{"$f":"INDEX(PlaniraniKancelarijskiTroškovi[],MATCH(INDEX(OdstupanjaOdKancelarijskihTroškova[],ROW()-ROW(OdstupanjaOdKancelarijskihTroškova[[#Headers],[Avg]]),1),INDEX(PlaniraniKancelarijskiTroškovi[],,1),0),MATCH(OdstupanjaOdKancelarijskihTroškova[[#Headers],[Avg]],PlaniraniKancelarijskiTroškovi[#Headers],0))-INDEX(StvarniKancelarijskiTroškovi[],MATCH(INDEX(OdstupanjaOdKancelarijskihTroškova[],ROW()-ROW(OdstupanjaOdKancelarijskihTroškova[[#Headers],[Avg]]),1),INDEX(PlaniraniKancelarijskiTroškovi[],,1),0),MATCH(OdstupanjaOdKancelarijskihTroškova[[#Headers],[Avg]],StvarniKancelarijskiTroškovi[#Headers],0))","v":{"v":200,"d":"200.00 RSD"}},{"$f":"INDEX(PlaniraniKancelarijskiTroškovi[],MATCH(INDEX(OdstupanjaOdKancelarijskihTroškova[],ROW()-ROW(OdstupanjaOdKancelarijskihTroškova[[#Headers],[Sep]]),1),INDEX(PlaniraniKancelarijskiTroškovi[],,1),0),MATCH(OdstupanjaOdKancelarijskihTroškova[[#Headers],[Sep]],PlaniraniKancelarijskiTroškovi[#Headers],0))-INDEX(StvarniKancelarijskiTroškovi[],MATCH(INDEX(OdstupanjaOdKancelarijskihTroškova[],ROW()-ROW(OdstupanjaOdKancelarijskihTroškova[[#Headers],[Sep]]),1),INDEX(PlaniraniKancelarijskiTroškovi[],,1),0),MATCH(OdstupanjaOdKancelarijskihTroškova[[#Headers],[Sep]],StvarniKancelarijskiTroškovi[#Headers],0))","v":{"v":200,"d":"200.00 RSD"}},{"$f":"INDEX(PlaniraniKancelarijskiTroškovi[],MATCH(INDEX(OdstupanjaOdKancelarijskihTroškova[],ROW()-ROW(OdstupanjaOdKancelarijskihTroškova[[#Headers],[Okt]]),1),INDEX(PlaniraniKancelarijskiTroškovi[],,1),0),MATCH(OdstupanjaOdKancelarijskihTroškova[[#Headers],[Okt]],PlaniraniKancelarijskiTroškovi[#Headers],0))-INDEX(StvarniKancelarijskiTroškovi[],MATCH(INDEX(OdstupanjaOdKancelarijskihTroškova[],ROW()-ROW(OdstupanjaOdKancelarijskihTroškova[[#Headers],[Okt]]),1),INDEX(PlaniraniKancelarijskiTroškovi[],,1),0),MATCH(OdstupanjaOdKancelarijskihTroškova[[#Headers],[Okt]],StvarniKancelarijskiTroškovi[#Headers],0))","v":{"v":200,"d":"200.00 RSD"}},{"$f":"INDEX(PlaniraniKancelarijskiTroškovi[],MATCH(INDEX(OdstupanjaOdKancelarijskihTroškova[],ROW()-ROW(OdstupanjaOdKancelarijskihTroškova[[#Headers],[Nov]]),1),INDEX(PlaniraniKancelarijskiTroškovi[],,1),0),MATCH(OdstupanjaOdKancelarijskihTroškova[[#Headers],[Nov]],PlaniraniKancelarijskiTroškovi[#Headers],0))-INDEX(StvarniKancelarijskiTroškovi[],MATCH(INDEX(OdstupanjaOdKancelarijskihTroškova[],ROW()-ROW(OdstupanjaOdKancelarijskihTroškova[[#Headers],[Nov]]),1),INDEX(PlaniraniKancelarijskiTroškovi[],,1),0),MATCH(OdstupanjaOdKancelarijskihTroškova[[#Headers],[Nov]],StvarniKancelarijskiTroškovi[#Headers],0))","v":{"v":200,"d":"200.00 RSD"}},{"$f":"INDEX(PlaniraniKancelarijskiTroškovi[],MATCH(INDEX(OdstupanjaOdKancelarijskihTroškova[],ROW()-ROW(OdstupanjaOdKancelarijskihTroškova[[#Headers],[Dec]]),1),INDEX(PlaniraniKancelarijskiTroškovi[],,1),0),MATCH(OdstupanjaOdKancelarijskihTroškova[[#Headers],[Dec]],PlaniraniKancelarijskiTroškovi[#Headers],0))-INDEX(StvarniKancelarijskiTroškovi[],MATCH(INDEX(OdstupanjaOdKancelarijskihTroškova[],ROW()-ROW(OdstupanjaOdKancelarijskihTroškova[[#Headers],[Dec]]),1),INDEX(PlaniraniKancelarijskiTroškovi[],,1),0),MATCH(OdstupanjaOdKancelarijskihTroškova[[#Headers],[Dec]],StvarniKancelarijskiTroškovi[#Headers],0))","v":{"v":200,"d":"200.00 RSD"}},{"$f":"SUM(OdstupanjaOdKancelarijskihTroškova[[#This Row],[Jan]:[Dec]])","v":{"v":1125,"d":"1,125.00 RSD"}}]
[null,"Obezbeđenje",{"$f":"INDEX(PlaniraniKancelarijskiTroškovi[],MATCH(INDEX(OdstupanjaOdKancelarijskihTroškova[],ROW()-ROW(OdstupanjaOdKancelarijskihTroškova[[#Headers],[Jan]]),1),INDEX(PlaniraniKancelarijskiTroškovi[],,1),0),MATCH(OdstupanjaOdKancelarijskihTroškova[[#Headers],[Jan]],PlaniraniKancelarijskiTroškovi[#Headers],0))-INDEX(StvarniKancelarijskiTroškovi[],MATCH(INDEX(OdstupanjaOdKancelarijskihTroškova[],ROW()-ROW(OdstupanjaOdKancelarijskihTroškova[[#Headers],[Jan]]),1),INDEX(PlaniraniKancelarijskiTroškovi[],,1),0),MATCH(OdstupanjaOdKancelarijskihTroškova[[#Headers],[Jan]],StvarniKancelarijskiTroškovi[#Headers],0))","v":{"v":0,"d":"0.00 RSD"}},{"$f":"INDEX(PlaniraniKancelarijskiTroškovi[],MATCH(INDEX(OdstupanjaOdKancelarijskihTroškova[],ROW()-ROW(OdstupanjaOdKancelarijskihTroškova[[#Headers],[Feb]]),1),INDEX(PlaniraniKancelarijskiTroškovi[],,1),0),MATCH(OdstupanjaOdKancelarijskihTroškova[[#Headers],[Feb]],PlaniraniKancelarijskiTroškovi[#Headers],0))-INDEX(StvarniKancelarijskiTroškovi[],MATCH(INDEX(OdstupanjaOdKancelarijskihTroškova[],ROW()-ROW(OdstupanjaOdKancelarijskihTroškova[[#Headers],[Feb]]),1),INDEX(PlaniraniKancelarijskiTroškovi[],,1),0),MATCH(OdstupanjaOdKancelarijskihTroškova[[#Headers],[Feb]],StvarniKancelarijskiTroškovi[#Headers],0))","v":{"v":0,"d":"0.00 RSD"}},{"$f":"INDEX(PlaniraniKancelarijskiTroškovi[],MATCH(INDEX(OdstupanjaOdKancelarijskihTroškova[],ROW()-ROW(OdstupanjaOdKancelarijskihTroškova[[#Headers],[Mar]]),1),INDEX(PlaniraniKancelarijskiTroškovi[],,1),0),MATCH(OdstupanjaOdKancelarijskihTroškova[[#Headers],[Mar]],PlaniraniKancelarijskiTroškovi[#Headers],0))-INDEX(StvarniKancelarijskiTroškovi[],MATCH(INDEX(OdstupanjaOdKancelarijskihTroškova[],ROW()-ROW(OdstupanjaOdKancelarijskihTroškova[[#Headers],[Mar]]),1),INDEX(PlaniraniKancelarijskiTroškovi[],,1),0),MATCH(OdstupanjaOdKancelarijskihTroškova[[#Headers],[Mar]],StvarniKancelarijskiTroškovi[#Headers],0))","v":{"v":0,"d":"0.00 RSD"}},{"$f":"INDEX(PlaniraniKancelarijskiTroškovi[],MATCH(INDEX(OdstupanjaOdKancelarijskihTroškova[],ROW()-ROW(OdstupanjaOdKancelarijskihTroškova[[#Headers],[Apr]]),1),INDEX(PlaniraniKancelarijskiTroškovi[],,1),0),MATCH(OdstupanjaOdKancelarijskihTroškova[[#Headers],[Apr]],PlaniraniKancelarijskiTroškovi[#Headers],0))-INDEX(StvarniKancelarijskiTroškovi[],MATCH(INDEX(OdstupanjaOdKancelarijskihTroškova[],ROW()-ROW(OdstupanjaOdKancelarijskihTroškova[[#Headers],[Apr]]),1),INDEX(PlaniraniKancelarijskiTroškovi[],,1),0),MATCH(OdstupanjaOdKancelarijskihTroškova[[#Headers],[Apr]],StvarniKancelarijskiTroškovi[#Headers],0))","v":{"v":0,"d":"0.00 RSD"}},{"$f":"INDEX(PlaniraniKancelarijskiTroškovi[],MATCH(INDEX(OdstupanjaOdKancelarijskihTroškova[],ROW()-ROW(OdstupanjaOdKancelarijskihTroškova[[#Headers],[Maj]]),1),INDEX(PlaniraniKancelarijskiTroškovi[],,1),0),MATCH(OdstupanjaOdKancelarijskihTroškova[[#Headers],[Maj]],PlaniraniKancelarijskiTroškovi[#Headers],0))-INDEX(StvarniKancelarijskiTroškovi[],MATCH(INDEX(OdstupanjaOdKancelarijskihTroškova[],ROW()-ROW(OdstupanjaOdKancelarijskihTroškova[[#Headers],[Maj]]),1),INDEX(PlaniraniKancelarijskiTroškovi[],,1),0),MATCH(OdstupanjaOdKancelarijskihTroškova[[#Headers],[Maj]],StvarniKancelarijskiTroškovi[#Headers],0))","v":{"v":0,"d":"0.00 RSD"}},{"$f":"INDEX(PlaniraniKancelarijskiTroškovi[],MATCH(INDEX(OdstupanjaOdKancelarijskihTroškova[],ROW()-ROW(OdstupanjaOdKancelarijskihTroškova[[#Headers],[Jun]]),1),INDEX(PlaniraniKancelarijskiTroškovi[],,1),0),MATCH(OdstupanjaOdKancelarijskihTroškova[[#Headers],[Jun]],PlaniraniKancelarijskiTroškovi[#Headers],0))-INDEX(StvarniKancelarijskiTroškovi[],MATCH(INDEX(OdstupanjaOdKancelarijskihTroškova[],ROW()-ROW(OdstupanjaOdKancelarijskihTroškova[[#Headers],[Jun]]),1),INDEX(PlaniraniKancelarijskiTroškovi[],,1),0),MATCH(OdstupanjaOdKancelarijskihTroškova[[#Headers],[Jun]],StvarniKancelarijskiTroškovi[#Headers],0))","v":{"v":0,"d":"0.00 RSD"}},{"$f":"INDEX(PlaniraniKancelarijskiTroškovi[],MATCH(INDEX(OdstupanjaOdKancelarijskihTroškova[],ROW()-ROW(OdstupanjaOdKancelarijskihTroškova[[#Headers],[Jul]]),1),INDEX(PlaniraniKancelarijskiTroškovi[],,1),0),MATCH(OdstupanjaOdKancelarijskihTroškova[[#Headers],[Jul]],PlaniraniKancelarijskiTroškovi[#Headers],0))-INDEX(StvarniKancelarijskiTroškovi[],MATCH(INDEX(OdstupanjaOdKancelarijskihTroškova[],ROW()-ROW(OdstupanjaOdKancelarijskihTroškova[[#Headers],[Jul]]),1),INDEX(PlaniraniKancelarijskiTroškovi[],,1),0),MATCH(OdstupanjaOdKancelarijskihTroškova[[#Headers],[Jul]],StvarniKancelarijskiTroškovi[#Headers],0))","v":{"v":600,"d":"600.00 RSD"}},{"$f":"INDEX(PlaniraniKancelarijskiTroškovi[],MATCH(INDEX(OdstupanjaOdKancelarijskihTroškova[],ROW()-ROW(OdstupanjaOdKancelarijskihTroškova[[#Headers],[Avg]]),1),INDEX(PlaniraniKancelarijskiTroškovi[],,1),0),MATCH(OdstupanjaOdKancelarijskihTroškova[[#Headers],[Avg]],PlaniraniKancelarijskiTroškovi[#Headers],0))-INDEX(StvarniKancelarijskiTroškovi[],MATCH(INDEX(OdstupanjaOdKancelarijskihTroškova[],ROW()-ROW(OdstupanjaOdKancelarijskihTroškova[[#Headers],[Avg]]),1),INDEX(PlaniraniKancelarijskiTroškovi[],,1),0),MATCH(OdstupanjaOdKancelarijskihTroškova[[#Headers],[Avg]],StvarniKancelarijskiTroškovi[#Headers],0))","v":{"v":600,"d":"600.00 RSD"}},{"$f":"INDEX(PlaniraniKancelarijskiTroškovi[],MATCH(INDEX(OdstupanjaOdKancelarijskihTroškova[],ROW()-ROW(OdstupanjaOdKancelarijskihTroškova[[#Headers],[Sep]]),1),INDEX(PlaniraniKancelarijskiTroškovi[],,1),0),MATCH(OdstupanjaOdKancelarijskihTroškova[[#Headers],[Sep]],PlaniraniKancelarijskiTroškovi[#Headers],0))-INDEX(StvarniKancelarijskiTroškovi[],MATCH(INDEX(OdstupanjaOdKancelarijskihTroškova[],ROW()-ROW(OdstupanjaOdKancelarijskihTroškova[[#Headers],[Sep]]),1),INDEX(PlaniraniKancelarijskiTroškovi[],,1),0),MATCH(OdstupanjaOdKancelarijskihTroškova[[#Headers],[Sep]],StvarniKancelarijskiTroškovi[#Headers],0))","v":{"v":600,"d":"600.00 RSD"}},{"$f":"INDEX(PlaniraniKancelarijskiTroškovi[],MATCH(INDEX(OdstupanjaOdKancelarijskihTroškova[],ROW()-ROW(OdstupanjaOdKancelarijskihTroškova[[#Headers],[Okt]]),1),INDEX(PlaniraniKancelarijskiTroškovi[],,1),0),MATCH(OdstupanjaOdKancelarijskihTroškova[[#Headers],[Okt]],PlaniraniKancelarijskiTroškovi[#Headers],0))-INDEX(StvarniKancelarijskiTroškovi[],MATCH(INDEX(OdstupanjaOdKancelarijskihTroškova[],ROW()-ROW(OdstupanjaOdKancelarijskihTroškova[[#Headers],[Okt]]),1),INDEX(PlaniraniKancelarijskiTroškovi[],,1),0),MATCH(OdstupanjaOdKancelarijskihTroškova[[#Headers],[Okt]],StvarniKancelarijskiTroškovi[#Headers],0))","v":{"v":600,"d":"600.00 RSD"}},{"$f":"INDEX(PlaniraniKancelarijskiTroškovi[],MATCH(INDEX(OdstupanjaOdKancelarijskihTroškova[],ROW()-ROW(OdstupanjaOdKancelarijskihTroškova[[#Headers],[Nov]]),1),INDEX(PlaniraniKancelarijskiTroškovi[],,1),0),MATCH(OdstupanjaOdKancelarijskihTroškova[[#Headers],[Nov]],PlaniraniKancelarijskiTroškovi[#Headers],0))-INDEX(StvarniKancelarijskiTroškovi[],MATCH(INDEX(OdstupanjaOdKancelarijskihTroškova[],ROW()-ROW(OdstupanjaOdKancelarijskihTroškova[[#Headers],[Nov]]),1),INDEX(PlaniraniKancelarijskiTroškovi[],,1),0),MATCH(OdstupanjaOdKancelarijskihTroškova[[#Headers],[Nov]],StvarniKancelarijskiTroškovi[#Headers],0))","v":{"v":600,"d":"600.00 RSD"}},{"$f":"INDEX(PlaniraniKancelarijskiTroškovi[],MATCH(INDEX(OdstupanjaOdKancelarijskihTroškova[],ROW()-ROW(OdstupanjaOdKancelarijskihTroškova[[#Headers],[Dec]]),1),INDEX(PlaniraniKancelarijskiTroškovi[],,1),0),MATCH(OdstupanjaOdKancelarijskihTroškova[[#Headers],[Dec]],PlaniraniKancelarijskiTroškovi[#Headers],0))-INDEX(StvarniKancelarijskiTroškovi[],MATCH(INDEX(OdstupanjaOdKancelarijskihTroškova[],ROW()-ROW(OdstupanjaOdKancelarijskihTroškova[[#Headers],[Dec]]),1),INDEX(PlaniraniKancelarijskiTroškovi[],,1),0),MATCH(OdstupanjaOdKancelarijskihTroškova[[#Headers],[Dec]],StvarniKancelarijskiTroškovi[#Headers],0))","v":{"v":600,"d":"600.00 RSD"}},{"$f":"SUM(OdstupanjaOdKancelarijskihTroškova[[#This Row],[Jan]:[Dec]])","v":{"v":3600,"d":"3,600.00 RSD"}}]
[null,"Međuvrednost",{"$f":"SUBTOTAL(109,OdstupanjaOdKancelarijskihTroškova[Jan])","v":{"v":-17,"d":"-17.00 RSD"}},{"$f":"SUBTOTAL(109,OdstupanjaOdKancelarijskihTroškova[Feb])","v":{"v":72,"d":"72.00 RSD"}},{"$f":"SUBTOTAL(109,OdstupanjaOdKancelarijskihTroškova[Mar])","v":{"v":78,"d":"78.00 RSD"}},{"$f":"SUBTOTAL(109,OdstupanjaOdKancelarijskihTroškova[Apr])","v":{"v":-141,"d":"-141.00 RSD"}},{"$f":"SUBTOTAL(109,OdstupanjaOdKancelarijskihTroškova[Maj])","v":{"v":-38,"d":"-38.00 RSD"}},{"$f":"SUBTOTAL(109,OdstupanjaOdKancelarijskihTroškova[Jun])","v":{"v":16,"d":"16.00 RSD"}},{"$f":"SUBTOTAL(109,OdstupanjaOdKancelarijskihTroškova[Jul])","v":{"v":11470,"d":"11,470.00 RSD"}},{"$f":"SUBTOTAL(109,OdstupanjaOdKancelarijskihTroškova[Avg])","v":{"v":11470,"d":"11,470.00 RSD"}},{"$f":"SUBTOTAL(109,OdstupanjaOdKancelarijskihTroškova[Sep])","v":{"v":11470,"d":"11,470.00 RSD"}},{"$f":"SUBTOTAL(109,OdstupanjaOdKancelarijskihTroškova[Okt])","v":{"v":11470,"d":"11,470.00 RSD"}},{"$f":"SUBTOTAL(109,OdstupanjaOdKancelarijskihTroškova[Nov])","v":{"v":11770,"d":"11,770.00 RSD"}},{"$f":"SUBTOTAL(109,OdstupanjaOdKancelarijskihTroškova[Dec])","v":{"v":11770,"d":"11,770.00 RSD"}},{"$f":"SUBTOTAL(109,OdstupanjaOdKancelarijskihTroškova[GODINA])","v":{"v":69390,"d":"69,390.00 RSD"}}]
[]
[null,"Troškovi marketinga","Jan","Feb","Mar","Apr","Maj","Jun","Jul","Avg","Sep","Okt","Nov","Dec","GODINA"]
[null,"Hostovanje veb sajta",{"$f":"INDEX(PlaniraniTroškoviMarketinga[],MATCH(INDEX(OdstupanjaOdTroškovaMarketinga[],ROW()-ROW(OdstupanjaOdTroškovaMarketinga[[#Headers],[Jan]]),1),INDEX(PlaniraniTroškoviMarketinga[],,1),0),MATCH(OdstupanjaOdTroškovaMarketinga[[#Headers],[Jan]],PlaniraniTroškoviMarketinga[#Headers],0))-INDEX(StvarniTroškoviMarketinga[],MATCH(INDEX(OdstupanjaOdTroškovaMarketinga[],ROW()-ROW(OdstupanjaOdTroškovaMarketinga[[#Headers],[Jan]]),1),INDEX(PlaniraniTroškoviMarketinga[],,1),0),MATCH(OdstupanjaOdTroškovaMarketinga[[#Headers],[Jan]],StvarniTroškoviMarketinga[#Headers],0))","v":{"v":0,"d":"0.00 RSD"}},{"$f":"INDEX(PlaniraniTroškoviMarketinga[],MATCH(INDEX(OdstupanjaOdTroškovaMarketinga[],ROW()-ROW(OdstupanjaOdTroškovaMarketinga[[#Headers],[Feb]]),1),INDEX(PlaniraniTroškoviMarketinga[],,1),0),MATCH(OdstupanjaOdTroškovaMarketinga[[#Headers],[Feb]],PlaniraniTroškoviMarketinga[#Headers],0))-INDEX(StvarniTroškoviMarketinga[],MATCH(INDEX(OdstupanjaOdTroškovaMarketinga[],ROW()-ROW(OdstupanjaOdTroškovaMarketinga[[#Headers],[Feb]]),1),INDEX(PlaniraniTroškoviMarketinga[],,1),0),MATCH(OdstupanjaOdTroškovaMarketinga[[#Headers],[Feb]],StvarniTroškoviMarketinga[#Headers],0))","v":{"v":0,"d":"0.00 RSD"}},{"$f":"INDEX(PlaniraniTroškoviMarketinga[],MATCH(INDEX(OdstupanjaOdTroškovaMarketinga[],ROW()-ROW(OdstupanjaOdTroškovaMarketinga[[#Headers],[Mar]]),1),INDEX(PlaniraniTroškoviMarketinga[],,1),0),MATCH(OdstupanjaOdTroškovaMarketinga[[#Headers],[Mar]],PlaniraniTroškoviMarketinga[#Headers],0))-INDEX(StvarniTroškoviMarketinga[],MATCH(INDEX(OdstupanjaOdTroškovaMarketinga[],ROW()-ROW(OdstupanjaOdTroškovaMarketinga[[#Headers],[Mar]]),1),INDEX(PlaniraniTroškoviMarketinga[],,1),0),MATCH(OdstupanjaOdTroškovaMarketinga[[#Headers],[Mar]],StvarniTroškoviMarketinga[#Headers],0))","v":{"v":0,"d":"0.00 RSD"}},{"$f":"INDEX(PlaniraniTroškoviMarketinga[],MATCH(INDEX(OdstupanjaOdTroškovaMarketinga[],ROW()-ROW(OdstupanjaOdTroškovaMarketinga[[#Headers],[Apr]]),1),INDEX(PlaniraniTroškoviMarketinga[],,1),0),MATCH(OdstupanjaOdTroškovaMarketinga[[#Headers],[Apr]],PlaniraniTroškoviMarketinga[#Headers],0))-INDEX(StvarniTroškoviMarketinga[],MATCH(INDEX(OdstupanjaOdTroškovaMarketinga[],ROW()-ROW(OdstupanjaOdTroškovaMarketinga[[#Headers],[Apr]]),1),INDEX(PlaniraniTroškoviMarketinga[],,1),0),MATCH(OdstupanjaOdTroškovaMarketinga[[#Headers],[Apr]],StvarniTroškoviMarketinga[#Headers],0))","v":{"v":0,"d":"0.00 RSD"}},{"$f":"INDEX(PlaniraniTroškoviMarketinga[],MATCH(INDEX(OdstupanjaOdTroškovaMarketinga[],ROW()-ROW(OdstupanjaOdTroškovaMarketinga[[#Headers],[Maj]]),1),INDEX(PlaniraniTroškoviMarketinga[],,1),0),MATCH(OdstupanjaOdTroškovaMarketinga[[#Headers],[Maj]],PlaniraniTroškoviMarketinga[#Headers],0))-INDEX(StvarniTroškoviMarketinga[],MATCH(INDEX(OdstupanjaOdTroškovaMarketinga[],ROW()-ROW(OdstupanjaOdTroškovaMarketinga[[#Headers],[Maj]]),1),INDEX(PlaniraniTroškoviMarketinga[],,1),0),MATCH(OdstupanjaOdTroškovaMarketinga[[#Headers],[Maj]],StvarniTroškoviMarketinga[#Headers],0))","v":{"v":0,"d":"0.00 RSD"}},{"$f":"INDEX(PlaniraniTroškoviMarketinga[],MATCH(INDEX(OdstupanjaOdTroškovaMarketinga[],ROW()-ROW(OdstupanjaOdTroškovaMarketinga[[#Headers],[Jun]]),1),INDEX(PlaniraniTroškoviMarketinga[],,1),0),MATCH(OdstupanjaOdTroškovaMarketinga[[#Headers],[Jun]],PlaniraniTroškoviMarketinga[#Headers],0))-INDEX(StvarniTroškoviMarketinga[],MATCH(INDEX(OdstupanjaOdTroškovaMarketinga[],ROW()-ROW(OdstupanjaOdTroškovaMarketinga[[#Headers],[Jun]]),1),INDEX(PlaniraniTroškoviMarketinga[],,1),0),MATCH(OdstupanjaOdTroškovaMarketinga[[#Headers],[Jun]],StvarniTroškoviMarketinga[#Headers],0))","v":{"v":0,"d":"0.00 RSD"}},{"$f":"INDEX(PlaniraniTroškoviMarketinga[],MATCH(INDEX(OdstupanjaOdTroškovaMarketinga[],ROW()-ROW(OdstupanjaOdTroškovaMarketinga[[#Headers],[Jul]]),1),INDEX(PlaniraniTroškoviMarketinga[],,1),0),MATCH(OdstupanjaOdTroškovaMarketinga[[#Headers],[Jul]],PlaniraniTroškoviMarketinga[#Headers],0))-INDEX(StvarniTroškoviMarketinga[],MATCH(INDEX(OdstupanjaOdTroškovaMarketinga[],ROW()-ROW(OdstupanjaOdTroškovaMarketinga[[#Headers],[Jul]]),1),INDEX(PlaniraniTroškoviMarketinga[],,1),0),MATCH(OdstupanjaOdTroškovaMarketinga[[#Headers],[Jul]],StvarniTroškoviMarketinga[#Headers],0))","v":{"v":500,"d":"500.00 RSD"}},{"$f":"INDEX(PlaniraniTroškoviMarketinga[],MATCH(INDEX(OdstupanjaOdTroškovaMarketinga[],ROW()-ROW(OdstupanjaOdTroškovaMarketinga[[#Headers],[Avg]]),1),INDEX(PlaniraniTroškoviMarketinga[],,1),0),MATCH(OdstupanjaOdTroškovaMarketinga[[#Headers],[Avg]],PlaniraniTroškoviMarketinga[#Headers],0))-INDEX(StvarniTroškoviMarketinga[],MATCH(INDEX(OdstupanjaOdTroškovaMarketinga[],ROW()-ROW(OdstupanjaOdTroškovaMarketinga[[#Headers],[Avg]]),1),INDEX(PlaniraniTroškoviMarketinga[],,1),0),MATCH(OdstupanjaOdTroškovaMarketinga[[#Headers],[Avg]],StvarniTroškoviMarketinga[#Headers],0))","v":{"v":500,"d":"500.00 RSD"}},{"$f":"INDEX(PlaniraniTroškoviMarketinga[],MATCH(INDEX(OdstupanjaOdTroškovaMarketinga[],ROW()-ROW(OdstupanjaOdTroškovaMarketinga[[#Headers],[Sep]]),1),INDEX(PlaniraniTroškoviMarketinga[],,1),0),MATCH(OdstupanjaOdTroškovaMarketinga[[#Headers],[Sep]],PlaniraniTroškoviMarketinga[#Headers],0))-INDEX(StvarniTroškoviMarketinga[],MATCH(INDEX(OdstupanjaOdTroškovaMarketinga[],ROW()-ROW(OdstupanjaOdTroškovaMarketinga[[#Headers],[Sep]]),1),INDEX(PlaniraniTroškoviMarketinga[],,1),0),MATCH(OdstupanjaOdTroškovaMarketinga[[#Headers],[Sep]],StvarniTroškoviMarketinga[#Headers],0))","v":{"v":500,"d":"500.00 RSD"}},{"$f":"INDEX(PlaniraniTroškoviMarketinga[],MATCH(INDEX(OdstupanjaOdTroškovaMarketinga[],ROW()-ROW(OdstupanjaOdTroškovaMarketinga[[#Headers],[Okt]]),1),INDEX(PlaniraniTroškoviMarketinga[],,1),0),MATCH(OdstupanjaOdTroškovaMarketinga[[#Headers],[Okt]],PlaniraniTroškoviMarketinga[#Headers],0))-INDEX(StvarniTroškoviMarketinga[],MATCH(INDEX(OdstupanjaOdTroškovaMarketinga[],ROW()-ROW(OdstupanjaOdTroškovaMarketinga[[#Headers],[Okt]]),1),INDEX(PlaniraniTroškoviMarketinga[],,1),0),MATCH(OdstupanjaOdTroškovaMarketinga[[#Headers],[Okt]],StvarniTroškoviMarketinga[#Headers],0))","v":{"v":500,"d":"500.00 RSD"}},{"$f":"INDEX(PlaniraniTroškoviMarketinga[],MATCH(INDEX(OdstupanjaOdTroškovaMarketinga[],ROW()-ROW(OdstupanjaOdTroškovaMarketinga[[#Headers],[Nov]]),1),INDEX(PlaniraniTroškoviMarketinga[],,1),0),MATCH(OdstupanjaOdTroškovaMarketinga[[#Headers],[Nov]],PlaniraniTroškoviMarketinga[#Headers],0))-INDEX(StvarniTroškoviMarketinga[],MATCH(INDEX(OdstupanjaOdTroškovaMarketinga[],ROW()-ROW(OdstupanjaOdTroškovaMarketinga[[#Headers],[Nov]]),1),INDEX(PlaniraniTroškoviMarketinga[],,1),0),MATCH(OdstupanjaOdTroškovaMarketinga[[#Headers],[Nov]],StvarniTroškoviMarketinga[#Headers],0))","v":{"v":500,"d":"500.00 RSD"}},{"$f":"INDEX(PlaniraniTroškoviMarketinga[],MATCH(INDEX(OdstupanjaOdTroškovaMarketinga[],ROW()-ROW(OdstupanjaOdTroškovaMarketinga[[#Headers],[Dec]]),1),INDEX(PlaniraniTroškoviMarketinga[],,1),0),MATCH(OdstupanjaOdTroškovaMarketinga[[#Headers],[Dec]],PlaniraniTroškoviMarketinga[#Headers],0))-INDEX(StvarniTroškoviMarketinga[],MATCH(INDEX(OdstupanjaOdTroškovaMarketinga[],ROW()-ROW(OdstupanjaOdTroškovaMarketinga[[#Headers],[Dec]]),1),INDEX(PlaniraniTroškoviMarketinga[],,1),0),MATCH(OdstupanjaOdTroškovaMarketinga[[#Headers],[Dec]],StvarniTroškoviMarketinga[#Headers],0))","v":{"v":500,"d":"500.00 RSD"}},{"$f":"SUM(OdstupanjaOdTroškovaMarketinga[[#This Row],[Jan]:[Dec]])","v":{"v":3000,"d":"3,000.00 RSD"}}]
[null,"Ažuriranja veb sajta",{"$f":"INDEX(PlaniraniTroškoviMarketinga[],MATCH(INDEX(OdstupanjaOdTroškovaMarketinga[],ROW()-ROW(OdstupanjaOdTroškovaMarketinga[[#Headers],[Jan]]),1),INDEX(PlaniraniTroškoviMarketinga[],,1),0),MATCH(OdstupanjaOdTroškovaMarketinga[[#Headers],[Jan]],PlaniraniTroškoviMarketinga[#Headers],0))-INDEX(StvarniTroškoviMarketinga[],MATCH(INDEX(OdstupanjaOdTroškovaMarketinga[],ROW()-ROW(OdstupanjaOdTroškovaMarketinga[[#Headers],[Jan]]),1),INDEX(PlaniraniTroškoviMarketinga[],,1),0),MATCH(OdstupanjaOdTroškovaMarketinga[[#Headers],[Jan]],StvarniTroškoviMarketinga[#Headers],0))","v":{"v":0,"d":"0.00 RSD"}},{"$f":"INDEX(PlaniraniTroškoviMarketinga[],MATCH(INDEX(OdstupanjaOdTroškovaMarketinga[],ROW()-ROW(OdstupanjaOdTroškovaMarketinga[[#Headers],[Feb]]),1),INDEX(PlaniraniTroškoviMarketinga[],,1),0),MATCH(OdstupanjaOdTroškovaMarketinga[[#Headers],[Feb]],PlaniraniTroškoviMarketinga[#Headers],0))-INDEX(StvarniTroškoviMarketinga[],MATCH(INDEX(OdstupanjaOdTroškovaMarketinga[],ROW()-ROW(OdstupanjaOdTroškovaMarketinga[[#Headers],[Feb]]),1),INDEX(PlaniraniTroškoviMarketinga[],,1),0),MATCH(OdstupanjaOdTroškovaMarketinga[[#Headers],[Feb]],StvarniTroškoviMarketinga[#Headers],0))","v":{"v":0,"d":"0.00 RSD"}},{"$f":"INDEX(PlaniraniTroškoviMarketinga[],MATCH(INDEX(OdstupanjaOdTroškovaMarketinga[],ROW()-ROW(OdstupanjaOdTroškovaMarketinga[[#Headers],[Mar]]),1),INDEX(PlaniraniTroškoviMarketinga[],,1),0),MATCH(OdstupanjaOdTroškovaMarketinga[[#Headers],[Mar]],PlaniraniTroškoviMarketinga[#Headers],0))-INDEX(StvarniTroškoviMarketinga[],MATCH(INDEX(OdstupanjaOdTroškovaMarketinga[],ROW()-ROW(OdstupanjaOdTroškovaMarketinga[[#Headers],[Mar]]),1),INDEX(PlaniraniTroškoviMarketinga[],,1),0),MATCH(OdstupanjaOdTroškovaMarketinga[[#Headers],[Mar]],StvarniTroškoviMarketinga[#Headers],0))","v":{"v":0,"d":"0.00 RSD"}},{"$f":"INDEX(PlaniraniTroškoviMarketinga[],MATCH(INDEX(OdstupanjaOdTroškovaMarketinga[],ROW()-ROW(OdstupanjaOdTroškovaMarketinga[[#Headers],[Apr]]),1),INDEX(PlaniraniTroškoviMarketinga[],,1),0),MATCH(OdstupanjaOdTroškovaMarketinga[[#Headers],[Apr]],PlaniraniTroškoviMarketinga[#Headers],0))-INDEX(StvarniTroškoviMarketinga[],MATCH(INDEX(OdstupanjaOdTroškovaMarketinga[],ROW()-ROW(OdstupanjaOdTroškovaMarketinga[[#Headers],[Apr]]),1),INDEX(PlaniraniTroškoviMarketinga[],,1),0),MATCH(OdstupanjaOdTroškovaMarketinga[[#Headers],[Apr]],StvarniTroškoviMarketinga[#Headers],0))","v":{"v":0,"d":"0.00 RSD"}},{"$f":"INDEX(PlaniraniTroškoviMarketinga[],MATCH(INDEX(OdstupanjaOdTroškovaMarketinga[],ROW()-ROW(OdstupanjaOdTroškovaMarketinga[[#Headers],[Maj]]),1),INDEX(PlaniraniTroškoviMarketinga[],,1),0),MATCH(OdstupanjaOdTroškovaMarketinga[[#Headers],[Maj]],PlaniraniTroškoviMarketinga[#Headers],0))-INDEX(StvarniTroškoviMarketinga[],MATCH(INDEX(OdstupanjaOdTroškovaMarketinga[],ROW()-ROW(OdstupanjaOdTroškovaMarketinga[[#Headers],[Maj]]),1),INDEX(PlaniraniTroškoviMarketinga[],,1),0),MATCH(OdstupanjaOdTroškovaMarketinga[[#Headers],[Maj]],StvarniTroškoviMarketinga[#Headers],0))","v":{"v":0,"d":"0.00 RSD"}},{"$f":"INDEX(PlaniraniTroškoviMarketinga[],MATCH(INDEX(OdstupanjaOdTroškovaMarketinga[],ROW()-ROW(OdstupanjaOdTroškovaMarketinga[[#Headers],[Jun]]),1),INDEX(PlaniraniTroškoviMarketinga[],,1),0),MATCH(OdstupanjaOdTroškovaMarketinga[[#Headers],[Jun]],PlaniraniTroškoviMarketinga[#Headers],0))-INDEX(StvarniTroškoviMarketinga[],MATCH(INDEX(OdstupanjaOdTroškovaMarketinga[],ROW()-ROW(OdstupanjaOdTroškovaMarketinga[[#Headers],[Jun]]),1),INDEX(PlaniraniTroškoviMarketinga[],,1),0),MATCH(OdstupanjaOdTroškovaMarketinga[[#Headers],[Jun]],StvarniTroškoviMarketinga[#Headers],0))","v":{"v":-500,"d":"-500.00 RSD"}},{"$f":"INDEX(PlaniraniTroškoviMarketinga[],MATCH(INDEX(OdstupanjaOdTroškovaMarketinga[],ROW()-ROW(OdstupanjaOdTroškovaMarketinga[[#Headers],[Jul]]),1),INDEX(PlaniraniTroškoviMarketinga[],,1),0),MATCH(OdstupanjaOdTroškovaMarketinga[[#Headers],[Jul]],PlaniraniTroškoviMarketinga[#Headers],0))-INDEX(StvarniTroškoviMarketinga[],MATCH(INDEX(OdstupanjaOdTroškovaMarketinga[],ROW()-ROW(OdstupanjaOdTroškovaMarketinga[[#Headers],[Jul]]),1),INDEX(PlaniraniTroškoviMarketinga[],,1),0),MATCH(OdstupanjaOdTroškovaMarketinga[[#Headers],[Jul]],StvarniTroškoviMarketinga[#Headers],0))","v":{"v":200,"d":"200.00 RSD"}},{"$f":"INDEX(PlaniraniTroškoviMarketinga[],MATCH(INDEX(OdstupanjaOdTroškovaMarketinga[],ROW()-ROW(OdstupanjaOdTroškovaMarketinga[[#Headers],[Avg]]),1),INDEX(PlaniraniTroškoviMarketinga[],,1),0),MATCH(OdstupanjaOdTroškovaMarketinga[[#Headers],[Avg]],PlaniraniTroškoviMarketinga[#Headers],0))-INDEX(StvarniTroškoviMarketinga[],MATCH(INDEX(OdstupanjaOdTroškovaMarketinga[],ROW()-ROW(OdstupanjaOdTroškovaMarketinga[[#Headers],[Avg]]),1),INDEX(PlaniraniTroškoviMarketinga[],,1),0),MATCH(OdstupanjaOdTroškovaMarketinga[[#Headers],[Avg]],StvarniTroškoviMarketinga[#Headers],0))","v":{"v":200,"d":"200.00 RSD"}},{"$f":"INDEX(PlaniraniTroškoviMarketinga[],MATCH(INDEX(OdstupanjaOdTroškovaMarketinga[],ROW()-ROW(OdstupanjaOdTroškovaMarketinga[[#Headers],[Sep]]),1),INDEX(PlaniraniTroškoviMarketinga[],,1),0),MATCH(OdstupanjaOdTroškovaMarketinga[[#Headers],[Sep]],PlaniraniTroškoviMarketinga[#Headers],0))-INDEX(StvarniTroškoviMarketinga[],MATCH(INDEX(OdstupanjaOdTroškovaMarketinga[],ROW()-ROW(OdstupanjaOdTroškovaMarketinga[[#Headers],[Sep]]),1),INDEX(PlaniraniTroškoviMarketinga[],,1),0),MATCH(OdstupanjaOdTroškovaMarketinga[[#Headers],[Sep]],StvarniTroškoviMarketinga[#Headers],0))","v":{"v":200,"d":"200.00 RSD"}},{"$f":"INDEX(PlaniraniTroškoviMarketinga[],MATCH(INDEX(OdstupanjaOdTroškovaMarketinga[],ROW()-ROW(OdstupanjaOdTroškovaMarketinga[[#Headers],[Okt]]),1),INDEX(PlaniraniTroškoviMarketinga[],,1),0),MATCH(OdstupanjaOdTroškovaMarketinga[[#Headers],[Okt]],PlaniraniTroškoviMarketinga[#Headers],0))-INDEX(StvarniTroškoviMarketinga[],MATCH(INDEX(OdstupanjaOdTroškovaMarketinga[],ROW()-ROW(OdstupanjaOdTroškovaMarketinga[[#Headers],[Okt]]),1),INDEX(PlaniraniTroškoviMarketinga[],,1),0),MATCH(OdstupanjaOdTroškovaMarketinga[[#Headers],[Okt]],StvarniTroškoviMarketinga[#Headers],0))","v":{"v":200,"d":"200.00 RSD"}},{"$f":"INDEX(PlaniraniTroškoviMarketinga[],MATCH(INDEX(OdstupanjaOdTroškovaMarketinga[],ROW()-ROW(OdstupanjaOdTroškovaMarketinga[[#Headers],[Nov]]),1),INDEX(PlaniraniTroškoviMarketinga[],,1),0),MATCH(OdstupanjaOdTroškovaMarketinga[[#Headers],[Nov]],PlaniraniTroškoviMarketinga[#Headers],0))-INDEX(StvarniTroškoviMarketinga[],MATCH(INDEX(OdstupanjaOdTroškovaMarketinga[],ROW()-ROW(OdstupanjaOdTroškovaMarketinga[[#Headers],[Nov]]),1),INDEX(PlaniraniTroškoviMarketinga[],,1),0),MATCH(OdstupanjaOdTroškovaMarketinga[[#Headers],[Nov]],StvarniTroškoviMarketinga[#Headers],0))","v":{"v":200,"d":"200.00 RSD"}},{"$f":"INDEX(PlaniraniTroškoviMarketinga[],MATCH(INDEX(OdstupanjaOdTroškovaMarketinga[],ROW()-ROW(OdstupanjaOdTroškovaMarketinga[[#Headers],[Dec]]),1),INDEX(PlaniraniTroškoviMarketinga[],,1),0),MATCH(OdstupanjaOdTroškovaMarketinga[[#Headers],[Dec]],PlaniraniTroškoviMarketinga[#Headers],0))-INDEX(StvarniTroškoviMarketinga[],MATCH(INDEX(OdstupanjaOdTroškovaMarketinga[],ROW()-ROW(OdstupanjaOdTroškovaMarketinga[[#Headers],[Dec]]),1),INDEX(PlaniraniTroškoviMarketinga[],,1),0),MATCH(OdstupanjaOdTroškovaMarketinga[[#Headers],[Dec]],StvarniTroškoviMarketinga[#Headers],0))","v":{"v":1000,"d":"1,000.00 RSD"}},{"$f":"SUM(OdstupanjaOdTroškovaMarketinga[[#This Row],[Jan]:[Dec]])","v":{"v":1500,"d":"1,500.00 RSD"}}]
[null,"Priprema pratećih materijala",{"$f":"INDEX(PlaniraniTroškoviMarketinga[],MATCH(INDEX(OdstupanjaOdTroškovaMarketinga[],ROW()-ROW(OdstupanjaOdTroškovaMarketinga[[#Headers],[Jan]]),1),INDEX(PlaniraniTroškoviMarketinga[],,1),0),MATCH(OdstupanjaOdTroškovaMarketinga[[#Headers],[Jan]],PlaniraniTroškoviMarketinga[#Headers],0))-INDEX(StvarniTroškoviMarketinga[],MATCH(INDEX(OdstupanjaOdTroškovaMarketinga[],ROW()-ROW(OdstupanjaOdTroškovaMarketinga[[#Headers],[Jan]]),1),INDEX(PlaniraniTroškoviMarketinga[],,1),0),MATCH(OdstupanjaOdTroškovaMarketinga[[#Headers],[Jan]],StvarniTroškoviMarketinga[#Headers],0))","v":{"v":200,"d":"200.00 RSD"}},{"$f":"INDEX(PlaniraniTroškoviMarketinga[],MATCH(INDEX(OdstupanjaOdTroškovaMarketinga[],ROW()-ROW(OdstupanjaOdTroškovaMarketinga[[#Headers],[Feb]]),1),INDEX(PlaniraniTroškoviMarketinga[],,1),0),MATCH(OdstupanjaOdTroškovaMarketinga[[#Headers],[Feb]],PlaniraniTroškoviMarketinga[#Headers],0))-INDEX(StvarniTroškoviMarketinga[],MATCH(INDEX(OdstupanjaOdTroškovaMarketinga[],ROW()-ROW(OdstupanjaOdTroškovaMarketinga[[#Headers],[Feb]]),1),INDEX(PlaniraniTroškoviMarketinga[],,1),0),MATCH(OdstupanjaOdTroškovaMarketinga[[#Headers],[Feb]],StvarniTroškoviMarketinga[#Headers],0))","v":{"v":0,"d":"0.00 RSD"}},{"$f":"INDEX(PlaniraniTroškoviMarketinga[],MATCH(INDEX(OdstupanjaOdTroškovaMarketinga[],ROW()-ROW(OdstupanjaOdTroškovaMarketinga[[#Headers],[Mar]]),1),INDEX(PlaniraniTroškoviMarketinga[],,1),0),MATCH(OdstupanjaOdTroškovaMarketinga[[#Headers],[Mar]],PlaniraniTroškoviMarketinga[#Headers],0))-INDEX(StvarniTroškoviMarketinga[],MATCH(INDEX(OdstupanjaOdTroškovaMarketinga[],ROW()-ROW(OdstupanjaOdTroškovaMarketinga[[#Headers],[Mar]]),1),INDEX(PlaniraniTroškoviMarketinga[],,1),0),MATCH(OdstupanjaOdTroškovaMarketinga[[#Headers],[Mar]],StvarniTroškoviMarketinga[#Headers],0))","v":{"v":0,"d":"0.00 RSD"}},{"$f":"INDEX(PlaniraniTroškoviMarketinga[],MATCH(INDEX(OdstupanjaOdTroškovaMarketinga[],ROW()-ROW(OdstupanjaOdTroškovaMarketinga[[#Headers],[Apr]]),1),INDEX(PlaniraniTroškoviMarketinga[],,1),0),MATCH(OdstupanjaOdTroškovaMarketinga[[#Headers],[Apr]],PlaniraniTroškoviMarketinga[#Headers],0))-INDEX(StvarniTroškoviMarketinga[],MATCH(INDEX(OdstupanjaOdTroškovaMarketinga[],ROW()-ROW(OdstupanjaOdTroškovaMarketinga[[#Headers],[Apr]]),1),INDEX(PlaniraniTroškoviMarketinga[],,1),0),MATCH(OdstupanjaOdTroškovaMarketinga[[#Headers],[Apr]],StvarniTroškoviMarketinga[#Headers],0))","v":{"v":-500,"d":"-500.00 RSD"}},{"$f":"INDEX(PlaniraniTroškoviMarketinga[],MATCH(INDEX(OdstupanjaOdTroškovaMarketinga[],ROW()-ROW(OdstupanjaOdTroškovaMarketinga[[#Headers],[Maj]]),1),INDEX(PlaniraniTroškoviMarketinga[],,1),0),MATCH(OdstupanjaOdTroškovaMarketinga[[#Headers],[Maj]],PlaniraniTroškoviMarketinga[#Headers],0))-INDEX(StvarniTroškoviMarketinga[],MATCH(INDEX(OdstupanjaOdTroškovaMarketinga[],ROW()-ROW(OdstupanjaOdTroškovaMarketinga[[#Headers],[Maj]]),1),INDEX(PlaniraniTroškoviMarketinga[],,1),0),MATCH(OdstupanjaOdTroškovaMarketinga[[#Headers],[Maj]],StvarniTroškoviMarketinga[#Headers],0))","v":{"v":0,"d":"0.00 RSD"}},{"$f":"INDEX(PlaniraniTroškoviMarketinga[],MATCH(INDEX(OdstupanjaOdTroškovaMarketinga[],ROW()-ROW(OdstupanjaOdTroškovaMarketinga[[#Headers],[Jun]]),1),INDEX(PlaniraniTroškoviMarketinga[],,1),0),MATCH(OdstupanjaOdTroškovaMarketinga[[#Headers],[Jun]],PlaniraniTroškoviMarketinga[#Headers],0))-INDEX(StvarniTroškoviMarketinga[],MATCH(INDEX(OdstupanjaOdTroškovaMarketinga[],ROW()-ROW(OdstupanjaOdTroškovaMarketinga[[#Headers],[Jun]]),1),INDEX(PlaniraniTroškoviMarketinga[],,1),0),MATCH(OdstupanjaOdTroškovaMarketinga[[#Headers],[Jun]],StvarniTroškoviMarketinga[#Headers],0))","v":{"v":0,"d":"0.00 RSD"}},{"$f":"INDEX(PlaniraniTroškoviMarketinga[],MATCH(INDEX(OdstupanjaOdTroškovaMarketinga[],ROW()-ROW(OdstupanjaOdTroškovaMarketinga[[#Headers],[Jul]]),1),INDEX(PlaniraniTroškoviMarketinga[],,1),0),MATCH(OdstupanjaOdTroškovaMarketinga[[#Headers],[Jul]],PlaniraniTroškoviMarketinga[#Headers],0))-INDEX(StvarniTroškoviMarketinga[],MATCH(INDEX(OdstupanjaOdTroškovaMarketinga[],ROW()-ROW(OdstupanjaOdTroškovaMarketinga[[#Headers],[Jul]]),1),INDEX(PlaniraniTroškoviMarketinga[],,1),0),MATCH(OdstupanjaOdTroškovaMarketinga[[#Headers],[Jul]],StvarniTroškoviMarketinga[#Headers],0))","v":{"v":5000,"d":"5,000.00 RSD"}},{"$f":"INDEX(PlaniraniTroškoviMarketinga[],MATCH(INDEX(OdstupanjaOdTroškovaMarketinga[],ROW()-ROW(OdstupanjaOdTroškovaMarketinga[[#Headers],[Avg]]),1),INDEX(PlaniraniTroškoviMarketinga[],,1),0),MATCH(OdstupanjaOdTroškovaMarketinga[[#Headers],[Avg]],PlaniraniTroškoviMarketinga[#Headers],0))-INDEX(StvarniTroškoviMarketinga[],MATCH(INDEX(OdstupanjaOdTroškovaMarketinga[],ROW()-ROW(OdstupanjaOdTroškovaMarketinga[[#Headers],[Avg]]),1),INDEX(PlaniraniTroškoviMarketinga[],,1),0),MATCH(OdstupanjaOdTroškovaMarketinga[[#Headers],[Avg]],StvarniTroškoviMarketinga[#Headers],0))","v":{"v":0,"d":"0.00 RSD"}},{"$f":"INDEX(PlaniraniTroškoviMarketinga[],MATCH(INDEX(OdstupanjaOdTroškovaMarketinga[],ROW()-ROW(OdstupanjaOdTroškovaMarketinga[[#Headers],[Sep]]),1),INDEX(PlaniraniTroškoviMarketinga[],,1),0),MATCH(OdstupanjaOdTroškovaMarketinga[[#Headers],[Sep]],PlaniraniTroškoviMarketinga[#Headers],0))-INDEX(StvarniTroškoviMarketinga[],MATCH(INDEX(OdstupanjaOdTroškovaMarketinga[],ROW()-ROW(OdstupanjaOdTroškovaMarketinga[[#Headers],[Sep]]),1),INDEX(PlaniraniTroškoviMarketinga[],,1),0),MATCH(OdstupanjaOdTroškovaMarketinga[[#Headers],[Sep]],StvarniTroškoviMarketinga[#Headers],0))","v":{"v":0,"d":"0.00 RSD"}},{"$f":"INDEX(PlaniraniTroškoviMarketinga[],MATCH(INDEX(OdstupanjaOdTroškovaMarketinga[],ROW()-ROW(OdstupanjaOdTroškovaMarketinga[[#Headers],[Okt]]),1),INDEX(PlaniraniTroškoviMarketinga[],,1),0),MATCH(OdstupanjaOdTroškovaMarketinga[[#Headers],[Okt]],PlaniraniTroškoviMarketinga[#Headers],0))-INDEX(StvarniTroškoviMarketinga[],MATCH(INDEX(OdstupanjaOdTroškovaMarketinga[],ROW()-ROW(OdstupanjaOdTroškovaMarketinga[[#Headers],[Okt]]),1),INDEX(PlaniraniTroškoviMarketinga[],,1),0),MATCH(OdstupanjaOdTroškovaMarketinga[[#Headers],[Okt]],StvarniTroškoviMarketinga[#Headers],0))","v":{"v":5000,"d":"5,000.00 RSD"}},{"$f":"INDEX(PlaniraniTroškoviMarketinga[],MATCH(INDEX(OdstupanjaOdTroškovaMarketinga[],ROW()-ROW(OdstupanjaOdTroškovaMarketinga[[#Headers],[Nov]]),1),INDEX(PlaniraniTroškoviMarketinga[],,1),0),MATCH(OdstupanjaOdTroškovaMarketinga[[#Headers],[Nov]],PlaniraniTroškoviMarketinga[#Headers],0))-INDEX(StvarniTroškoviMarketinga[],MATCH(INDEX(OdstupanjaOdTroškovaMarketinga[],ROW()-ROW(OdstupanjaOdTroškovaMarketinga[[#Headers],[Nov]]),1),INDEX(PlaniraniTroškoviMarketinga[],,1),0),MATCH(OdstupanjaOdTroškovaMarketinga[[#Headers],[Nov]],StvarniTroškoviMarketinga[#Headers],0))","v":{"v":0,"d":"0.00 RSD"}},{"$f":"INDEX(PlaniraniTroškoviMarketinga[],MATCH(INDEX(OdstupanjaOdTroškovaMarketinga[],ROW()-ROW(OdstupanjaOdTroškovaMarketinga[[#Headers],[Dec]]),1),INDEX(PlaniraniTroškoviMarketinga[],,1),0),MATCH(OdstupanjaOdTroškovaMarketinga[[#Headers],[Dec]],PlaniraniTroškoviMarketinga[#Headers],0))-INDEX(StvarniTroškoviMarketinga[],MATCH(INDEX(OdstupanjaOdTroškovaMarketinga[],ROW()-ROW(OdstupanjaOdTroškovaMarketinga[[#Headers],[Dec]]),1),INDEX(PlaniraniTroškoviMarketinga[],,1),0),MATCH(OdstupanjaOdTroškovaMarketinga[[#Headers],[Dec]],StvarniTroškoviMarketinga[#Headers],0))","v":{"v":0,"d":"0.00 RSD"}},{"$f":"SUM(OdstupanjaOdTroškovaMarketinga[[#This Row],[Jan]:[Dec]])","v":{"v":9700,"d":"9,700.00 RSD"}}]
[null,"Štampa pratećih materijala",{"$f":"INDEX(PlaniraniTroškoviMarketinga[],MATCH(INDEX(OdstupanjaOdTroškovaMarketinga[],ROW()-ROW(OdstupanjaOdTroškovaMarketinga[[#Headers],[Jan]]),1),INDEX(PlaniraniTroškoviMarketinga[],,1),0),MATCH(OdstupanjaOdTroškovaMarketinga[[#Headers],[Jan]],PlaniraniTroškoviMarketinga[#Headers],0))-INDEX(StvarniTroškoviMarketinga[],MATCH(INDEX(OdstupanjaOdTroškovaMarketinga[],ROW()-ROW(OdstupanjaOdTroškovaMarketinga[[#Headers],[Jan]]),1),INDEX(PlaniraniTroškoviMarketinga[],,1),0),MATCH(OdstupanjaOdTroškovaMarketinga[[#Headers],[Jan]],StvarniTroškoviMarketinga[#Headers],0))","v":{"v":100,"d":"100.00 RSD"}},{"$f":"INDEX(PlaniraniTroškoviMarketinga[],MATCH(INDEX(OdstupanjaOdTroškovaMarketinga[],ROW()-ROW(OdstupanjaOdTroškovaMarketinga[[#Headers],[Feb]]),1),INDEX(PlaniraniTroškoviMarketinga[],,1),0),MATCH(OdstupanjaOdTroškovaMarketinga[[#Headers],[Feb]],PlaniraniTroškoviMarketinga[#Headers],0))-INDEX(StvarniTroškoviMarketinga[],MATCH(INDEX(OdstupanjaOdTroškovaMarketinga[],ROW()-ROW(OdstupanjaOdTroškovaMarketinga[[#Headers],[Feb]]),1),INDEX(PlaniraniTroškoviMarketinga[],,1),0),MATCH(OdstupanjaOdTroškovaMarketinga[[#Headers],[Feb]],StvarniTroškoviMarketinga[#Headers],0))","v":{"v":-300,"d":"-300.00 RSD"}},{"$f":"INDEX(PlaniraniTroškoviMarketinga[],MATCH(INDEX(OdstupanjaOdTroškovaMarketinga[],ROW()-ROW(OdstupanjaOdTroškovaMarketinga[[#Headers],[Mar]]),1),INDEX(PlaniraniTroškoviMarketinga[],,1),0),MATCH(OdstupanjaOdTroškovaMarketinga[[#Headers],[Mar]],PlaniraniTroškoviMarketinga[#Headers],0))-INDEX(StvarniTroškoviMarketinga[],MATCH(INDEX(OdstupanjaOdTroškovaMarketinga[],ROW()-ROW(OdstupanjaOdTroškovaMarketinga[[#Headers],[Mar]]),1),INDEX(PlaniraniTroškoviMarketinga[],,1),0),MATCH(OdstupanjaOdTroškovaMarketinga[[#Headers],[Mar]],StvarniTroškoviMarketinga[#Headers],0))","v":{"v":100,"d":"100.00 RSD"}},{"$f":"INDEX(PlaniraniTroškoviMarketinga[],MATCH(INDEX(OdstupanjaOdTroškovaMarketinga[],ROW()-ROW(OdstupanjaOdTroškovaMarketinga[[#Headers],[Apr]]),1),INDEX(PlaniraniTroškoviMarketinga[],,1),0),MATCH(OdstupanjaOdTroškovaMarketinga[[#Headers],[Apr]],PlaniraniTroškoviMarketinga[#Headers],0))-INDEX(StvarniTroškoviMarketinga[],MATCH(INDEX(OdstupanjaOdTroškovaMarketinga[],ROW()-ROW(OdstupanjaOdTroškovaMarketinga[[#Headers],[Apr]]),1),INDEX(PlaniraniTroškoviMarketinga[],,1),0),MATCH(OdstupanjaOdTroškovaMarketinga[[#Headers],[Apr]],StvarniTroškoviMarketinga[#Headers],0))","v":{"v":100,"d":"100.00 RSD"}},{"$f":"INDEX(PlaniraniTroškoviMarketinga[],MATCH(INDEX(OdstupanjaOdTroškovaMarketinga[],ROW()-ROW(OdstupanjaOdTroškovaMarketinga[[#Headers],[Maj]]),1),INDEX(PlaniraniTroškoviMarketinga[],,1),0),MATCH(OdstupanjaOdTroškovaMarketinga[[#Headers],[Maj]],PlaniraniTroškoviMarketinga[#Headers],0))-INDEX(StvarniTroškoviMarketinga[],MATCH(INDEX(OdstupanjaOdTroškovaMarketinga[],ROW()-ROW(OdstupanjaOdTroškovaMarketinga[[#Headers],[Maj]]),1),INDEX(PlaniraniTroškoviMarketinga[],,1),0),MATCH(OdstupanjaOdTroškovaMarketinga[[#Headers],[Maj]],StvarniTroškoviMarketinga[#Headers],0))","v":{"v":-400,"d":"-400.00 RSD"}},{"$f":"INDEX(PlaniraniTroškoviMarketinga[],MATCH(INDEX(OdstupanjaOdTroškovaMarketinga[],ROW()-ROW(OdstupanjaOdTroškovaMarketinga[[#Headers],[Jun]]),1),INDEX(PlaniraniTroškoviMarketinga[],,1),0),MATCH(OdstupanjaOdTroškovaMarketinga[[#Headers],[Jun]],PlaniraniTroškoviMarketinga[#Headers],0))-INDEX(StvarniTroškoviMarketinga[],MATCH(INDEX(OdstupanjaOdTroškovaMarketinga[],ROW()-ROW(OdstupanjaOdTroškovaMarketinga[[#Headers],[Jun]]),1),INDEX(PlaniraniTroškoviMarketinga[],,1),0),MATCH(OdstupanjaOdTroškovaMarketinga[[#Headers],[Jun]],StvarniTroškoviMarketinga[#Headers],0))","v":{"v":20,"d":"20.00 RSD"}},{"$f":"INDEX(PlaniraniTroškoviMarketinga[],MATCH(INDEX(OdstupanjaOdTroškovaMarketinga[],ROW()-ROW(OdstupanjaOdTroškovaMarketinga[[#Headers],[Jul]]),1),INDEX(PlaniraniTroškoviMarketinga[],,1),0),MATCH(OdstupanjaOdTroškovaMarketinga[[#Headers],[Jul]],PlaniraniTroškoviMarketinga[#Headers],0))-INDEX(StvarniTroškoviMarketinga[],MATCH(INDEX(OdstupanjaOdTroškovaMarketinga[],ROW()-ROW(OdstupanjaOdTroškovaMarketinga[[#Headers],[Jul]]),1),INDEX(PlaniraniTroškoviMarketinga[],,1),0),MATCH(OdstupanjaOdTroškovaMarketinga[[#Headers],[Jul]],StvarniTroškoviMarketinga[#Headers],0))","v":{"v":200,"d":"200.00 RSD"}},{"$f":"INDEX(PlaniraniTroškoviMarketinga[],MATCH(INDEX(OdstupanjaOdTroškovaMarketinga[],ROW()-ROW(OdstupanjaOdTroškovaMarketinga[[#Headers],[Avg]]),1),INDEX(PlaniraniTroškoviMarketinga[],,1),0),MATCH(OdstupanjaOdTroškovaMarketinga[[#Headers],[Avg]],PlaniraniTroškoviMarketinga[#Headers],0))-INDEX(StvarniTroškoviMarketinga[],MATCH(INDEX(OdstupanjaOdTroškovaMarketinga[],ROW()-ROW(OdstupanjaOdTroškovaMarketinga[[#Headers],[Avg]]),1),INDEX(PlaniraniTroškoviMarketinga[],,1),0),MATCH(OdstupanjaOdTroškovaMarketinga[[#Headers],[Avg]],StvarniTroškoviMarketinga[#Headers],0))","v":{"v":200,"d":"200.00 RSD"}},{"$f":"INDEX(PlaniraniTroškoviMarketinga[],MATCH(INDEX(OdstupanjaOdTroškovaMarketinga[],ROW()-ROW(OdstupanjaOdTroškovaMarketinga[[#Headers],[Sep]]),1),INDEX(PlaniraniTroškoviMarketinga[],,1),0),MATCH(OdstupanjaOdTroškovaMarketinga[[#Headers],[Sep]],PlaniraniTroškoviMarketinga[#Headers],0))-INDEX(StvarniTroškoviMarketinga[],MATCH(INDEX(OdstupanjaOdTroškovaMarketinga[],ROW()-ROW(OdstupanjaOdTroškovaMarketinga[[#Headers],[Sep]]),1),INDEX(PlaniraniTroškoviMarketinga[],,1),0),MATCH(OdstupanjaOdTroškovaMarketinga[[#Headers],[Sep]],StvarniTroškoviMarketinga[#Headers],0))","v":{"v":200,"d":"200.00 RSD"}},{"$f":"INDEX(PlaniraniTroškoviMarketinga[],MATCH(INDEX(OdstupanjaOdTroškovaMarketinga[],ROW()-ROW(OdstupanjaOdTroškovaMarketinga[[#Headers],[Okt]]),1),INDEX(PlaniraniTroškoviMarketinga[],,1),0),MATCH(OdstupanjaOdTroškovaMarketinga[[#Headers],[Okt]],PlaniraniTroškoviMarketinga[#Headers],0))-INDEX(StvarniTroškoviMarketinga[],MATCH(INDEX(OdstupanjaOdTroškovaMarketinga[],ROW()-ROW(OdstupanjaOdTroškovaMarketinga[[#Headers],[Okt]]),1),INDEX(PlaniraniTroškoviMarketinga[],,1),0),MATCH(OdstupanjaOdTroškovaMarketinga[[#Headers],[Okt]],StvarniTroškoviMarketinga[#Headers],0))","v":{"v":200,"d":"200.00 RSD"}},{"$f":"INDEX(PlaniraniTroškoviMarketinga[],MATCH(INDEX(OdstupanjaOdTroškovaMarketinga[],ROW()-ROW(OdstupanjaOdTroškovaMarketinga[[#Headers],[Nov]]),1),INDEX(PlaniraniTroškoviMarketinga[],,1),0),MATCH(OdstupanjaOdTroškovaMarketinga[[#Headers],[Nov]],PlaniraniTroškoviMarketinga[#Headers],0))-INDEX(StvarniTroškoviMarketinga[],MATCH(INDEX(OdstupanjaOdTroškovaMarketinga[],ROW()-ROW(OdstupanjaOdTroškovaMarketinga[[#Headers],[Nov]]),1),INDEX(PlaniraniTroškoviMarketinga[],,1),0),MATCH(OdstupanjaOdTroškovaMarketinga[[#Headers],[Nov]],StvarniTroškoviMarketinga[#Headers],0))","v":{"v":200,"d":"200.00 RSD"}},{"$f":"INDEX(PlaniraniTroškoviMarketinga[],MATCH(INDEX(OdstupanjaOdTroškovaMarketinga[],ROW()-ROW(OdstupanjaOdTroškovaMarketinga[[#Headers],[Dec]]),1),INDEX(PlaniraniTroškoviMarketinga[],,1),0),MATCH(OdstupanjaOdTroškovaMarketinga[[#Headers],[Dec]],PlaniraniTroškoviMarketinga[#Headers],0))-INDEX(StvarniTroškoviMarketinga[],MATCH(INDEX(OdstupanjaOdTroškovaMarketinga[],ROW()-ROW(OdstupanjaOdTroškovaMarketinga[[#Headers],[Dec]]),1),INDEX(PlaniraniTroškoviMarketinga[],,1),0),MATCH(OdstupanjaOdTroškovaMarketinga[[#Headers],[Dec]],StvarniTroškoviMarketinga[#Headers],0))","v":{"v":200,"d":"200.00 RSD"}},{"$f":"SUM(OdstupanjaOdTroškovaMarketinga[[#This Row],[Jan]:[Dec]])","v":{"v":820,"d":"820.00 RSD"}}]
[null,"Marketinški događaji",{"$f":"INDEX(PlaniraniTroškoviMarketinga[],MATCH(INDEX(OdstupanjaOdTroškovaMarketinga[],ROW()-ROW(OdstupanjaOdTroškovaMarketinga[[#Headers],[Jan]]),1),INDEX(PlaniraniTroškoviMarketinga[],,1),0),MATCH(OdstupanjaOdTroškovaMarketinga[[#Headers],[Jan]],PlaniraniTroškoviMarketinga[#Headers],0))-INDEX(StvarniTroškoviMarketinga[],MATCH(INDEX(OdstupanjaOdTroškovaMarketinga[],ROW()-ROW(OdstupanjaOdTroškovaMarketinga[[#Headers],[Jan]]),1),INDEX(PlaniraniTroškoviMarketinga[],,1),0),MATCH(OdstupanjaOdTroškovaMarketinga[[#Headers],[Jan]],StvarniTroškoviMarketinga[#Headers],0))","v":{"v":200,"d":"200.00 RSD"}},{"$f":"INDEX(PlaniraniTroškoviMarketinga[],MATCH(INDEX(OdstupanjaOdTroškovaMarketinga[],ROW()-ROW(OdstupanjaOdTroškovaMarketinga[[#Headers],[Feb]]),1),INDEX(PlaniraniTroškoviMarketinga[],,1),0),MATCH(OdstupanjaOdTroškovaMarketinga[[#Headers],[Feb]],PlaniraniTroškoviMarketinga[#Headers],0))-INDEX(StvarniTroškoviMarketinga[],MATCH(INDEX(OdstupanjaOdTroškovaMarketinga[],ROW()-ROW(OdstupanjaOdTroškovaMarketinga[[#Headers],[Feb]]),1),INDEX(PlaniraniTroškoviMarketinga[],,1),0),MATCH(OdstupanjaOdTroškovaMarketinga[[#Headers],[Feb]],StvarniTroškoviMarketinga[#Headers],0))","v":{"v":-200,"d":"-200.00 RSD"}},{"$f":"INDEX(PlaniraniTroškoviMarketinga[],MATCH(INDEX(OdstupanjaOdTroškovaMarketinga[],ROW()-ROW(OdstupanjaOdTroškovaMarketinga[[#Headers],[Mar]]),1),INDEX(PlaniraniTroškoviMarketinga[],,1),0),MATCH(OdstupanjaOdTroškovaMarketinga[[#Headers],[Mar]],PlaniraniTroškoviMarketinga[#Headers],0))-INDEX(StvarniTroškoviMarketinga[],MATCH(INDEX(OdstupanjaOdTroškovaMarketinga[],ROW()-ROW(OdstupanjaOdTroškovaMarketinga[[#Headers],[Mar]]),1),INDEX(PlaniraniTroškoviMarketinga[],,1),0),MATCH(OdstupanjaOdTroškovaMarketinga[[#Headers],[Mar]],StvarniTroškoviMarketinga[#Headers],0))","v":{"v":-200,"d":"-200.00 RSD"}},{"$f":"INDEX(PlaniraniTroškoviMarketinga[],MATCH(INDEX(OdstupanjaOdTroškovaMarketinga[],ROW()-ROW(OdstupanjaOdTroškovaMarketinga[[#Headers],[Apr]]),1),INDEX(PlaniraniTroškoviMarketinga[],,1),0),MATCH(OdstupanjaOdTroškovaMarketinga[[#Headers],[Apr]],PlaniraniTroškoviMarketinga[#Headers],0))-INDEX(StvarniTroškoviMarketinga[],MATCH(INDEX(OdstupanjaOdTroškovaMarketinga[],ROW()-ROW(OdstupanjaOdTroškovaMarketinga[[#Headers],[Apr]]),1),INDEX(PlaniraniTroškoviMarketinga[],,1),0),MATCH(OdstupanjaOdTroškovaMarketinga[[#Headers],[Apr]],StvarniTroškoviMarketinga[#Headers],0))","v":{"v":300,"d":"300.00 RSD"}},{"$f":"INDEX(PlaniraniTroškoviMarketinga[],MATCH(INDEX(OdstupanjaOdTroškovaMarketinga[],ROW()-ROW(OdstupanjaOdTroškovaMarketinga[[#Headers],[Maj]]),1),INDEX(PlaniraniTroškoviMarketinga[],,1),0),MATCH(OdstupanjaOdTroškovaMarketinga[[#Headers],[Maj]],PlaniraniTroškoviMarketinga[#Headers],0))-INDEX(StvarniTroškoviMarketinga[],MATCH(INDEX(OdstupanjaOdTroškovaMarketinga[],ROW()-ROW(OdstupanjaOdTroškovaMarketinga[[#Headers],[Maj]]),1),INDEX(PlaniraniTroškoviMarketinga[],,1),0),MATCH(OdstupanjaOdTroškovaMarketinga[[#Headers],[Maj]],StvarniTroškoviMarketinga[#Headers],0))","v":{"v":500,"d":"500.00 RSD"}},{"$f":"INDEX(PlaniraniTroškoviMarketinga[],MATCH(INDEX(OdstupanjaOdTroškovaMarketinga[],ROW()-ROW(OdstupanjaOdTroškovaMarketinga[[#Headers],[Jun]]),1),INDEX(PlaniraniTroškoviMarketinga[],,1),0),MATCH(OdstupanjaOdTroškovaMarketinga[[#Headers],[Jun]],PlaniraniTroškoviMarketinga[#Headers],0))-INDEX(StvarniTroškoviMarketinga[],MATCH(INDEX(OdstupanjaOdTroškovaMarketinga[],ROW()-ROW(OdstupanjaOdTroškovaMarketinga[[#Headers],[Jun]]),1),INDEX(PlaniraniTroškoviMarketinga[],,1),0),MATCH(OdstupanjaOdTroškovaMarketinga[[#Headers],[Jun]],StvarniTroškoviMarketinga[#Headers],0))","v":{"v":-300,"d":"-300.00 RSD"}},{"$f":"INDEX(PlaniraniTroškoviMarketinga[],MATCH(INDEX(OdstupanjaOdTroškovaMarketinga[],ROW()-ROW(OdstupanjaOdTroškovaMarketinga[[#Headers],[Jul]]),1),INDEX(PlaniraniTroškoviMarketinga[],,1),0),MATCH(OdstupanjaOdTroškovaMarketinga[[#Headers],[Jul]],PlaniraniTroškoviMarketinga[#Headers],0))-INDEX(StvarniTroškoviMarketinga[],MATCH(INDEX(OdstupanjaOdTroškovaMarketinga[],ROW()-ROW(OdstupanjaOdTroškovaMarketinga[[#Headers],[Jul]]),1),INDEX(PlaniraniTroškoviMarketinga[],,1),0),MATCH(OdstupanjaOdTroškovaMarketinga[[#Headers],[Jul]],StvarniTroškoviMarketinga[#Headers],0))","v":{"v":2000,"d":"2,000.00 RSD"}},{"$f":"INDEX(PlaniraniTroškoviMarketinga[],MATCH(INDEX(OdstupanjaOdTroškovaMarketinga[],ROW()-ROW(OdstupanjaOdTroškovaMarketinga[[#Headers],[Avg]]),1),INDEX(PlaniraniTroškoviMarketinga[],,1),0),MATCH(OdstupanjaOdTroškovaMarketinga[[#Headers],[Avg]],PlaniraniTroškoviMarketinga[#Headers],0))-INDEX(StvarniTroškoviMarketinga[],MATCH(INDEX(OdstupanjaOdTroškovaMarketinga[],ROW()-ROW(OdstupanjaOdTroškovaMarketinga[[#Headers],[Avg]]),1),INDEX(PlaniraniTroškoviMarketinga[],,1),0),MATCH(OdstupanjaOdTroškovaMarketinga[[#Headers],[Avg]],StvarniTroškoviMarketinga[#Headers],0))","v":{"v":5000,"d":"5,000.00 RSD"}},{"$f":"INDEX(PlaniraniTroškoviMarketinga[],MATCH(INDEX(OdstupanjaOdTroškovaMarketinga[],ROW()-ROW(OdstupanjaOdTroškovaMarketinga[[#Headers],[Sep]]),1),INDEX(PlaniraniTroškoviMarketinga[],,1),0),MATCH(OdstupanjaOdTroškovaMarketinga[[#Headers],[Sep]],PlaniraniTroškoviMarketinga[#Headers],0))-INDEX(StvarniTroškoviMarketinga[],MATCH(INDEX(OdstupanjaOdTroškovaMarketinga[],ROW()-ROW(OdstupanjaOdTroškovaMarketinga[[#Headers],[Sep]]),1),INDEX(PlaniraniTroškoviMarketinga[],,1),0),MATCH(OdstupanjaOdTroškovaMarketinga[[#Headers],[Sep]],StvarniTroškoviMarketinga[#Headers],0))","v":{"v":2000,"d":"2,000.00 RSD"}},{"$f":"INDEX(PlaniraniTroškoviMarketinga[],MATCH(INDEX(OdstupanjaOdTroškovaMarketinga[],ROW()-ROW(OdstupanjaOdTroškovaMarketinga[[#Headers],[Okt]]),1),INDEX(PlaniraniTroškoviMarketinga[],,1),0),MATCH(OdstupanjaOdTroškovaMarketinga[[#Headers],[Okt]],PlaniraniTroškoviMarketinga[#Headers],0))-INDEX(StvarniTroškoviMarketinga[],MATCH(INDEX(OdstupanjaOdTroškovaMarketinga[],ROW()-ROW(OdstupanjaOdTroškovaMarketinga[[#Headers],[Okt]]),1),INDEX(PlaniraniTroškoviMarketinga[],,1),0),MATCH(OdstupanjaOdTroškovaMarketinga[[#Headers],[Okt]],StvarniTroškoviMarketinga[#Headers],0))","v":{"v":2000,"d":"2,000.00 RSD"}},{"$f":"INDEX(PlaniraniTroškoviMarketinga[],MATCH(INDEX(OdstupanjaOdTroškovaMarketinga[],ROW()-ROW(OdstupanjaOdTroškovaMarketinga[[#Headers],[Nov]]),1),INDEX(PlaniraniTroškoviMarketinga[],,1),0),MATCH(OdstupanjaOdTroškovaMarketinga[[#Headers],[Nov]],PlaniraniTroškoviMarketinga[#Headers],0))-INDEX(StvarniTroškoviMarketinga[],MATCH(INDEX(OdstupanjaOdTroškovaMarketinga[],ROW()-ROW(OdstupanjaOdTroškovaMarketinga[[#Headers],[Nov]]),1),INDEX(PlaniraniTroškoviMarketinga[],,1),0),MATCH(OdstupanjaOdTroškovaMarketinga[[#Headers],[Nov]],StvarniTroškoviMarketinga[#Headers],0))","v":{"v":2000,"d":"2,000.00 RSD"}},{"$f":"INDEX(PlaniraniTroškoviMarketinga[],MATCH(INDEX(OdstupanjaOdTroškovaMarketinga[],ROW()-ROW(OdstupanjaOdTroškovaMarketinga[[#Headers],[Dec]]),1),INDEX(PlaniraniTroškoviMarketinga[],,1),0),MATCH(OdstupanjaOdTroškovaMarketinga[[#Headers],[Dec]],PlaniraniTroškoviMarketinga[#Headers],0))-INDEX(StvarniTroškoviMarketinga[],MATCH(INDEX(OdstupanjaOdTroškovaMarketinga[],ROW()-ROW(OdstupanjaOdTroškovaMarketinga[[#Headers],[Dec]]),1),INDEX(PlaniraniTroškoviMarketinga[],,1),0),MATCH(OdstupanjaOdTroškovaMarketinga[[#Headers],[Dec]],StvarniTroškoviMarketinga[#Headers],0))","v":{"v":5000,"d":"5,000.00 RSD"}},{"$f":"SUM(OdstupanjaOdTroškovaMarketinga[[#This Row],[Jan]:[Dec]])","v":{"v":18300,"d":"18,300.00 RSD"}}]
[null,"Razni troškovi",{"$f":"INDEX(PlaniraniTroškoviMarketinga[],MATCH(INDEX(OdstupanjaOdTroškovaMarketinga[],ROW()-ROW(OdstupanjaOdTroškovaMarketinga[[#Headers],[Jan]]),1),INDEX(PlaniraniTroškoviMarketinga[],,1),0),MATCH(OdstupanjaOdTroškovaMarketinga[[#Headers],[Jan]],PlaniraniTroškoviMarketinga[#Headers],0))-INDEX(StvarniTroškoviMarketinga[],MATCH(INDEX(OdstupanjaOdTroškovaMarketinga[],ROW()-ROW(OdstupanjaOdTroškovaMarketinga[[#Headers],[Jan]]),1),INDEX(PlaniraniTroškoviMarketinga[],,1),0),MATCH(OdstupanjaOdTroškovaMarketinga[[#Headers],[Jan]],StvarniTroškoviMarketinga[#Headers],0))","v":{"v":55,"d":"55.00 RSD"}},{"$f":"INDEX(PlaniraniTroškoviMarketinga[],MATCH(INDEX(OdstupanjaOdTroškovaMarketinga[],ROW()-ROW(OdstupanjaOdTroškovaMarketinga[[#Headers],[Feb]]),1),INDEX(PlaniraniTroškoviMarketinga[],,1),0),MATCH(OdstupanjaOdTroškovaMarketinga[[#Headers],[Feb]],PlaniraniTroškoviMarketinga[#Headers],0))-INDEX(StvarniTroškoviMarketinga[],MATCH(INDEX(OdstupanjaOdTroškovaMarketinga[],ROW()-ROW(OdstupanjaOdTroškovaMarketinga[[#Headers],[Feb]]),1),INDEX(PlaniraniTroškoviMarketinga[],,1),0),MATCH(OdstupanjaOdTroškovaMarketinga[[#Headers],[Feb]],StvarniTroškoviMarketinga[#Headers],0))","v":{"v":44,"d":"44.00 RSD"}},{"$f":"INDEX(PlaniraniTroškoviMarketinga[],MATCH(INDEX(OdstupanjaOdTroškovaMarketinga[],ROW()-ROW(OdstupanjaOdTroškovaMarketinga[[#Headers],[Mar]]),1),INDEX(PlaniraniTroškoviMarketinga[],,1),0),MATCH(OdstupanjaOdTroškovaMarketinga[[#Headers],[Mar]],PlaniraniTroškoviMarketinga[#Headers],0))-INDEX(StvarniTroškoviMarketinga[],MATCH(INDEX(OdstupanjaOdTroškovaMarketinga[],ROW()-ROW(OdstupanjaOdTroškovaMarketinga[[#Headers],[Mar]]),1),INDEX(PlaniraniTroškoviMarketinga[],,1),0),MATCH(OdstupanjaOdTroškovaMarketinga[[#Headers],[Mar]],StvarniTroškoviMarketinga[#Headers],0))","v":{"v":77,"d":"77.00 RSD"}},{"$f":"INDEX(PlaniraniTroškoviMarketinga[],MATCH(INDEX(OdstupanjaOdTroškovaMarketinga[],ROW()-ROW(OdstupanjaOdTroškovaMarketinga[[#Headers],[Apr]]),1),INDEX(PlaniraniTroškoviMarketinga[],,1),0),MATCH(OdstupanjaOdTroškovaMarketinga[[#Headers],[Apr]],PlaniraniTroškoviMarketinga[#Headers],0))-INDEX(StvarniTroškoviMarketinga[],MATCH(INDEX(OdstupanjaOdTroškovaMarketinga[],ROW()-ROW(OdstupanjaOdTroškovaMarketinga[[#Headers],[Apr]]),1),INDEX(PlaniraniTroškoviMarketinga[],,1),0),MATCH(OdstupanjaOdTroškovaMarketinga[[#Headers],[Apr]],StvarniTroškoviMarketinga[#Headers],0))","v":{"v":-23,"d":"-23.00 RSD"}},{"$f":"INDEX(PlaniraniTroškoviMarketinga[],MATCH(INDEX(OdstupanjaOdTroškovaMarketinga[],ROW()-ROW(OdstupanjaOdTroškovaMarketinga[[#Headers],[Maj]]),1),INDEX(PlaniraniTroškoviMarketinga[],,1),0),MATCH(OdstupanjaOdTroškovaMarketinga[[#Headers],[Maj]],PlaniraniTroškoviMarketinga[#Headers],0))-INDEX(StvarniTroškoviMarketinga[],MATCH(INDEX(OdstupanjaOdTroškovaMarketinga[],ROW()-ROW(OdstupanjaOdTroškovaMarketinga[[#Headers],[Maj]]),1),INDEX(PlaniraniTroškoviMarketinga[],,1),0),MATCH(OdstupanjaOdTroškovaMarketinga[[#Headers],[Maj]],StvarniTroškoviMarketinga[#Headers],0))","v":{"v":13,"d":"13.00 RSD"}},{"$f":"INDEX(PlaniraniTroškoviMarketinga[],MATCH(INDEX(OdstupanjaOdTroškovaMarketinga[],ROW()-ROW(OdstupanjaOdTroškovaMarketinga[[#Headers],[Jun]]),1),INDEX(PlaniraniTroškoviMarketinga[],,1),0),MATCH(OdstupanjaOdTroškovaMarketinga[[#Headers],[Jun]],PlaniraniTroškoviMarketinga[#Headers],0))-INDEX(StvarniTroškoviMarketinga[],MATCH(INDEX(OdstupanjaOdTroškovaMarketinga[],ROW()-ROW(OdstupanjaOdTroškovaMarketinga[[#Headers],[Jun]]),1),INDEX(PlaniraniTroškoviMarketinga[],,1),0),MATCH(OdstupanjaOdTroškovaMarketinga[[#Headers],[Jun]],StvarniTroškoviMarketinga[#Headers],0))","v":{"v":-45,"d":"-45.00 RSD"}},{"$f":"INDEX(PlaniraniTroškoviMarketinga[],MATCH(INDEX(OdstupanjaOdTroškovaMarketinga[],ROW()-ROW(OdstupanjaOdTroškovaMarketinga[[#Headers],[Jul]]),1),INDEX(PlaniraniTroškoviMarketinga[],,1),0),MATCH(OdstupanjaOdTroškovaMarketinga[[#Headers],[Jul]],PlaniraniTroškoviMarketinga[#Headers],0))-INDEX(StvarniTroškoviMarketinga[],MATCH(INDEX(OdstupanjaOdTroškovaMarketinga[],ROW()-ROW(OdstupanjaOdTroškovaMarketinga[[#Headers],[Jul]]),1),INDEX(PlaniraniTroškoviMarketinga[],,1),0),MATCH(OdstupanjaOdTroškovaMarketinga[[#Headers],[Jul]],StvarniTroškoviMarketinga[#Headers],0))","v":{"v":200,"d":"200.00 RSD"}},{"$f":"INDEX(PlaniraniTroškoviMarketinga[],MATCH(INDEX(OdstupanjaOdTroškovaMarketinga[],ROW()-ROW(OdstupanjaOdTroškovaMarketinga[[#Headers],[Avg]]),1),INDEX(PlaniraniTroškoviMarketinga[],,1),0),MATCH(OdstupanjaOdTroškovaMarketinga[[#Headers],[Avg]],PlaniraniTroškoviMarketinga[#Headers],0))-INDEX(StvarniTroškoviMarketinga[],MATCH(INDEX(OdstupanjaOdTroškovaMarketinga[],ROW()-ROW(OdstupanjaOdTroškovaMarketinga[[#Headers],[Avg]]),1),INDEX(PlaniraniTroškoviMarketinga[],,1),0),MATCH(OdstupanjaOdTroškovaMarketinga[[#Headers],[Avg]],StvarniTroškoviMarketinga[#Headers],0))","v":{"v":200,"d":"200.00 RSD"}},{"$f":"INDEX(PlaniraniTroškoviMarketinga[],MATCH(INDEX(OdstupanjaOdTroškovaMarketinga[],ROW()-ROW(OdstupanjaOdTroškovaMarketinga[[#Headers],[Sep]]),1),INDEX(PlaniraniTroškoviMarketinga[],,1),0),MATCH(OdstupanjaOdTroškovaMarketinga[[#Headers],[Sep]],PlaniraniTroškoviMarketinga[#Headers],0))-INDEX(StvarniTroškoviMarketinga[],MATCH(INDEX(OdstupanjaOdTroškovaMarketinga[],ROW()-ROW(OdstupanjaOdTroškovaMarketinga[[#Headers],[Sep]]),1),INDEX(PlaniraniTroškoviMarketinga[],,1),0),MATCH(OdstupanjaOdTroškovaMarketinga[[#Headers],[Sep]],StvarniTroškoviMarketinga[#Headers],0))","v":{"v":200,"d":"200.00 RSD"}},{"$f":"INDEX(PlaniraniTroškoviMarketinga[],MATCH(INDEX(OdstupanjaOdTroškovaMarketinga[],ROW()-ROW(OdstupanjaOdTroškovaMarketinga[[#Headers],[Okt]]),1),INDEX(PlaniraniTroškoviMarketinga[],,1),0),MATCH(OdstupanjaOdTroškovaMarketinga[[#Headers],[Okt]],PlaniraniTroškoviMarketinga[#Headers],0))-INDEX(StvarniTroškoviMarketinga[],MATCH(INDEX(OdstupanjaOdTroškovaMarketinga[],ROW()-ROW(OdstupanjaOdTroškovaMarketinga[[#Headers],[Okt]]),1),INDEX(PlaniraniTroškoviMarketinga[],,1),0),MATCH(OdstupanjaOdTroškovaMarketinga[[#Headers],[Okt]],StvarniTroškoviMarketinga[#Headers],0))","v":{"v":200,"d":"200.00 RSD"}},{"$f":"INDEX(PlaniraniTroškoviMarketinga[],MATCH(INDEX(OdstupanjaOdTroškovaMarketinga[],ROW()-ROW(OdstupanjaOdTroškovaMarketinga[[#Headers],[Nov]]),1),INDEX(PlaniraniTroškoviMarketinga[],,1),0),MATCH(OdstupanjaOdTroškovaMarketinga[[#Headers],[Nov]],PlaniraniTroškoviMarketinga[#Headers],0))-INDEX(StvarniTroškoviMarketinga[],MATCH(INDEX(OdstupanjaOdTroškovaMarketinga[],ROW()-ROW(OdstupanjaOdTroškovaMarketinga[[#Headers],[Nov]]),1),INDEX(PlaniraniTroškoviMarketinga[],,1),0),MATCH(OdstupanjaOdTroškovaMarketinga[[#Headers],[Nov]],StvarniTroškoviMarketinga[#Headers],0))","v":{"v":200,"d":"200.00 RSD"}},{"$f":"INDEX(PlaniraniTroškoviMarketinga[],MATCH(INDEX(OdstupanjaOdTroškovaMarketinga[],ROW()-ROW(OdstupanjaOdTroškovaMarketinga[[#Headers],[Dec]]),1),INDEX(PlaniraniTroškoviMarketinga[],,1),0),MATCH(OdstupanjaOdTroškovaMarketinga[[#Headers],[Dec]],PlaniraniTroškoviMarketinga[#Headers],0))-INDEX(StvarniTroškoviMarketinga[],MATCH(INDEX(OdstupanjaOdTroškovaMarketinga[],ROW()-ROW(OdstupanjaOdTroškovaMarketinga[[#Headers],[Dec]]),1),INDEX(PlaniraniTroškoviMarketinga[],,1),0),MATCH(OdstupanjaOdTroškovaMarketinga[[#Headers],[Dec]],StvarniTroškoviMarketinga[#Headers],0))","v":{"v":200,"d":"200.00 RSD"}},{"$f":"SUM(OdstupanjaOdTroškovaMarketinga[[#This Row],[Jan]:[Dec]])","v":{"v":1321,"d":"1,321.00 RSD"}}]
[null,"Međuvrednost",{"$f":"SUBTOTAL(109,OdstupanjaOdTroškovaMarketinga[Jan])","v":{"v":555,"d":"555.00 RSD"}},{"$f":"SUBTOTAL(109,OdstupanjaOdTroškovaMarketinga[Feb])","v":{"v":-456,"d":"-456.00 RSD"}},{"$f":"SUBTOTAL(109,OdstupanjaOdTroškovaMarketinga[Mar])","v":{"v":-23,"d":"-23.00 RSD"}},{"$f":"SUBTOTAL(109,OdstupanjaOdTroškovaMarketinga[Apr])","v":{"v":-123,"d":"-123.00 RSD"}},{"$f":"SUBTOTAL(109,OdstupanjaOdTroškovaMarketinga[Maj])","v":{"v":113,"d":"113.00 RSD"}},{"$f":"SUBTOTAL(109,OdstupanjaOdTroškovaMarketinga[Jun])","v":{"v":-825,"d":"-825.00 RSD"}},{"$f":"SUBTOTAL(109,OdstupanjaOdTroškovaMarketinga[Jul])","v":{"v":8100,"d":"8,100.00 RSD"}},{"$f":"SUBTOTAL(109,OdstupanjaOdTroškovaMarketinga[Avg])","v":{"v":6100,"d":"6,100.00 RSD"}},{"$f":"SUBTOTAL(109,OdstupanjaOdTroškovaMarketinga[Sep])","v":{"v":3100,"d":"3,100.00 RSD"}},{"$f":"SUBTOTAL(109,OdstupanjaOdTroškovaMarketinga[Okt])","v":{"v":8100,"d":"8,100.00 RSD"}},{"$f":"SUBTOTAL(109,OdstupanjaOdTroškovaMarketinga[Nov])","v":{"v":3100,"d":"3,100.00 RSD"}},{"$f":"SUBTOTAL(109,OdstupanjaOdTroškovaMarketinga[Dec])","v":{"v":6900,"d":"6,900.00 RSD"}},{"$f":"SUBTOTAL(109,OdstupanjaOdTroškovaMarketinga[GODINA])","v":{"v":34641,"d":"34,641.00 RSD"}}]
[]
[null,"Obuka/putovanje","Jan","Feb","Mar","Apr","Maj","Jun","Jul","Avg","Sep","Okt","Nov","Dec","GODINA"]
[null,"Predavanja obuke",{"$f":"INDEX(PlaniraniTroškoviObukeIPutniTroškovi[],MATCH(INDEX(OdstupanjaOdTroškovaObukeIPutnihTroškova[],ROW()-ROW(OdstupanjaOdTroškovaObukeIPutnihTroškova[[#Headers],[Jan]]),1),INDEX(PlaniraniTroškoviObukeIPutniTroškovi[],,1),0),MATCH(OdstupanjaOdTroškovaObukeIPutnihTroškova[[#Headers],[Jan]],PlaniraniTroškoviObukeIPutniTroškovi[#Headers],0))-INDEX(StvarniTroškoviObukeIPutniTroškovi[],MATCH(INDEX(OdstupanjaOdTroškovaObukeIPutnihTroškova[],ROW()-ROW(OdstupanjaOdTroškovaObukeIPutnihTroškova[[#Headers],[Jan]]),1),INDEX(PlaniraniTroškoviObukeIPutniTroškovi[],,1),0),MATCH(OdstupanjaOdTroškovaObukeIPutnihTroškova[[#Headers],[Jan]],StvarniTroškoviObukeIPutniTroškovi[#Headers],0))","v":{"v":400,"d":"400.00 RSD"}},{"$f":"INDEX(PlaniraniTroškoviObukeIPutniTroškovi[],MATCH(INDEX(OdstupanjaOdTroškovaObukeIPutnihTroškova[],ROW()-ROW(OdstupanjaOdTroškovaObukeIPutnihTroškova[[#Headers],[Feb]]),1),INDEX(PlaniraniTroškoviObukeIPutniTroškovi[],,1),0),MATCH(OdstupanjaOdTroškovaObukeIPutnihTroškova[[#Headers],[Feb]],PlaniraniTroškoviObukeIPutniTroškovi[#Headers],0))-INDEX(StvarniTroškoviObukeIPutniTroškovi[],MATCH(INDEX(OdstupanjaOdTroškovaObukeIPutnihTroškova[],ROW()-ROW(OdstupanjaOdTroškovaObukeIPutnihTroškova[[#Headers],[Feb]]),1),INDEX(PlaniraniTroškoviObukeIPutniTroškovi[],,1),0),MATCH(OdstupanjaOdTroškovaObukeIPutnihTroškova[[#Headers],[Feb]],StvarniTroškoviObukeIPutniTroškovi[#Headers],0))","v":{"v":-400,"d":"-400.00 RSD"}},{"$f":"INDEX(PlaniraniTroškoviObukeIPutniTroškovi[],MATCH(INDEX(OdstupanjaOdTroškovaObukeIPutnihTroškova[],ROW()-ROW(OdstupanjaOdTroškovaObukeIPutnihTroškova[[#Headers],[Mar]]),1),INDEX(PlaniraniTroškoviObukeIPutniTroškovi[],,1),0),MATCH(OdstupanjaOdTroškovaObukeIPutnihTroškova[[#Headers],[Mar]],PlaniraniTroškoviObukeIPutniTroškovi[#Headers],0))-INDEX(StvarniTroškoviObukeIPutniTroškovi[],MATCH(INDEX(OdstupanjaOdTroškovaObukeIPutnihTroškova[],ROW()-ROW(OdstupanjaOdTroškovaObukeIPutnihTroškova[[#Headers],[Mar]]),1),INDEX(PlaniraniTroškoviObukeIPutniTroškovi[],,1),0),MATCH(OdstupanjaOdTroškovaObukeIPutnihTroškova[[#Headers],[Mar]],StvarniTroškoviObukeIPutniTroškovi[#Headers],0))","v":{"v":600,"d":"600.00 RSD"}},{"$f":"INDEX(PlaniraniTroškoviObukeIPutniTroškovi[],MATCH(INDEX(OdstupanjaOdTroškovaObukeIPutnihTroškova[],ROW()-ROW(OdstupanjaOdTroškovaObukeIPutnihTroškova[[#Headers],[Apr]]),1),INDEX(PlaniraniTroškoviObukeIPutniTroškovi[],,1),0),MATCH(OdstupanjaOdTroškovaObukeIPutnihTroškova[[#Headers],[Apr]],PlaniraniTroškoviObukeIPutniTroškovi[#Headers],0))-INDEX(StvarniTroškoviObukeIPutniTroškovi[],MATCH(INDEX(OdstupanjaOdTroškovaObukeIPutnihTroškova[],ROW()-ROW(OdstupanjaOdTroškovaObukeIPutnihTroškova[[#Headers],[Apr]]),1),INDEX(PlaniraniTroškoviObukeIPutniTroškovi[],,1),0),MATCH(OdstupanjaOdTroškovaObukeIPutnihTroškova[[#Headers],[Apr]],StvarniTroškoviObukeIPutniTroškovi[#Headers],0))","v":{"v":400,"d":"400.00 RSD"}},{"$f":"INDEX(PlaniraniTroškoviObukeIPutniTroškovi[],MATCH(INDEX(OdstupanjaOdTroškovaObukeIPutnihTroškova[],ROW()-ROW(OdstupanjaOdTroškovaObukeIPutnihTroškova[[#Headers],[Maj]]),1),INDEX(PlaniraniTroškoviObukeIPutniTroškovi[],,1),0),MATCH(OdstupanjaOdTroškovaObukeIPutnihTroškova[[#Headers],[Maj]],PlaniraniTroškoviObukeIPutniTroškovi[#Headers],0))-INDEX(StvarniTroškoviObukeIPutniTroškovi[],MATCH(INDEX(OdstupanjaOdTroškovaObukeIPutnihTroškova[],ROW()-ROW(OdstupanjaOdTroškovaObukeIPutnihTroškova[[#Headers],[Maj]]),1),INDEX(PlaniraniTroškoviObukeIPutniTroškovi[],,1),0),MATCH(OdstupanjaOdTroškovaObukeIPutnihTroškova[[#Headers],[Maj]],StvarniTroškoviObukeIPutniTroškovi[#Headers],0))","v":{"v":800,"d":"800.00 RSD"}},{"$f":"INDEX(PlaniraniTroškoviObukeIPutniTroškovi[],MATCH(INDEX(OdstupanjaOdTroškovaObukeIPutnihTroškova[],ROW()-ROW(OdstupanjaOdTroškovaObukeIPutnihTroškova[[#Headers],[Jun]]),1),INDEX(PlaniraniTroškoviObukeIPutniTroškovi[],,1),0),MATCH(OdstupanjaOdTroškovaObukeIPutnihTroškova[[#Headers],[Jun]],PlaniraniTroškoviObukeIPutniTroškovi[#Headers],0))-INDEX(StvarniTroškoviObukeIPutniTroškovi[],MATCH(INDEX(OdstupanjaOdTroškovaObukeIPutnihTroškova[],ROW()-ROW(OdstupanjaOdTroškovaObukeIPutnihTroškova[[#Headers],[Jun]]),1),INDEX(PlaniraniTroškoviObukeIPutniTroškovi[],,1),0),MATCH(OdstupanjaOdTroškovaObukeIPutnihTroškova[[#Headers],[Jun]],StvarniTroškoviObukeIPutniTroškovi[#Headers],0))","v":{"v":-800,"d":"-800.00 RSD"}},{"$f":"INDEX(PlaniraniTroškoviObukeIPutniTroškovi[],MATCH(INDEX(OdstupanjaOdTroškovaObukeIPutnihTroškova[],ROW()-ROW(OdstupanjaOdTroškovaObukeIPutnihTroškova[[#Headers],[Jul]]),1),INDEX(PlaniraniTroškoviObukeIPutniTroškovi[],,1),0),MATCH(OdstupanjaOdTroškovaObukeIPutnihTroškova[[#Headers],[Jul]],PlaniraniTroškoviObukeIPutniTroškovi[#Headers],0))-INDEX(StvarniTroškoviObukeIPutniTroškovi[],MATCH(INDEX(OdstupanjaOdTroškovaObukeIPutnihTroškova[],ROW()-ROW(OdstupanjaOdTroškovaObukeIPutnihTroškova[[#Headers],[Jul]]),1),INDEX(PlaniraniTroškoviObukeIPutniTroškovi[],,1),0),MATCH(OdstupanjaOdTroškovaObukeIPutnihTroškova[[#Headers],[Jul]],StvarniTroškoviObukeIPutniTroškovi[#Headers],0))","v":{"v":2000,"d":"2,000.00 RSD"}},{"$f":"INDEX(PlaniraniTroškoviObukeIPutniTroškovi[],MATCH(INDEX(OdstupanjaOdTroškovaObukeIPutnihTroškova[],ROW()-ROW(OdstupanjaOdTroškovaObukeIPutnihTroškova[[#Headers],[Avg]]),1),INDEX(PlaniraniTroškoviObukeIPutniTroškovi[],,1),0),MATCH(OdstupanjaOdTroškovaObukeIPutnihTroškova[[#Headers],[Avg]],PlaniraniTroškoviObukeIPutniTroškovi[#Headers],0))-INDEX(StvarniTroškoviObukeIPutniTroškovi[],MATCH(INDEX(OdstupanjaOdTroškovaObukeIPutnihTroškova[],ROW()-ROW(OdstupanjaOdTroškovaObukeIPutnihTroškova[[#Headers],[Avg]]),1),INDEX(PlaniraniTroškoviObukeIPutniTroškovi[],,1),0),MATCH(OdstupanjaOdTroškovaObukeIPutnihTroškova[[#Headers],[Avg]],StvarniTroškoviObukeIPutniTroškovi[#Headers],0))","v":{"v":2000,"d":"2,000.00 RSD"}},{"$f":"INDEX(PlaniraniTroškoviObukeIPutniTroškovi[],MATCH(INDEX(OdstupanjaOdTroškovaObukeIPutnihTroškova[],ROW()-ROW(OdstupanjaOdTroškovaObukeIPutnihTroškova[[#Headers],[Sep]]),1),INDEX(PlaniraniTroškoviObukeIPutniTroškovi[],,1),0),MATCH(OdstupanjaOdTroškovaObukeIPutnihTroškova[[#Headers],[Sep]],PlaniraniTroškoviObukeIPutniTroškovi[#Headers],0))-INDEX(StvarniTroškoviObukeIPutniTroškovi[],MATCH(INDEX(OdstupanjaOdTroškovaObukeIPutnihTroškova[],ROW()-ROW(OdstupanjaOdTroškovaObukeIPutnihTroškova[[#Headers],[Sep]]),1),INDEX(PlaniraniTroškoviObukeIPutniTroškovi[],,1),0),MATCH(OdstupanjaOdTroškovaObukeIPutnihTroškova[[#Headers],[Sep]],StvarniTroškoviObukeIPutniTroškovi[#Headers],0))","v":{"v":2000,"d":"2,000.00 RSD"}},{"$f":"INDEX(PlaniraniTroškoviObukeIPutniTroškovi[],MATCH(INDEX(OdstupanjaOdTroškovaObukeIPutnihTroškova[],ROW()-ROW(OdstupanjaOdTroškovaObukeIPutnihTroškova[[#Headers],[Okt]]),1),INDEX(PlaniraniTroškoviObukeIPutniTroškovi[],,1),0),MATCH(OdstupanjaOdTroškovaObukeIPutnihTroškova[[#Headers],[Okt]],PlaniraniTroškoviObukeIPutniTroškovi[#Headers],0))-INDEX(StvarniTroškoviObukeIPutniTroškovi[],MATCH(INDEX(OdstupanjaOdTroškovaObukeIPutnihTroškova[],ROW()-ROW(OdstupanjaOdTroškovaObukeIPutnihTroškova[[#Headers],[Okt]]),1),INDEX(PlaniraniTroškoviObukeIPutniTroškovi[],,1),0),MATCH(OdstupanjaOdTroškovaObukeIPutnihTroškova[[#Headers],[Okt]],StvarniTroškoviObukeIPutniTroškovi[#Headers],0))","v":{"v":2000,"d":"2,000.00 RSD"}},{"$f":"INDEX(PlaniraniTroškoviObukeIPutniTroškovi[],MATCH(INDEX(OdstupanjaOdTroškovaObukeIPutnihTroškova[],ROW()-ROW(OdstupanjaOdTroškovaObukeIPutnihTroškova[[#Headers],[Nov]]),1),INDEX(PlaniraniTroškoviObukeIPutniTroškovi[],,1),0),MATCH(OdstupanjaOdTroškovaObukeIPutnihTroškova[[#Headers],[Nov]],PlaniraniTroškoviObukeIPutniTroškovi[#Headers],0))-INDEX(StvarniTroškoviObukeIPutniTroškovi[],MATCH(INDEX(OdstupanjaOdTroškovaObukeIPutnihTroškova[],ROW()-ROW(OdstupanjaOdTroškovaObukeIPutnihTroškova[[#Headers],[Nov]]),1),INDEX(PlaniraniTroškoviObukeIPutniTroškovi[],,1),0),MATCH(OdstupanjaOdTroškovaObukeIPutnihTroškova[[#Headers],[Nov]],StvarniTroškoviObukeIPutniTroškovi[#Headers],0))","v":{"v":2000,"d":"2,000.00 RSD"}},{"$f":"INDEX(PlaniraniTroškoviObukeIPutniTroškovi[],MATCH(INDEX(OdstupanjaOdTroškovaObukeIPutnihTroškova[],ROW()-ROW(OdstupanjaOdTroškovaObukeIPutnihTroškova[[#Headers],[Dec]]),1),INDEX(PlaniraniTroškoviObukeIPutniTroškovi[],,1),0),MATCH(OdstupanjaOdTroškovaObukeIPutnihTroškova[[#Headers],[Dec]],PlaniraniTroškoviObukeIPutniTroškovi[#Headers],0))-INDEX(StvarniTroškoviObukeIPutniTroškovi[],MATCH(INDEX(OdstupanjaOdTroškovaObukeIPutnihTroškova[],ROW()-ROW(OdstupanjaOdTroškovaObukeIPutnihTroškova[[#Headers],[Dec]]),1),INDEX(PlaniraniTroškoviObukeIPutniTroškovi[],,1),0),MATCH(OdstupanjaOdTroškovaObukeIPutnihTroškova[[#Headers],[Dec]],StvarniTroškoviObukeIPutniTroškovi[#Headers],0))","v":{"v":2000,"d":"2,000.00 RSD"}},{"$f":"SUM(OdstupanjaOdTroškovaObukeIPutnihTroškova[[#This Row],[Jan]:[Dec]])","v":{"v":13000,"d":"13,000.00 RSD"}}]
[null,"Putni troškovi u vezi sa obukom",{"$f":"INDEX(PlaniraniTroškoviObukeIPutniTroškovi[],MATCH(INDEX(OdstupanjaOdTroškovaObukeIPutnihTroškova[],ROW()-ROW(OdstupanjaOdTroškovaObukeIPutnihTroškova[[#Headers],[Jan]]),1),INDEX(PlaniraniTroškoviObukeIPutniTroškovi[],,1),0),MATCH(OdstupanjaOdTroškovaObukeIPutnihTroškova[[#Headers],[Jan]],PlaniraniTroškoviObukeIPutniTroškovi[#Headers],0))-INDEX(StvarniTroškoviObukeIPutniTroškovi[],MATCH(INDEX(OdstupanjaOdTroškovaObukeIPutnihTroškova[],ROW()-ROW(OdstupanjaOdTroškovaObukeIPutnihTroškova[[#Headers],[Jan]]),1),INDEX(PlaniraniTroškoviObukeIPutniTroškovi[],,1),0),MATCH(OdstupanjaOdTroškovaObukeIPutnihTroškova[[#Headers],[Jan]],StvarniTroškoviObukeIPutniTroškovi[#Headers],0))","v":{"v":800,"d":"800.00 RSD"}},{"$f":"INDEX(PlaniraniTroškoviObukeIPutniTroškovi[],MATCH(INDEX(OdstupanjaOdTroškovaObukeIPutnihTroškova[],ROW()-ROW(OdstupanjaOdTroškovaObukeIPutnihTroškova[[#Headers],[Feb]]),1),INDEX(PlaniraniTroškoviObukeIPutniTroškovi[],,1),0),MATCH(OdstupanjaOdTroškovaObukeIPutnihTroškova[[#Headers],[Feb]],PlaniraniTroškoviObukeIPutniTroškovi[#Headers],0))-INDEX(StvarniTroškoviObukeIPutniTroškovi[],MATCH(INDEX(OdstupanjaOdTroškovaObukeIPutnihTroškova[],ROW()-ROW(OdstupanjaOdTroškovaObukeIPutnihTroškova[[#Headers],[Feb]]),1),INDEX(PlaniraniTroškoviObukeIPutniTroškovi[],,1),0),MATCH(OdstupanjaOdTroškovaObukeIPutnihTroškova[[#Headers],[Feb]],StvarniTroškoviObukeIPutniTroškovi[#Headers],0))","v":{"v":-200,"d":"-200.00 RSD"}},{"$f":"INDEX(PlaniraniTroškoviObukeIPutniTroškovi[],MATCH(INDEX(OdstupanjaOdTroškovaObukeIPutnihTroškova[],ROW()-ROW(OdstupanjaOdTroškovaObukeIPutnihTroškova[[#Headers],[Mar]]),1),INDEX(PlaniraniTroškoviObukeIPutniTroškovi[],,1),0),MATCH(OdstupanjaOdTroškovaObukeIPutnihTroškova[[#Headers],[Mar]],PlaniraniTroškoviObukeIPutniTroškovi[#Headers],0))-INDEX(StvarniTroškoviObukeIPutniTroškovi[],MATCH(INDEX(OdstupanjaOdTroškovaObukeIPutnihTroškova[],ROW()-ROW(OdstupanjaOdTroškovaObukeIPutnihTroškova[[#Headers],[Mar]]),1),INDEX(PlaniraniTroškoviObukeIPutniTroškovi[],,1),0),MATCH(OdstupanjaOdTroškovaObukeIPutnihTroškova[[#Headers],[Mar]],StvarniTroškoviObukeIPutniTroškovi[#Headers],0))","v":{"v":600,"d":"600.00 RSD"}},{"$f":"INDEX(PlaniraniTroškoviObukeIPutniTroškovi[],MATCH(INDEX(OdstupanjaOdTroškovaObukeIPutnihTroškova[],ROW()-ROW(OdstupanjaOdTroškovaObukeIPutnihTroškova[[#Headers],[Apr]]),1),INDEX(PlaniraniTroškoviObukeIPutniTroškovi[],,1),0),MATCH(OdstupanjaOdTroškovaObukeIPutnihTroškova[[#Headers],[Apr]],PlaniraniTroškoviObukeIPutniTroškovi[#Headers],0))-INDEX(StvarniTroškoviObukeIPutniTroškovi[],MATCH(INDEX(OdstupanjaOdTroškovaObukeIPutnihTroškova[],ROW()-ROW(OdstupanjaOdTroškovaObukeIPutnihTroškova[[#Headers],[Apr]]),1),INDEX(PlaniraniTroškoviObukeIPutniTroškovi[],,1),0),MATCH(OdstupanjaOdTroškovaObukeIPutnihTroškova[[#Headers],[Apr]],StvarniTroškoviObukeIPutniTroškovi[#Headers],0))","v":{"v":800,"d":"800.00 RSD"}},{"$f":"INDEX(PlaniraniTroškoviObukeIPutniTroškovi[],MATCH(INDEX(OdstupanjaOdTroškovaObukeIPutnihTroškova[],ROW()-ROW(OdstupanjaOdTroškovaObukeIPutnihTroškova[[#Headers],[Maj]]),1),INDEX(PlaniraniTroškoviObukeIPutniTroškovi[],,1),0),MATCH(OdstupanjaOdTroškovaObukeIPutnihTroškova[[#Headers],[Maj]],PlaniraniTroškoviObukeIPutniTroškovi[#Headers],0))-INDEX(StvarniTroškoviObukeIPutniTroškovi[],MATCH(INDEX(OdstupanjaOdTroškovaObukeIPutnihTroškova[],ROW()-ROW(OdstupanjaOdTroškovaObukeIPutnihTroškova[[#Headers],[Maj]]),1),INDEX(PlaniraniTroškoviObukeIPutniTroškovi[],,1),0),MATCH(OdstupanjaOdTroškovaObukeIPutnihTroškova[[#Headers],[Maj]],StvarniTroškoviObukeIPutniTroškovi[#Headers],0))","v":{"v":1200,"d":"1,200.00 RSD"}},{"$f":"INDEX(PlaniraniTroškoviObukeIPutniTroškovi[],MATCH(INDEX(OdstupanjaOdTroškovaObukeIPutnihTroškova[],ROW()-ROW(OdstupanjaOdTroškovaObukeIPutnihTroškova[[#Headers],[Jun]]),1),INDEX(PlaniraniTroškoviObukeIPutniTroškovi[],,1),0),MATCH(OdstupanjaOdTroškovaObukeIPutnihTroškova[[#Headers],[Jun]],PlaniraniTroškoviObukeIPutniTroškovi[#Headers],0))-INDEX(StvarniTroškoviObukeIPutniTroškovi[],MATCH(INDEX(OdstupanjaOdTroškovaObukeIPutnihTroškova[],ROW()-ROW(OdstupanjaOdTroškovaObukeIPutnihTroškova[[#Headers],[Jun]]),1),INDEX(PlaniraniTroškoviObukeIPutniTroškovi[],,1),0),MATCH(OdstupanjaOdTroškovaObukeIPutnihTroškova[[#Headers],[Jun]],StvarniTroškoviObukeIPutniTroškovi[#Headers],0))","v":{"v":-1500,"d":"-1,500.00 RSD"}},{"$f":"INDEX(PlaniraniTroškoviObukeIPutniTroškovi[],MATCH(INDEX(OdstupanjaOdTroškovaObukeIPutnihTroškova[],ROW()-ROW(OdstupanjaOdTroškovaObukeIPutnihTroškova[[#Headers],[Jul]]),1),INDEX(PlaniraniTroškoviObukeIPutniTroškovi[],,1),0),MATCH(OdstupanjaOdTroškovaObukeIPutnihTroškova[[#Headers],[Jul]],PlaniraniTroškoviObukeIPutniTroškovi[#Headers],0))-INDEX(StvarniTroškoviObukeIPutniTroškovi[],MATCH(INDEX(OdstupanjaOdTroškovaObukeIPutnihTroškova[],ROW()-ROW(OdstupanjaOdTroškovaObukeIPutnihTroškova[[#Headers],[Jul]]),1),INDEX(PlaniraniTroškoviObukeIPutniTroškovi[],,1),0),MATCH(OdstupanjaOdTroškovaObukeIPutnihTroškova[[#Headers],[Jul]],StvarniTroškoviObukeIPutniTroškovi[#Headers],0))","v":{"v":2000,"d":"2,000.00 RSD"}},{"$f":"INDEX(PlaniraniTroškoviObukeIPutniTroškovi[],MATCH(INDEX(OdstupanjaOdTroškovaObukeIPutnihTroškova[],ROW()-ROW(OdstupanjaOdTroškovaObukeIPutnihTroškova[[#Headers],[Avg]]),1),INDEX(PlaniraniTroškoviObukeIPutniTroškovi[],,1),0),MATCH(OdstupanjaOdTroškovaObukeIPutnihTroškova[[#Headers],[Avg]],PlaniraniTroškoviObukeIPutniTroškovi[#Headers],0))-INDEX(StvarniTroškoviObukeIPutniTroškovi[],MATCH(INDEX(OdstupanjaOdTroškovaObukeIPutnihTroškova[],ROW()-ROW(OdstupanjaOdTroškovaObukeIPutnihTroškova[[#Headers],[Avg]]),1),INDEX(PlaniraniTroškoviObukeIPutniTroškovi[],,1),0),MATCH(OdstupanjaOdTroškovaObukeIPutnihTroškova[[#Headers],[Avg]],StvarniTroškoviObukeIPutniTroškovi[#Headers],0))","v":{"v":2000,"d":"2,000.00 RSD"}},{"$f":"INDEX(PlaniraniTroškoviObukeIPutniTroškovi[],MATCH(INDEX(OdstupanjaOdTroškovaObukeIPutnihTroškova[],ROW()-ROW(OdstupanjaOdTroškovaObukeIPutnihTroškova[[#Headers],[Sep]]),1),INDEX(PlaniraniTroškoviObukeIPutniTroškovi[],,1),0),MATCH(OdstupanjaOdTroškovaObukeIPutnihTroškova[[#Headers],[Sep]],PlaniraniTroškoviObukeIPutniTroškovi[#Headers],0))-INDEX(StvarniTroškoviObukeIPutniTroškovi[],MATCH(INDEX(OdstupanjaOdTroškovaObukeIPutnihTroškova[],ROW()-ROW(OdstupanjaOdTroškovaObukeIPutnihTroškova[[#Headers],[Sep]]),1),INDEX(PlaniraniTroškoviObukeIPutniTroškovi[],,1),0),MATCH(OdstupanjaOdTroškovaObukeIPutnihTroškova[[#Headers],[Sep]],StvarniTroškoviObukeIPutniTroškovi[#Headers],0))","v":{"v":2000,"d":"2,000.00 RSD"}},{"$f":"INDEX(PlaniraniTroškoviObukeIPutniTroškovi[],MATCH(INDEX(OdstupanjaOdTroškovaObukeIPutnihTroškova[],ROW()-ROW(OdstupanjaOdTroškovaObukeIPutnihTroškova[[#Headers],[Okt]]),1),INDEX(PlaniraniTroškoviObukeIPutniTroškovi[],,1),0),MATCH(OdstupanjaOdTroškovaObukeIPutnihTroškova[[#Headers],[Okt]],PlaniraniTroškoviObukeIPutniTroškovi[#Headers],0))-INDEX(StvarniTroškoviObukeIPutniTroškovi[],MATCH(INDEX(OdstupanjaOdTroškovaObukeIPutnihTroškova[],ROW()-ROW(OdstupanjaOdTroškovaObukeIPutnihTroškova[[#Headers],[Okt]]),1),INDEX(PlaniraniTroškoviObukeIPutniTroškovi[],,1),0),MATCH(OdstupanjaOdTroškovaObukeIPutnihTroškova[[#Headers],[Okt]],StvarniTroškoviObukeIPutniTroškovi[#Headers],0))","v":{"v":2000,"d":"2,000.00 RSD"}},{"$f":"INDEX(PlaniraniTroškoviObukeIPutniTroškovi[],MATCH(INDEX(OdstupanjaOdTroškovaObukeIPutnihTroškova[],ROW()-ROW(OdstupanjaOdTroškovaObukeIPutnihTroškova[[#Headers],[Nov]]),1),INDEX(PlaniraniTroškoviObukeIPutniTroškovi[],,1),0),MATCH(OdstupanjaOdTroškovaObukeIPutnihTroškova[[#Headers],[Nov]],PlaniraniTroškoviObukeIPutniTroškovi[#Headers],0))-INDEX(StvarniTroškoviObukeIPutniTroškovi[],MATCH(INDEX(OdstupanjaOdTroškovaObukeIPutnihTroškova[],ROW()-ROW(OdstupanjaOdTroškovaObukeIPutnihTroškova[[#Headers],[Nov]]),1),INDEX(PlaniraniTroškoviObukeIPutniTroškovi[],,1),0),MATCH(OdstupanjaOdTroškovaObukeIPutnihTroškova[[#Headers],[Nov]],StvarniTroškoviObukeIPutniTroškovi[#Headers],0))","v":{"v":2000,"d":"2,000.00 RSD"}},{"$f":"INDEX(PlaniraniTroškoviObukeIPutniTroškovi[],MATCH(INDEX(OdstupanjaOdTroškovaObukeIPutnihTroškova[],ROW()-ROW(OdstupanjaOdTroškovaObukeIPutnihTroškova[[#Headers],[Dec]]),1),INDEX(PlaniraniTroškoviObukeIPutniTroškovi[],,1),0),MATCH(OdstupanjaOdTroškovaObukeIPutnihTroškova[[#Headers],[Dec]],PlaniraniTroškoviObukeIPutniTroškovi[#Headers],0))-INDEX(StvarniTroškoviObukeIPutniTroškovi[],MATCH(INDEX(OdstupanjaOdTroškovaObukeIPutnihTroškova[],ROW()-ROW(OdstupanjaOdTroškovaObukeIPutnihTroškova[[#Headers],[Dec]]),1),INDEX(PlaniraniTroškoviObukeIPutniTroškovi[],,1),0),MATCH(OdstupanjaOdTroškovaObukeIPutnihTroškova[[#Headers],[Dec]],StvarniTroškoviObukeIPutniTroškovi[#Headers],0))","v":{"v":2000,"d":"2,000.00 RSD"}},{"$f":"SUM(OdstupanjaOdTroškovaObukeIPutnihTroškova[[#This Row],[Jan]:[Dec]])","v":{"v":13700,"d":"13,700.00 RSD"}}]
[null,"Međuvrednost",{"$f":"SUBTOTAL(109,OdstupanjaOdTroškovaObukeIPutnihTroškova[Jan])","v":{"v":1200,"d":"1,200.00 RSD"}},{"$f":"SUBTOTAL(109,OdstupanjaOdTroškovaObukeIPutnihTroškova[Feb])","v":{"v":-600,"d":"-600.00 RSD"}},{"$f":"SUBTOTAL(109,OdstupanjaOdTroškovaObukeIPutnihTroškova[Mar])","v":{"v":1200,"d":"1,200.00 RSD"}},{"$f":"SUBTOTAL(109,OdstupanjaOdTroškovaObukeIPutnihTroškova[Apr])","v":{"v":1200,"d":"1,200.00 RSD"}},{"$f":"SUBTOTAL(109,OdstupanjaOdTroškovaObukeIPutnihTroškova[Maj])","v":{"v":2000,"d":"2,000.00 RSD"}},{"$f":"SUBTOTAL(109,OdstupanjaOdTroškovaObukeIPutnihTroškova[Jun])","v":{"v":-2300,"d":"-2,300.00 RSD"}},{"$f":"SUBTOTAL(109,OdstupanjaOdTroškovaObukeIPutnihTroškova[Jul])","v":{"v":4000,"d":"4,000.00 RSD"}},{"$f":"SUBTOTAL(109,OdstupanjaOdTroškovaObukeIPutnihTroškova[Avg])","v":{"v":4000,"d":"4,000.00 RSD"}},{"$f":"SUBTOTAL(109,OdstupanjaOdTroškovaObukeIPutnihTroškova[Sep])","v":{"v":4000,"d":"4,000.00 RSD"}},{"$f":"SUBTOTAL(109,OdstupanjaOdTroškovaObukeIPutnihTroškova[Okt])","v":{"v":4000,"d":"4,000.00 RSD"}},{"$f":"SUBTOTAL(109,OdstupanjaOdTroškovaObukeIPutnihTroškova[Nov])","v":{"v":4000,"d":"4,000.00 RSD"}},{"$f":"SUBTOTAL(109,OdstupanjaOdTroškovaObukeIPutnihTroškova[Dec])","v":{"v":4000,"d":"4,000.00 RSD"}},{"$f":"SUBTOTAL(109,OdstupanjaOdTroškovaObukeIPutnihTroškova[GODINA])","v":{"v":26700,"d":"26,700.00 RSD"}}]
[]
[null,"UKUPNE VREDNOSTI","Jan","Feb","Mar","Apr","Maj","Jun","Jul","Avg","Sep","Okt","Nov","Dec","Godina"]
[null,"Mesečni stvarni troškovi",{"$f":"OdstupanjaOdTroškovaObukeIPutnihTroškova[[#Totals],[Jan]]+OdstupanjaOdTroškovaMarketinga[[#Totals],[Jan]]+OdstupanjaOdKancelarijskihTroškova[[#Totals],[Jan]]+OdstupanjaOdTroškovaZaposlenih[[#Totals],[Jan]]","v":{"v":1738,"d":"1,738.00 RSD"}},{"$f":"OdstupanjaOdTroškovaObukeIPutnihTroškova[[#Totals],[Feb]]+OdstupanjaOdTroškovaMarketinga[[#Totals],[Feb]]+OdstupanjaOdKancelarijskihTroškova[[#Totals],[Feb]]+OdstupanjaOdTroškovaZaposlenih[[#Totals],[Feb]]","v":{"v":-984,"d":"-984.00 RSD"}},{"$f":"OdstupanjaOdTroškovaObukeIPutnihTroškova[[#Totals],[Mar]]+OdstupanjaOdTroškovaMarketinga[[#Totals],[Mar]]+OdstupanjaOdKancelarijskihTroškova[[#Totals],[Mar]]+OdstupanjaOdTroškovaZaposlenih[[#Totals],[Mar]]","v":{"v":1255,"d":"1,255.00 RSD"}},{"$f":"OdstupanjaOdTroškovaObukeIPutnihTroškova[[#Totals],[Apr]]+OdstupanjaOdTroškovaMarketinga[[#Totals],[Apr]]+OdstupanjaOdKancelarijskihTroškova[[#Totals],[Apr]]+OdstupanjaOdTroškovaZaposlenih[[#Totals],[Apr]]","v":{"v":301,"d":"301.00 RSD"}},{"$f":"OdstupanjaOdTroškovaObukeIPutnihTroškova[[#Totals],[Maj]]+OdstupanjaOdTroškovaMarketinga[[#Totals],[Maj]]+OdstupanjaOdKancelarijskihTroškova[[#Totals],[Maj]]+OdstupanjaOdTroškovaZaposlenih[[#Totals],[Maj]]","v":{"v":1440,"d":"1,440.00 RSD"}},{"$f":"OdstupanjaOdTroškovaObukeIPutnihTroškova[[#Totals],[Jun]]+OdstupanjaOdTroškovaMarketinga[[#Totals],[Jun]]+OdstupanjaOdKancelarijskihTroškova[[#Totals],[Jun]]+OdstupanjaOdTroškovaZaposlenih[[#Totals],[Jun]]","v":{"v":-3744,"d":"-3,744.00 RSD"}},{"$f":"OdstupanjaOdTroškovaObukeIPutnihTroškova[[#Totals],[Jul]]+OdstupanjaOdTroškovaMarketinga[[#Totals],[Jul]]+OdstupanjaOdKancelarijskihTroškova[[#Totals],[Jul]]+OdstupanjaOdTroškovaZaposlenih[[#Totals],[Jul]]","v":{"v":134695,"d":"134,695.00 RSD"}},{"$f":"OdstupanjaOdTroškovaObukeIPutnihTroškova[[#Totals],[Avg]]+OdstupanjaOdTroškovaMarketinga[[#Totals],[Avg]]+OdstupanjaOdKancelarijskihTroškova[[#Totals],[Avg]]+OdstupanjaOdTroškovaZaposlenih[[#Totals],[Avg]]","v":{"v":138918,"d":"138,918.00 RSD"}},{"$f":"OdstupanjaOdTroškovaObukeIPutnihTroškova[[#Totals],[Sep]]+OdstupanjaOdTroškovaMarketinga[[#Totals],[Sep]]+OdstupanjaOdKancelarijskihTroškova[[#Totals],[Sep]]+OdstupanjaOdTroškovaZaposlenih[[#Totals],[Sep]]","v":{"v":135918,"d":"135,918.00 RSD"}},{"$f":"OdstupanjaOdTroškovaObukeIPutnihTroškova[[#Totals],[Okt]]+OdstupanjaOdTroškovaMarketinga[[#Totals],[Okt]]+OdstupanjaOdKancelarijskihTroškova[[#Totals],[Okt]]+OdstupanjaOdTroškovaZaposlenih[[#Totals],[Okt]]","v":{"v":140918,"d":"140,918.00 RSD"}},{"$f":"OdstupanjaOdTroškovaObukeIPutnihTroškova[[#Totals],[Nov]]+OdstupanjaOdTroškovaMarketinga[[#Totals],[Nov]]+OdstupanjaOdKancelarijskihTroškova[[#Totals],[Nov]]+OdstupanjaOdTroškovaZaposlenih[[#Totals],[Nov]]","v":{"v":136218,"d":"136,218.00 RSD"}},{"$f":"OdstupanjaOdTroškovaObukeIPutnihTroškova[[#Totals],[Dec]]+OdstupanjaOdTroškovaMarketinga[[#Totals],[Dec]]+OdstupanjaOdKancelarijskihTroškova[[#Totals],[Dec]]+OdstupanjaOdTroškovaZaposlenih[[#Totals],[Dec]]","v":{"v":140018,"d":"140,018.00 RSD"}},{"$f":"OdstupanjaOdTroškovaObukeIPutnihTroškova[[#Totals],[GODINA]]+OdstupanjaOdTroškovaMarketinga[[#Totals],[GODINA]]+OdstupanjaOdKancelarijskihTroškova[[#Totals],[GODINA]]+OdstupanjaOdTroškovaZaposlenih[[#Totals],[GODINA]]","v":{"v":826691,"d":"826,691.00 RSD"}}]
[null,"UKUPNI stvarni troškovi",{"$f":"SUM($C$36:C36)","v":{"v":1738,"d":"1,738.00 RSD"}},{"$f":"SUM($C$36:D36)","v":{"v":754,"d":"754.00 RSD"}},{"$f":"SUM($C$36:E36)","v":{"v":2009,"d":"2,009.00 RSD"}},{"$f":"SUM($C$36:F36)","v":{"v":2310,"d":"2,310.00 RSD"}},{"$f":"SUM($C$36:G36)","v":{"v":3750,"d":"3,750.00 RSD"}},{"$f":"SUM($C$36:H36)","v":{"v":6,"d":"6.00 RSD"}},{"$f":"SUM($C$36:I36)","v":{"v":134701,"d":"134,701.00 RSD"}},{"$f":"SUM($C$36:J36)","v":{"v":273619,"d":"273,619.00 RSD"}},{"$f":"SUM($C$36:K36)","v":{"v":409537,"d":"409,537.00 RSD"}},{"$f":"SUM($C$36:L36)","v":{"v":550455,"d":"550,455.00 RSD"}},{"$f":"SUM($C$36:M36)","v":{"v":686673,"d":"686,673.00 RSD"}},{"$f":"SUM($C$36:N36)","v":{"v":826691,"d":"826,691.00 RSD"}}]

{"sheet":"ANALIZA TROŠKOVA","index":4,"n_rows":10,"n_cols":16,"rows_kept":10,"merged":[[2,4,2,6],[11,1,11,5]]}
[{"$nulls":6}," ",{"$nulls":8}," "]
[null,{"$f":"'PLANIRANI TROŠKOVI'!B2:D3","v":"Ime preduzeća"}]
[{"$nulls":4},{"$f":"naslov_radnog_lista","v":"Detaljne procene troškova"}]
[]
[null,"Kategorija troška","Planirani troškovi","Stvarni troškovi","Odstupanja od troškova","Procenat odstupanja"]
[null,"Troškovi zaposlenih",{"$f":"PlaniraniTroškoviZaposlenih[[#Totals],[GODINA]]","v":{"v":1355090,"d":"1,355,090.00 RSD"}},{"$f":"StvarniTroškoviZaposlenih[[#Totals],[GODINA]]","v":{"v":659130,"d":"659,130.00 RSD"}},{"$f":"C6-D6","v":{"v":695960,"d":"695,960.00 RSD"}},{"$f":"E6/C6","v":{"v":0.5135895032802249,"d":"51%"}}]
[null,{"$f":"'PLANIRANI TROŠKOVI'!B10","v":"Kancelarijski troškovi"},{"$f":"PlaniraniKancelarijskiTroškovi[[#Totals],[GODINA]]","v":{"v":138740,"d":"138,740.00 RSD"}},{"$f":"StvarniKancelarijskiTroškovi[[#Totals],[GODINA]]","v":{"v":69350,"d":"69,350.00 RSD"}},{"$f":"C7-D7","v":{"v":69390,"d":"69,390.00 RSD"}},{"$f":"E7/C7","v":{"v":0.5001441545336601,"d":"50%"}}]
[null,{"$f":"'PLANIRANI TROŠKOVI'!B21","v":"Troškovi marketinga"},{"$f":"PlaniraniTroškoviMarketinga[[#Totals],[GODINA]]","v":{"v":67800,"d":"67,800.00 RSD"}},{"$f":"StvarniTroškoviMarketinga[[#Totals],[GODINA]]","v":{"v":33159,"d":"33,159.00 RSD"}},{"$f":"C8-D8","v":{"v":34641,"d":"34,641.00 RSD"}},{"$f":"E8/C8","v":{"v":0.510929203539823,"d":"51%"}}]
[null,{"$f":"'PLANIRANI TROŠKOVI'!B30","v":"Obuka/putovanje"},{"$f":"PlaniraniTroškoviObukeIPutniTroškovi[[#Totals],[GODINA]]","v":{"v":48000,"d":"48,000.00 RSD"}},{"$f":"StvarniTroškoviObukeIPutniTroškovi[[#Totals],[GODINA]]","v":{"v":21300,"d":"21,300.00 RSD"}},{"$f":"C9-D9","v":{"v":26700,"d":"26,700.00 RSD"}},{"$f":"E9/C9","v":{"v":0.55625,"d":"56%"}}]
[null,{"$f":"'PLANIRANI TROŠKOVI'!B35","v":"UKUPNE VREDNOSTI"},{"$f":"'PLANIRANI TROŠKOVI'!O36","v":{"v":1609630,"d":"1,609,630.00 RSD"}},{"$f":"'STVARNI TROŠKOVI'!O36","v":{"v":782939,"d":"782,939.00 RSD"}},{"$f":"C10-D10","v":{"v":826691,"d":"826,691.00 RSD"}},{"$f":"E10/C10","v":{"v":0.5135907009685455,"d":"51%"}}]